Body_Code,Body_Name,Service_Area,Responsible_Unit,Expense_Type,Expense_Code,Narrative,Date,Transaction_Number,Amount,Supplier_Name
http://statistics.data.gov.uk/id/local-authority/38,Oxfordshire County Council,Commercial,Corporate Landlord Properties,Total Responsive R&M,21110,Power (Urgent),19/12/2013,3100052740,-3064,Axis Elevators Ltd
http://statistics.data.gov.uk/id/local-authority/38,Oxfordshire County Council,Children's Social Care,Agency Residential - Disabilities,Other Agency and Contracted Services,57801,Independent Fostering Agencies,27/12/2013,3100053272,-4818.02,FOSTERPLUS LTD
http://statistics.data.gov.uk/id/local-authority/38,Oxfordshire County Council,Children's Social Care,Agency Residential - Disabilities,Other Agency and Contracted Services,57801,Independent Fostering Agencies,27/12/2013,3100053274,-4662.6,FOSTERPLUS LTD
http://statistics.data.gov.uk/id/local-authority/38,Oxfordshire County Council,SCS Pooled Budgets,PD CS Purch Budget - Health S28a JC,Other Agency and Contracted Services,57401,Direct Payments,31/12/2013,3100053516,532,WK2 Advance Housing & Support
http://statistics.data.gov.uk/id/local-authority/38,Oxfordshire County Council,SCS Pooled Budgets,PD CS Purch Budget - Health S28a JC,Other Agency and Contracted Services,57401,Direct Payments,31/12/2013,3100053516,532,WK2 Advance Housing & Support
http://statistics.data.gov.uk/id/local-authority/38,Oxfordshire County Council,SCS Pooled Budgets,PD CS Purch Budget - Health S28a JC,Other Agency and Contracted Services,57401,Direct Payments,31/12/2013,3100053516,-532,WK2 Advance Housing & Support
http://statistics.data.gov.uk/id/local-authority/38,Oxfordshire County Council,SCS Pooled Budgets,PD Comm Supp Purchasg Budget - City,Other Agency and Contracted Services,57401,Direct Payments,31/12/2013,3100053516,-2024,WK2 Advance Housing & Support
http://statistics.data.gov.uk/id/local-authority/38,Oxfordshire County Council,SCS Pooled Budgets,OP Pool Continuing Care Home Support,Other Agency and Contracted Services,57302,Home Support (Ext) Continuing Care,04/12/2013,3150004408,-3780,Day and Nightcare Assistance
http://statistics.data.gov.uk/id/local-authority/38,Oxfordshire County Council,Education & Early Intervention,Chillout Fund,Grants and Subscriptions,47100,Grants to Voluntary,05/12/2013,3150004511,-1500,The Leys Community
http://statistics.data.gov.uk/id/local-authority/38,Oxfordshire County Council,Commercial,"Electrical NP Rds, Street Lighting",Private Contractors,56400,Major Contracts,06/12/2013,3150004512,-12222,Southern Electric Contracting Ltd.
http://statistics.data.gov.uk/id/local-authority/38,Oxfordshire County Council,Commercial,"Electrical NP Rds, Street Lighting",Private Contractors,56400,Major Contracts,09/12/2013,3150004515,-909,Southern Electric Contracting Ltd.
http://statistics.data.gov.uk/id/local-authority/38,Oxfordshire County Council,Scheduled Bodies,Oxfordshire County Council,Pension Fund Revenue,PR401,Transfers out,10/12/2013,3300004853,6519.35,Hampshire County Council
http://statistics.data.gov.uk/id/local-authority/38,Oxfordshire County Council,Scheduled Bodies,Oxfordshire County Council,Pension Fund Revenue,PR401,Transfers out,10/12/2013,3300004854,13386.7,Hampshire County Council
http://statistics.data.gov.uk/id/local-authority/38,Oxfordshire County Council,Scheduled Bodies,Oxford & Cherwell College,Pension Fund Revenue,PR401,Transfers out,04/12/2013,3300004858,2933.63,Trustees of the University of
http://statistics.data.gov.uk/id/local-authority/38,Oxfordshire County Council,Scheduled Bodies,Oxford City Council,Pension Fund Revenue,PR401,Transfers out,04/12/2013,3300004863,3368.61,States of Jersey Pension Fund
http://statistics.data.gov.uk/id/local-authority/38,Oxfordshire County Council,Scheduled Bodies,,Pension Fund Revenue,PR401,Transfers out,11/12/2013,3300004876,15908.14,Surrey County Council
http://statistics.data.gov.uk/id/local-authority/38,Oxfordshire County Council,In-House,Miscellaneous,Pension Fund Balance Sheet,PB810,Give As You Earn,11/12/2013,3300004878,664.11,Charities Aid Foundation
http://statistics.data.gov.uk/id/local-authority/38,Oxfordshire County Council,Scheduled Bodies,Oxford Brookes Univeristy,Pension Fund Revenue,PR401,Transfers out,20/12/2013,3300004908,2702.91,Univs Superann Scheme Ltd Trust Fun
http://statistics.data.gov.uk/id/local-authority/38,Oxfordshire County Council,Scheduled Bodies,Oxfordshire County Council,Pension Fund Revenue,PR401,Transfers out,27/12/2013,3300004919,5864.66,Bedford Borough Council
http://statistics.data.gov.uk/id/local-authority/38,Oxfordshire County Council,Education & Early Intervention,Sufficiency & Access - Intervention Grnt,Grants and Subscriptions,47100,Grants to Voluntary,03/12/2013,3301728961,4303.71,Cherubs Nursery and After Care
http://statistics.data.gov.uk/id/local-authority/38,Oxfordshire County Council,Chief Executive & Business Support,Big Society Fund,Grants and Subscriptions,47100,Grants to Voluntary,06/12/2013,3301731399,1000,St Lukes Church
http://statistics.data.gov.uk/id/local-authority/38,Oxfordshire County Council,Social & Community Services,Community Support Budget - City East,Other Agency and Contracted Services,57300,Home Support (Ext) OS&HCD,05/12/2013,3301731806,581.76,The Kingwood Trust
http://statistics.data.gov.uk/id/local-authority/38,Oxfordshire County Council,Children's Social Care,Agency Residential - Disabilities,Other Agency and Contracted Services,57801,Independent Fostering Agencies,27/12/2013,3301734183,3584.1,FOSTERPLUS LTD
http://statistics.data.gov.uk/id/local-authority/38,Oxfordshire County Council,Chief Executive & Business Support,Big Society Fund,Grants and Subscriptions,47100,Grants to Voluntary,02/12/2013,3301734826,2500,Leys News Limited
http://statistics.data.gov.uk/id/local-authority/38,Oxfordshire County Council,Chief Executive & Business Support,Big Society Fund,Grants and Subscriptions,47100,Grants to Voluntary,02/12/2013,3301734826,4900,Leys News Limited
http://statistics.data.gov.uk/id/local-authority/38,Oxfordshire County Council,Chief Executive & Business Support,Big Society Fund,Grants and Subscriptions,47100,Grants to Voluntary,16/12/2013,3301734827,1000,Oxfordshire Science Festival
http://statistics.data.gov.uk/id/local-authority/38,Oxfordshire County Council,Chief Executive & Business Support,Big Society Fund,Grants and Subscriptions,47100,Grants to Voluntary,16/12/2013,3301734827,1000,Oxfordshire Science Festival
http://statistics.data.gov.uk/id/local-authority/38,Oxfordshire County Council,Chief Executive & Business Support,Big Society Fund,Grants and Subscriptions,47100,Grants to Voluntary,16/12/2013,3301734827,2000,Oxfordshire Science Festival
http://statistics.data.gov.uk/id/local-authority/38,Oxfordshire County Council,Chief Executive & Business Support,Big Society Fund,Grants and Subscriptions,47100,Grants to Voluntary,16/12/2013,3301734827,1500,Oxfordshire Science Festival
http://statistics.data.gov.uk/id/local-authority/38,Oxfordshire County Council,Children's Social Care,Agency Residential - Disabilities,Other Agency and Contracted Services,57790,Other Residential Placements,03/12/2013,3301735792,2250,West Berkshire Council
http://statistics.data.gov.uk/id/local-authority/38,Oxfordshire County Council,Children's Social Care,Agency Residential - Disabilities,Other Agency and Contracted Services,57801,Independent Fostering Agencies,27/12/2013,3301735793,2175.88,FOSTERPLUS LTD
http://statistics.data.gov.uk/id/local-authority/38,Oxfordshire County Council,Chief Executive & Business Support,Big Society Fund,Grants and Subscriptions,47100,Grants to Voluntary,16/12/2013,3301736211,5000,Vale House
http://statistics.data.gov.uk/id/local-authority/38,Oxfordshire County Council,Education & Early Intervention,SEN Delegation,Miscellaneous Expenses,48700,Recharge Internal Supplies & Services Costs,03/12/2013,3301736217,8106.05,St John Fisher
http://statistics.data.gov.uk/id/local-authority/38,Oxfordshire County Council,STD Insurance,Motor Fleet,Motor Insurance Fund Rev AC,Z5151,Motor IF Own Damage,06/12/2013,3301736230,1278.92,Enterprise Rent A Car Ltd
http://statistics.data.gov.uk/id/local-authority/38,Oxfordshire County Council,Education & Early Intervention,Leading the EYFS (Q&I),"Equipment, Furniture and Materials",41515,Educational Visits,02/12/2013,3301736386,600,Saltway Day Nursery
http://statistics.data.gov.uk/id/local-authority/38,Oxfordshire County Council,STD Insurance,Property,Property Insurance Fund Rev AC,Z5357,Property IF Fees,04/12/2013,3301736453,18482.85,Carillion LGS Ltd
http://statistics.data.gov.uk/id/local-authority/38,Oxfordshire County Council,Commercial,"Electrical NP Rds, Street Lighting",Private Contractors,56400,Major Contracts,02/12/2013,3301736508,563.35,Southern Electric Contracting Ltd.
http://statistics.data.gov.uk/id/local-authority/38,Oxfordshire County Council,Commercial,"Electrical NP Rds, Street Lighting",Private Contractors,56400,Major Contracts,02/12/2013,3301736509,643.8,Southern Electric Contracting Ltd.
http://statistics.data.gov.uk/id/local-authority/38,Oxfordshire County Council,SCS Pooled Budgets,Community Support Budget - Kidlington,Other Agency and Contracted Services,57401,Direct Payments,02/12/2013,3301736534,2186.05,1 Off Advance Housing & Support
http://statistics.data.gov.uk/id/local-authority/38,Oxfordshire County Council,Education & Early Intervention,Trajectory Funding - 2 yr olds,Grants and Subscriptions,47100,Grants to Voluntary,02/12/2013,3301736580,11879,Wendy Dawson
http://statistics.data.gov.uk/id/local-authority/38,Oxfordshire County Council,Commercial,"Electrical NP Rds, Street Lighting",Private Contractors,56400,Major Contracts,10/12/2013,3301736582,777,Pudsey Diamond
http://statistics.data.gov.uk/id/local-authority/38,Oxfordshire County Council,Commercial,Localities,Private Contractors,56400,Major Contracts,05/12/2013,3301736583,9990,Solagen Ltd
http://statistics.data.gov.uk/id/local-authority/38,Oxfordshire County Council,Commercial,Electrical Energy,Private Contractors,56700,Electrical Main Energy,03/12/2013,3301736585,7899.39,Npower Ltd
http://statistics.data.gov.uk/id/local-authority/38,Oxfordshire County Council,Commercial,"Electrical NP Rds, Street Lighting",Private Contractors,56400,Major Contracts,10/12/2013,3301736586,911.1,Pudsey Diamond
http://statistics.data.gov.uk/id/local-authority/38,Oxfordshire County Council,Commercial,"Electrical NP Rds, Street Lighting",Private Contractors,56400,Major Contracts,10/12/2013,3301736587,2636,Pudsey Diamond
http://statistics.data.gov.uk/id/local-authority/38,Oxfordshire County Council,Commercial,Electrical Energy,Private Contractors,56700,Electrical Main Energy,03/12/2013,3301736588,36251.3,Npower Ltd
http://statistics.data.gov.uk/id/local-authority/38,Oxfordshire County Council,Commercial,"Electrical NP Rds, Street Lighting",Private Contractors,56400,Major Contracts,02/12/2013,3301736597,1274.98,Southern Electric Contracting Ltd.
http://statistics.data.gov.uk/id/local-authority/38,Oxfordshire County Council,Commercial,"Electrical NP Rds, illuminated Signs",Private Contractors,56400,Major Contracts,02/12/2013,3301736599,1112.77,Southern Electric Contracting Ltd.
http://statistics.data.gov.uk/id/local-authority/38,Oxfordshire County Council,Commercial,"Electrical NP Rds, Street Lighting",Private Contractors,56400,Major Contracts,02/12/2013,3301736601,1287.6,Southern Electric Contracting Ltd.
http://statistics.data.gov.uk/id/local-authority/38,Oxfordshire County Council,Social & Community Services,Community Support Budget - City East,Other Agency and Contracted Services,57300,Home Support (Ext) OS&HCD,02/12/2013,3301736605,3861,Kcare Nursing Agency
http://statistics.data.gov.uk/id/local-authority/38,Oxfordshire County Council,Commercial,Electrical Energy,Private Contractors,56700,Electrical Main Energy,03/12/2013,3301736607,222192.51,Npower Ltd
http://statistics.data.gov.uk/id/local-authority/38,Oxfordshire County Council,Commercial,Corporate Landlord Properties,Miscellaneous Expenses,48310,Stamp Duty Land Tax,02/12/2013,3301736661,1201,HM Revenue & Customs Only
http://statistics.data.gov.uk/id/local-authority/38,Oxfordshire County Council,SCS Other Cost Centres,Personal Budgets OP WEST,Other Agency and Contracted Services,57401,Direct Payments,02/12/2013,3301736777,1016.85,1 Off Advance Housing & Support
http://statistics.data.gov.uk/id/local-authority/38,Oxfordshire County Council,SCS Pooled Budgets,PCT Carers,Other Agency and Contracted Services,57401,Direct Payments,03/12/2013,3301736998,750,REDACTED PERSONAL DATA
http://statistics.data.gov.uk/id/local-authority/38,Oxfordshire County Council,Social & Community Services,Community Support Budget - City East,Other Agency and Contracted Services,57401,Direct Payments,03/12/2013,3301736999,1399.59,1 Off Advance Housing & Support
http://statistics.data.gov.uk/id/local-authority/38,Oxfordshire County Council,Oxfordshire Customer Services,16-18 Apprentice Income,Grants and Subscriptions,47150,Grants to Individuals,06/12/2013,3301737043,1500,Career Connect Provision Ltd
http://statistics.data.gov.uk/id/local-authority/38,Oxfordshire County Council,Education & Early Intervention,Positive Activities,Grants and Subscriptions,47100,Grants to Voluntary,12/12/2013,3301737046,5880,BYHP
http://statistics.data.gov.uk/id/local-authority/38,Oxfordshire County Council,Social & Community Services,Community Support Budget - City East,Other Agency and Contracted Services,57300,Home Support (Ext) OS&HCD,03/12/2013,3301737048,580,Stephen Taylor
http://statistics.data.gov.uk/id/local-authority/38,Oxfordshire County Council,Oxfordshire Customer Services,MIS Payroll Workflow,Balance Sheet General,B7102,Local Government AVC,04/12/2013,3301737197,67653.92,Prudential Assurance Co. Ltd
http://statistics.data.gov.uk/id/local-authority/38,Oxfordshire County Council,Oxfordshire Customer Services,MIS Payroll Workflow,Balance Sheet General,B7103,Teachers AVC,04/12/2013,3301737198,25593.62,Prudential Assurance
http://statistics.data.gov.uk/id/local-authority/38,Oxfordshire County Council,SCS Pooled Budgets,Direct Payments North Team,Other Agency and Contracted Services,57401,Direct Payments,04/12/2013,3301737206,1208,REDACTED PERSONAL DATA
http://statistics.data.gov.uk/id/local-authority/38,Oxfordshire County Council,SCS Pooled Budgets,Direct Payments North Team,Other Agency and Contracted Services,57401,Direct Payments,04/12/2013,3301737207,906.08,REDACTED PERSONAL DATA
http://statistics.data.gov.uk/id/local-authority/38,Oxfordshire County Council,SCS Pooled Budgets,Community Support Budget - Henley,Other Agency and Contracted Services,57401,Direct Payments,04/12/2013,3301737208,1100,REDACTED PERSONAL DATA
http://statistics.data.gov.uk/id/local-authority/38,Oxfordshire County Council,SCS Pooled Budgets,PD Comm Supp Purchasg Budget - Wantage,Other Agency and Contracted Services,57401,Direct Payments,04/12/2013,3301737209,3056.92,REDACTED PERSONAL DATA
http://statistics.data.gov.uk/id/local-authority/38,Oxfordshire County Council,SCS Pooled Budgets,PD Comm Supp Purchasg Budget - Didcot,Other Agency and Contracted Services,57401,Direct Payments,04/12/2013,3301737211,1828,REDACTED PERSONAL DATA
http://statistics.data.gov.uk/id/local-authority/38,Oxfordshire County Council,SCS Pooled Budgets,Direct Payments City Team,Other Agency and Contracted Services,57401,Direct Payments,04/12/2013,3301737212,1314.32,REDACTED PERSONAL DATA
http://statistics.data.gov.uk/id/local-authority/38,Oxfordshire County Council,SCS Pooled Budgets,PD Comm Supp Purchasg Budget - Didcot,Other Agency and Contracted Services,57401,Direct Payments,04/12/2013,3301737213,900,REDACTED PERSONAL DATA
http://statistics.data.gov.uk/id/local-authority/38,Oxfordshire County Council,SCS Pooled Budgets,Direct Payments South Team,Other Agency and Contracted Services,57401,Direct Payments,04/12/2013,3301737214,1825.08,REDACTED PERSONAL DATA
http://statistics.data.gov.uk/id/local-authority/38,Oxfordshire County Council,SCS Pooled Budgets,PD Comm Supp Purchasg Budget - Didcot,Other Agency and Contracted Services,57401,Direct Payments,04/12/2013,3301737215,536,REDACTED PERSONAL DATA
http://statistics.data.gov.uk/id/local-authority/38,Oxfordshire County Council,SCS Pooled Budgets,Direct Payments South Team,Other Agency and Contracted Services,57401,Direct Payments,04/12/2013,3301737218,4794.2,REDACTED PERSONAL DATA
http://statistics.data.gov.uk/id/local-authority/38,Oxfordshire County Council,SCS Pooled Budgets,Community Support Budget - Bicester,Other Agency and Contracted Services,57401,Direct Payments,04/12/2013,3301737219,896,REDACTED PERSONAL DATA
http://statistics.data.gov.uk/id/local-authority/38,Oxfordshire County Council,SCS Pooled Budgets,Direct Payments City Team,Other Agency and Contracted Services,57401,Direct Payments,04/12/2013,3301737220,507.24,REDACTED PERSONAL DATA
http://statistics.data.gov.uk/id/local-authority/38,Oxfordshire County Council,SCS Pooled Budgets,Community Support Budget - Kidlington,Other Agency and Contracted Services,57401,Direct Payments,04/12/2013,3301737221,540,REDACTED PERSONAL DATA
http://statistics.data.gov.uk/id/local-authority/38,Oxfordshire County Council,SCS Pooled Budgets,Community Support Budget - Witney,Other Agency and Contracted Services,57401,Direct Payments,04/12/2013,3301737224,808,REDACTED PERSONAL DATA
http://statistics.data.gov.uk/id/local-authority/38,Oxfordshire County Council,SCS Pooled Budgets,Community Support Budget - Wantage,Other Agency and Contracted Services,57401,Direct Payments,04/12/2013,3301737226,1380,REDACTED PERSONAL DATA
http://statistics.data.gov.uk/id/local-authority/38,Oxfordshire County Council,SCS Pooled Budgets,Direct Payments South Team,Other Agency and Contracted Services,57401,Direct Payments,04/12/2013,3301737227,1157.32,REDACTED PERSONAL DATA
http://statistics.data.gov.uk/id/local-authority/38,Oxfordshire County Council,SCS Pooled Budgets,Community Support Budget - City,Other Agency and Contracted Services,57401,Direct Payments,04/12/2013,3301737228,1339.6,REDACTED PERSONAL DATA
http://statistics.data.gov.uk/id/local-authority/38,Oxfordshire County Council,SCS Pooled Budgets,Direct Payments City Team,Other Agency and Contracted Services,57401,Direct Payments,04/12/2013,3301737229,1589.52,REDACTED PERSONAL DATA
http://statistics.data.gov.uk/id/local-authority/38,Oxfordshire County Council,SCS Pooled Budgets,Community Support Budget - Thame,Other Agency and Contracted Services,57401,Direct Payments,04/12/2013,3301737230,2232,REDACTED PERSONAL DATA
http://statistics.data.gov.uk/id/local-authority/38,Oxfordshire County Council,SCS Pooled Budgets,Direct Payments North Team,Other Agency and Contracted Services,57401,Direct Payments,04/12/2013,3301737231,2088.08,REDACTED PERSONAL DATA
http://statistics.data.gov.uk/id/local-authority/38,Oxfordshire County Council,SCS Pooled Budgets,Community Support Budget - Didcot,Other Agency and Contracted Services,57401,Direct Payments,04/12/2013,3301737232,601.6,REDACTED PERSONAL DATA
http://statistics.data.gov.uk/id/local-authority/38,Oxfordshire County Council,SCS Pooled Budgets,PD Comm Supp Budget - Banbury,Other Agency and Contracted Services,57401,Direct Payments,04/12/2013,3301737233,732,REDACTED PERSONAL DATA
http://statistics.data.gov.uk/id/local-authority/38,Oxfordshire County Council,SCS Pooled Budgets,PD Comm Supp Purchasg Budget - Witney,Other Agency and Contracted Services,57401,Direct Payments,04/12/2013,3301737234,3236,REDACTED PERSONAL DATA
http://statistics.data.gov.uk/id/local-authority/38,Oxfordshire County Council,SCS Pooled Budgets,PD CS Purch Budget - Health S28a JC,Other Agency and Contracted Services,57401,Direct Payments,04/12/2013,3301737234,832,REDACTED PERSONAL DATA
http://statistics.data.gov.uk/id/local-authority/38,Oxfordshire County Council,SCS Pooled Budgets,Community Support Budget - Bicester,Other Agency and Contracted Services,57401,Direct Payments,04/12/2013,3301737235,1624,REDACTED PERSONAL DATA
http://statistics.data.gov.uk/id/local-authority/38,Oxfordshire County Council,Social & Community Services,Community Support Budget - City East,Other Agency and Contracted Services,57401,Direct Payments,04/12/2013,3301737236,508.36,REDACTED PERSONAL DATA
http://statistics.data.gov.uk/id/local-authority/38,Oxfordshire County Council,SCS Pooled Budgets,Community Support Budget - Didcot,Other Agency and Contracted Services,57401,Direct Payments,04/12/2013,3301737237,744,REDACTED PERSONAL DATA
http://statistics.data.gov.uk/id/local-authority/38,Oxfordshire County Council,SCS Pooled Budgets,Direct Payments South Team,Other Agency and Contracted Services,57401,Direct Payments,04/12/2013,3301737238,2933,REDACTED PERSONAL DATA
http://statistics.data.gov.uk/id/local-authority/38,Oxfordshire County Council,SCS Pooled Budgets,Community Support Budget - Bicester,Other Agency and Contracted Services,57401,Direct Payments,04/12/2013,3301737239,3004.76,REDACTED PERSONAL DATA
http://statistics.data.gov.uk/id/local-authority/38,Oxfordshire County Council,SCS Pooled Budgets,Community Support Budget - Bicester,Other Agency and Contracted Services,57401,Direct Payments,04/12/2013,3301737239,4936.39,REDACTED PERSONAL DATA
http://statistics.data.gov.uk/id/local-authority/38,Oxfordshire County Council,SCS Pooled Budgets,Community Support Budget - Bicester,Other Agency and Contracted Services,57401,Direct Payments,04/12/2013,3301737239,-5125.71,REDACTED PERSONAL DATA
http://statistics.data.gov.uk/id/local-authority/38,Oxfordshire County Council,SCS Pooled Budgets,Community Support Budget - City,Other Agency and Contracted Services,57401,Direct Payments,04/12/2013,3301737240,864,REDACTED PERSONAL DATA
http://statistics.data.gov.uk/id/local-authority/38,Oxfordshire County Council,SCS Pooled Budgets,Community Support Budget - Bicester,Other Agency and Contracted Services,57401,Direct Payments,04/12/2013,3301737241,1521.24,REDACTED PERSONAL DATA
http://statistics.data.gov.uk/id/local-authority/38,Oxfordshire County Council,SCS Pooled Budgets,Community Support Budget - Banbury,Other Agency and Contracted Services,57401,Direct Payments,04/12/2013,3301737242,2356,REDACTED PERSONAL DATA
http://statistics.data.gov.uk/id/local-authority/38,Oxfordshire County Council,SCS Pooled Budgets,Community Support Budget - Wantage,Other Agency and Contracted Services,57401,Direct Payments,04/12/2013,3301737244,1352,REDACTED PERSONAL DATA
http://statistics.data.gov.uk/id/local-authority/38,Oxfordshire County Council,SCS Pooled Budgets,Community Support Budget - City,Other Agency and Contracted Services,57401,Direct Payments,04/12/2013,3301737245,2164,REDACTED PERSONAL DATA
http://statistics.data.gov.uk/id/local-authority/38,Oxfordshire County Council,SCS Pooled Budgets,PD Comm Supp Purchasg Budget - Witney,Other Agency and Contracted Services,57401,Direct Payments,04/12/2013,3301737246,780,REDACTED PERSONAL DATA
http://statistics.data.gov.uk/id/local-authority/38,Oxfordshire County Council,SCS Pooled Budgets,Community Support Budget - Banbury,Other Agency and Contracted Services,57401,Direct Payments,04/12/2013,3301737247,1652,REDACTED PERSONAL DATA
http://statistics.data.gov.uk/id/local-authority/38,Oxfordshire County Council,SCS Pooled Budgets,PD Comm Supp Purchasg Budget - City,Other Agency and Contracted Services,57401,Direct Payments,04/12/2013,3301737248,2212,REDACTED PERSONAL DATA
http://statistics.data.gov.uk/id/local-authority/38,Oxfordshire County Council,SCS Pooled Budgets,Community Support Budget - Bicester,Other Agency and Contracted Services,57401,Direct Payments,04/12/2013,3301737249,1832,REDACTED PERSONAL DATA
http://statistics.data.gov.uk/id/local-authority/38,Oxfordshire County Council,SCS Pooled Budgets,Community Support Budget - Banbury,Other Agency and Contracted Services,57401,Direct Payments,04/12/2013,3301737250,752,REDACTED PERSONAL DATA
http://statistics.data.gov.uk/id/local-authority/38,Oxfordshire County Council,SCS Pooled Budgets,PHB OP Package,Other Agency and Contracted Services,57401,Direct Payments,04/12/2013,3301737251,4803.92,REDACTED PERSONAL DATA
http://statistics.data.gov.uk/id/local-authority/38,Oxfordshire County Council,SCS Pooled Budgets,Community Support Budget - Abingdon,Other Agency and Contracted Services,57401,Direct Payments,04/12/2013,3301737252,842.3,REDACTED PERSONAL DATA
http://statistics.data.gov.uk/id/local-authority/38,Oxfordshire County Council,SCS Pooled Budgets,Community Support Budget - Henley,Other Agency and Contracted Services,57401,Direct Payments,04/12/2013,3301737253,1732,REDACTED PERSONAL DATA
http://statistics.data.gov.uk/id/local-authority/38,Oxfordshire County Council,SCS Pooled Budgets,Community Support Budget - Banbury,Other Agency and Contracted Services,57401,Direct Payments,04/12/2013,3301737255,1112,REDACTED PERSONAL DATA
http://statistics.data.gov.uk/id/local-authority/38,Oxfordshire County Council,SCS Pooled Budgets,Community Support Budget - Abingdon,Other Agency and Contracted Services,57401,Direct Payments,04/12/2013,3301737257,1180,REDACTED PERSONAL DATA
http://statistics.data.gov.uk/id/local-authority/38,Oxfordshire County Council,SCS Pooled Budgets,PD Comm Supp Purchasg Budget - Didcot,Other Agency and Contracted Services,57401,Direct Payments,04/12/2013,3301737259,1752.64,REDACTED PERSONAL DATA
http://statistics.data.gov.uk/id/local-authority/38,Oxfordshire County Council,SCS Pooled Budgets,PD CS Purch Budget - Health S28a JC,Other Agency and Contracted Services,57401,Direct Payments,04/12/2013,3301737259,624,REDACTED PERSONAL DATA
http://statistics.data.gov.uk/id/local-authority/38,Oxfordshire County Council,SCS Pooled Budgets,Personal Health Budgets PD (PCT),Other Agency and Contracted Services,57401,Direct Payments,04/12/2013,3301737260,1320,REDACTED PERSONAL DATA
http://statistics.data.gov.uk/id/local-authority/38,Oxfordshire County Council,SCS Pooled Budgets,Direct Payments North Team,Other Agency and Contracted Services,57401,Direct Payments,04/12/2013,3301737261,1760,REDACTED PERSONAL DATA
http://statistics.data.gov.uk/id/local-authority/38,Oxfordshire County Council,SCS Pooled Budgets,Direct Payments North Team,Other Agency and Contracted Services,57401,Direct Payments,04/12/2013,3301737262,780,REDACTED PERSONAL DATA
http://statistics.data.gov.uk/id/local-authority/38,Oxfordshire County Council,SCS Pooled Budgets,Direct Payments North Team,Other Agency and Contracted Services,57401,Direct Payments,04/12/2013,3301737263,832,REDACTED PERSONAL DATA
http://statistics.data.gov.uk/id/local-authority/38,Oxfordshire County Council,SCS Pooled Budgets,Direct Payments North Team,Other Agency and Contracted Services,57401,Direct Payments,04/12/2013,3301737264,992.4,REDACTED PERSONAL DATA
http://statistics.data.gov.uk/id/local-authority/38,Oxfordshire County Council,SCS Pooled Budgets,Direct Payments North Team,Other Agency and Contracted Services,57401,Direct Payments,04/12/2013,3301737265,904,REDACTED PERSONAL DATA
http://statistics.data.gov.uk/id/local-authority/38,Oxfordshire County Council,SCS Pooled Budgets,Direct Payments South Team,Other Agency and Contracted Services,57401,Direct Payments,04/12/2013,3301737266,4707.6,REDACTED PERSONAL DATA
http://statistics.data.gov.uk/id/local-authority/38,Oxfordshire County Council,SCS Pooled Budgets,Community Support Budget - Banbury,Other Agency and Contracted Services,57401,Direct Payments,04/12/2013,3301737267,1100,REDACTED PERSONAL DATA
http://statistics.data.gov.uk/id/local-authority/38,Oxfordshire County Council,SCS Pooled Budgets,Direct Payments South Team,Other Agency and Contracted Services,57401,Direct Payments,04/12/2013,3301737269,2538,REDACTED PERSONAL DATA
http://statistics.data.gov.uk/id/local-authority/38,Oxfordshire County Council,SCS Pooled Budgets,Direct Payments City Team,Other Agency and Contracted Services,57401,Direct Payments,04/12/2013,3301737270,764,REDACTED PERSONAL DATA
http://statistics.data.gov.uk/id/local-authority/38,Oxfordshire County Council,SCS Pooled Budgets,Direct Payments South Team,Other Agency and Contracted Services,57401,Direct Payments,04/12/2013,3301737272,2732.92,REDACTED PERSONAL DATA
http://statistics.data.gov.uk/id/local-authority/38,Oxfordshire County Council,SCS Pooled Budgets,Community Support Budget - Abingdon,Other Agency and Contracted Services,57401,Direct Payments,04/12/2013,3301737273,1196.8,REDACTED PERSONAL DATA
http://statistics.data.gov.uk/id/local-authority/38,Oxfordshire County Council,SCS Pooled Budgets,Continuing Health Care,Other Agency and Contracted Services,57401,Direct Payments,04/12/2013,3301737274,8199.4,REDACTED PERSONAL DATA
http://statistics.data.gov.uk/id/local-authority/38,Oxfordshire County Council,SCS Pooled Budgets,Continuing Health Care,Other Agency and Contracted Services,57401,Direct Payments,04/12/2013,3301737274,10249.25,REDACTED PERSONAL DATA
http://statistics.data.gov.uk/id/local-authority/38,Oxfordshire County Council,SCS Pooled Budgets,Continuing Health Care,Other Agency and Contracted Services,57401,Direct Payments,04/12/2013,3301737274,-10089.25,REDACTED PERSONAL DATA
http://statistics.data.gov.uk/id/local-authority/38,Oxfordshire County Council,SCS Pooled Budgets,PD Comm Supp Purchasg Budget - Henley,Other Agency and Contracted Services,57401,Direct Payments,04/12/2013,3301737275,3164.4,REDACTED PERSONAL DATA
http://statistics.data.gov.uk/id/local-authority/38,Oxfordshire County Council,SCS Pooled Budgets,Community Support Budget - Wantage,Other Agency and Contracted Services,57401,Direct Payments,04/12/2013,3301737276,1088.52,REDACTED PERSONAL DATA
http://statistics.data.gov.uk/id/local-authority/38,Oxfordshire County Council,SCS Pooled Budgets,Direct Payments City Team,Other Agency and Contracted Services,57401,Direct Payments,04/12/2013,3301737277,611.24,REDACTED PERSONAL DATA
http://statistics.data.gov.uk/id/local-authority/38,Oxfordshire County Council,SCS Pooled Budgets,Direct Payments City Team,Other Agency and Contracted Services,57401,Direct Payments,04/12/2013,3301737278,4551.6,REDACTED PERSONAL DATA
http://statistics.data.gov.uk/id/local-authority/38,Oxfordshire County Council,SCS Pooled Budgets,Direct Payments South Team,Other Agency and Contracted Services,57401,Direct Payments,04/12/2013,3301737279,3308,REDACTED PERSONAL DATA
http://statistics.data.gov.uk/id/local-authority/38,Oxfordshire County Council,SCS Pooled Budgets,PD Comm Supp Purchasg Budget - Thame,Other Agency and Contracted Services,57401,Direct Payments,04/12/2013,3301737280,2000,REDACTED PERSONAL DATA
http://statistics.data.gov.uk/id/local-authority/38,Oxfordshire County Council,SCS Pooled Budgets,Direct Payments City Team,Other Agency and Contracted Services,57401,Direct Payments,04/12/2013,3301737281,1840.8,REDACTED PERSONAL DATA
http://statistics.data.gov.uk/id/local-authority/38,Oxfordshire County Council,SCS Pooled Budgets,Community Support Budget - Thame,Other Agency and Contracted Services,57401,Direct Payments,04/12/2013,3301737283,2376,REDACTED PERSONAL DATA
http://statistics.data.gov.uk/id/local-authority/38,Oxfordshire County Council,SCS Pooled Budgets,Direct Payments South Team,Other Agency and Contracted Services,57401,Direct Payments,04/12/2013,3301737284,684.84,REDACTED PERSONAL DATA
http://statistics.data.gov.uk/id/local-authority/38,Oxfordshire County Council,SCS Pooled Budgets,Direct Payments North Team,Other Agency and Contracted Services,57401,Direct Payments,04/12/2013,3301737285,2840,REDACTED PERSONAL DATA
http://statistics.data.gov.uk/id/local-authority/38,Oxfordshire County Council,Social & Community Services,Community Support Budget - City East,Other Agency and Contracted Services,57401,Direct Payments,04/12/2013,3301737286,864,REDACTED PERSONAL DATA
http://statistics.data.gov.uk/id/local-authority/38,Oxfordshire County Council,SCS Pooled Budgets,Direct Payments South Team,Other Agency and Contracted Services,57401,Direct Payments,04/12/2013,3301737288,1611.16,REDACTED PERSONAL DATA
http://statistics.data.gov.uk/id/local-authority/38,Oxfordshire County Council,SCS Pooled Budgets,Community Support Budget - Wantage,Other Agency and Contracted Services,57401,Direct Payments,04/12/2013,3301737289,560,REDACTED PERSONAL DATA
http://statistics.data.gov.uk/id/local-authority/38,Oxfordshire County Council,SCS Pooled Budgets,Community Support Budget - Henley,Other Agency and Contracted Services,57401,Direct Payments,04/12/2013,3301737290,960,REDACTED PERSONAL DATA
http://statistics.data.gov.uk/id/local-authority/38,Oxfordshire County Council,SCS Pooled Budgets,Community Support Budget - Witney,Other Agency and Contracted Services,57401,Direct Payments,04/12/2013,3301737291,792,REDACTED PERSONAL DATA
http://statistics.data.gov.uk/id/local-authority/38,Oxfordshire County Council,SCS Pooled Budgets,PHB OP Package,Other Agency and Contracted Services,57401,Direct Payments,04/12/2013,3301737293,2651.4,REDACTED PERSONAL DATA
http://statistics.data.gov.uk/id/local-authority/38,Oxfordshire County Council,SCS Pooled Budgets,PHB OP Package,Other Agency and Contracted Services,57401,Direct Payments,04/12/2013,3301737293,716.4,REDACTED PERSONAL DATA
http://statistics.data.gov.uk/id/local-authority/38,Oxfordshire County Council,SCS Pooled Budgets,Community Support Budget - Banbury,Other Agency and Contracted Services,57401,Direct Payments,04/12/2013,3301737294,1848.2,REDACTED PERSONAL DATA
http://statistics.data.gov.uk/id/local-authority/38,Oxfordshire County Council,SCS Pooled Budgets,Direct Payments North Team,Other Agency and Contracted Services,57401,Direct Payments,04/12/2013,3301737295,699.08,REDACTED PERSONAL DATA
http://statistics.data.gov.uk/id/local-authority/38,Oxfordshire County Council,SCS Pooled Budgets,Direct Payments City Team,Other Agency and Contracted Services,57401,Direct Payments,04/12/2013,3301737297,2012.22,REDACTED PERSONAL DATA
http://statistics.data.gov.uk/id/local-authority/38,Oxfordshire County Council,SCS Pooled Budgets,PD Comm Supp Purchasg Budget - Abingdon,Other Agency and Contracted Services,57401,Direct Payments,04/12/2013,3301737298,3313.92,REDACTED PERSONAL DATA
http://statistics.data.gov.uk/id/local-authority/38,Oxfordshire County Council,SCS Pooled Budgets,PD CS Purch Budget - Health S28a JC,Other Agency and Contracted Services,57401,Direct Payments,04/12/2013,3301737298,586.08,REDACTED PERSONAL DATA
http://statistics.data.gov.uk/id/local-authority/38,Oxfordshire County Council,SCS Pooled Budgets,PD Comm Supp Purchasg Budget - Abingdon,Other Agency and Contracted Services,57401,Direct Payments,04/12/2013,3301737298,1104.64,REDACTED PERSONAL DATA
http://statistics.data.gov.uk/id/local-authority/38,Oxfordshire County Council,SCS Pooled Budgets,Direct Payments North Team,Other Agency and Contracted Services,57401,Direct Payments,04/12/2013,3301737300,1130.48,REDACTED PERSONAL DATA
http://statistics.data.gov.uk/id/local-authority/38,Oxfordshire County Council,SCS Pooled Budgets,Community Support Budget - Faringdon,Other Agency and Contracted Services,57401,Direct Payments,04/12/2013,3301737302,4991,REDACTED PERSONAL DATA
http://statistics.data.gov.uk/id/local-authority/38,Oxfordshire County Council,SCS Pooled Budgets,Community Support Budget - Faringdon,Other Agency and Contracted Services,57401,Direct Payments,04/12/2013,3301737302,-1036,REDACTED PERSONAL DATA
http://statistics.data.gov.uk/id/local-authority/38,Oxfordshire County Council,SCS Pooled Budgets,Community Support Budget - Faringdon,Other Agency and Contracted Services,57401,Direct Payments,04/12/2013,3301737302,2852,REDACTED PERSONAL DATA
http://statistics.data.gov.uk/id/local-authority/38,Oxfordshire County Council,SCS Pooled Budgets,Direct Payments City Team,Other Agency and Contracted Services,57401,Direct Payments,04/12/2013,3301737304,1341.68,REDACTED PERSONAL DATA
http://statistics.data.gov.uk/id/local-authority/38,Oxfordshire County Council,SCS Pooled Budgets,Direct Payments South Team,Other Agency and Contracted Services,57401,Direct Payments,04/12/2013,3301737307,3709.56,REDACTED PERSONAL DATA
http://statistics.data.gov.uk/id/local-authority/38,Oxfordshire County Council,SCS Pooled Budgets,Community Support Budget - Kidlington,Other Agency and Contracted Services,57401,Direct Payments,04/12/2013,3301737308,1720,REDACTED PERSONAL DATA
http://statistics.data.gov.uk/id/local-authority/38,Oxfordshire County Council,SCS Pooled Budgets,Direct Payments South Team,Other Agency and Contracted Services,57401,Direct Payments,04/12/2013,3301737309,2524.92,REDACTED PERSONAL DATA
http://statistics.data.gov.uk/id/local-authority/38,Oxfordshire County Council,SCS Pooled Budgets,Direct Payments South Team,Other Agency and Contracted Services,57401,Direct Payments,04/12/2013,3301737310,2219.4,REDACTED PERSONAL DATA
http://statistics.data.gov.uk/id/local-authority/38,Oxfordshire County Council,SCS Pooled Budgets,PD Comm Supp Purchasg Budget - Witney,Other Agency and Contracted Services,57401,Direct Payments,04/12/2013,3301737311,3825.16,REDACTED PERSONAL DATA
http://statistics.data.gov.uk/id/local-authority/38,Oxfordshire County Council,SCS Pooled Budgets,Community Support Budget - Witney,Other Agency and Contracted Services,57401,Direct Payments,04/12/2013,3301737312,572,REDACTED PERSONAL DATA
http://statistics.data.gov.uk/id/local-authority/38,Oxfordshire County Council,SCS Pooled Budgets,Direct Payments North Team,Other Agency and Contracted Services,57401,Direct Payments,04/12/2013,3301737313,927.84,REDACTED PERSONAL DATA
http://statistics.data.gov.uk/id/local-authority/38,Oxfordshire County Council,SCS Pooled Budgets,Direct Payments North Team,Other Agency and Contracted Services,57401,Direct Payments,04/12/2013,3301737314,4393.92,REDACTED PERSONAL DATA
http://statistics.data.gov.uk/id/local-authority/38,Oxfordshire County Council,SCS Pooled Budgets,Direct Payments South Team,Other Agency and Contracted Services,57401,Direct Payments,04/12/2013,3301737315,3330.68,REDACTED PERSONAL DATA
http://statistics.data.gov.uk/id/local-authority/38,Oxfordshire County Council,SCS Pooled Budgets,Direct Payments South Team,Other Agency and Contracted Services,57401,Direct Payments,04/12/2013,3301737316,738.28,REDACTED PERSONAL DATA
http://statistics.data.gov.uk/id/local-authority/38,Oxfordshire County Council,SCS Pooled Budgets,PD CS Purch Budget - Health S28a JC,Other Agency and Contracted Services,57401,Direct Payments,04/12/2013,3301737317,709.2,REDACTED PERSONAL DATA
http://statistics.data.gov.uk/id/local-authority/38,Oxfordshire County Council,SCS Pooled Budgets,PD Comm Supp Purchasg Budget - Abingdon,Other Agency and Contracted Services,57401,Direct Payments,04/12/2013,3301737317,4350.8,REDACTED PERSONAL DATA
http://statistics.data.gov.uk/id/local-authority/38,Oxfordshire County Council,SCS Pooled Budgets,Community Support Budget - Abingdon,Other Agency and Contracted Services,57401,Direct Payments,04/12/2013,3301737318,2861.28,REDACTED PERSONAL DATA
http://statistics.data.gov.uk/id/local-authority/38,Oxfordshire County Council,SCS Pooled Budgets,Direct Payments South Team,Other Agency and Contracted Services,57401,Direct Payments,04/12/2013,3301737319,4862.6,REDACTED PERSONAL DATA
http://statistics.data.gov.uk/id/local-authority/38,Oxfordshire County Council,SCS Pooled Budgets,Direct Payments South Team,Other Agency and Contracted Services,57401,Direct Payments,04/12/2013,3301737320,616.88,REDACTED PERSONAL DATA
http://statistics.data.gov.uk/id/local-authority/38,Oxfordshire County Council,SCS Pooled Budgets,Direct Payments City Team,Other Agency and Contracted Services,57401,Direct Payments,04/12/2013,3301737322,740,REDACTED PERSONAL DATA
http://statistics.data.gov.uk/id/local-authority/38,Oxfordshire County Council,SCS Pooled Budgets,Community Support Budget - Abingdon,Other Agency and Contracted Services,57401,Direct Payments,04/12/2013,3301737324,920,REDACTED PERSONAL DATA
http://statistics.data.gov.uk/id/local-authority/38,Oxfordshire County Council,SCS Pooled Budgets,PHB OP Package,Other Agency and Contracted Services,57401,Direct Payments,04/12/2013,3301737325,4089.44,REDACTED PERSONAL DATA
http://statistics.data.gov.uk/id/local-authority/38,Oxfordshire County Council,SCS Pooled Budgets,Direct Payments North Team,Other Agency and Contracted Services,57401,Direct Payments,04/12/2013,3301737326,2015.64,REDACTED PERSONAL DATA
http://statistics.data.gov.uk/id/local-authority/38,Oxfordshire County Council,SCS Pooled Budgets,OP Pool Continuing Care Delegated Health,Other Agency and Contracted Services,57401,Direct Payments,04/12/2013,3301737327,1420,REDACTED PERSONAL DATA
http://statistics.data.gov.uk/id/local-authority/38,Oxfordshire County Council,SCS Pooled Budgets,Community Support Budget - City,Other Agency and Contracted Services,57401,Direct Payments,04/12/2013,3301737327,2920,REDACTED PERSONAL DATA
http://statistics.data.gov.uk/id/local-authority/38,Oxfordshire County Council,SCS Pooled Budgets,Direct Payments City Team,Other Agency and Contracted Services,57401,Direct Payments,04/12/2013,3301737328,594,REDACTED PERSONAL DATA
http://statistics.data.gov.uk/id/local-authority/38,Oxfordshire County Council,SCS Pooled Budgets,Community Support Budget - Didcot,Other Agency and Contracted Services,57401,Direct Payments,04/12/2013,3301737329,2320,REDACTED PERSONAL DATA
http://statistics.data.gov.uk/id/local-authority/38,Oxfordshire County Council,SCS Pooled Budgets,Direct Payments South Team,Other Agency and Contracted Services,57401,Direct Payments,04/12/2013,3301737330,1360,REDACTED PERSONAL DATA
http://statistics.data.gov.uk/id/local-authority/38,Oxfordshire County Council,SCS Pooled Budgets,Direct Payments North Team,Other Agency and Contracted Services,57401,Direct Payments,04/12/2013,3301737331,4969.8,REDACTED PERSONAL DATA
http://statistics.data.gov.uk/id/local-authority/38,Oxfordshire County Council,SCS Pooled Budgets,Direct Payments North Team,Other Agency and Contracted Services,57401,Direct Payments,04/12/2013,3301737332,4983.08,REDACTED PERSONAL DATA
http://statistics.data.gov.uk/id/local-authority/38,Oxfordshire County Council,SCS Pooled Budgets,Direct Payments South Team,Other Agency and Contracted Services,57401,Direct Payments,04/12/2013,3301737333,1787.52,REDACTED PERSONAL DATA
http://statistics.data.gov.uk/id/local-authority/38,Oxfordshire County Council,SCS Pooled Budgets,Direct Payments South Team,Other Agency and Contracted Services,57401,Direct Payments,04/12/2013,3301737334,5397,REDACTED PERSONAL DATA
http://statistics.data.gov.uk/id/local-authority/38,Oxfordshire County Council,SCS Pooled Budgets,Direct Payments South Team,Other Agency and Contracted Services,57401,Direct Payments,04/12/2013,3301737336,574.04,REDACTED PERSONAL DATA
http://statistics.data.gov.uk/id/local-authority/38,Oxfordshire County Council,SCS Pooled Budgets,Direct Payments South Team,Other Agency and Contracted Services,57401,Direct Payments,04/12/2013,3301737339,3808.36,REDACTED PERSONAL DATA
http://statistics.data.gov.uk/id/local-authority/38,Oxfordshire County Council,SCS Pooled Budgets,Community Support Budget - Thame,Other Agency and Contracted Services,57401,Direct Payments,04/12/2013,3301737340,1776,REDACTED PERSONAL DATA
http://statistics.data.gov.uk/id/local-authority/38,Oxfordshire County Council,SCS Pooled Budgets,Direct Payments North Team,Other Agency and Contracted Services,57401,Direct Payments,04/12/2013,3301737341,14465.24,REDACTED PERSONAL DATA
http://statistics.data.gov.uk/id/local-authority/38,Oxfordshire County Council,SCS Pooled Budgets,PD CS Purch Budget - Health S28a JC,Other Agency and Contracted Services,57401,Direct Payments,04/12/2013,3301737342,728,REDACTED PERSONAL DATA
http://statistics.data.gov.uk/id/local-authority/38,Oxfordshire County Council,SCS Pooled Budgets,PD Comm Supp Budget - Banbury,Other Agency and Contracted Services,57401,Direct Payments,04/12/2013,3301737342,2416.36,REDACTED PERSONAL DATA
http://statistics.data.gov.uk/id/local-authority/38,Oxfordshire County Council,SCS Pooled Budgets,PD Community Support Budget - Kidlington,Other Agency and Contracted Services,57401,Direct Payments,04/12/2013,3301737343,2170.08,REDACTED PERSONAL DATA
http://statistics.data.gov.uk/id/local-authority/38,Oxfordshire County Council,SCS Pooled Budgets,Direct Payments North Team,Other Agency and Contracted Services,57401,Direct Payments,04/12/2013,3301737345,8553.08,REDACTED PERSONAL DATA
http://statistics.data.gov.uk/id/local-authority/38,Oxfordshire County Council,SCS Pooled Budgets,PD Comm Supp Purchasg Budget - Witney,Other Agency and Contracted Services,57401,Direct Payments,04/12/2013,3301737346,3458.36,REDACTED PERSONAL DATA
http://statistics.data.gov.uk/id/local-authority/38,Oxfordshire County Council,SCS Pooled Budgets,Direct Payments North Team,Other Agency and Contracted Services,57401,Direct Payments,04/12/2013,3301737347,6397.32,REDACTED PERSONAL DATA
http://statistics.data.gov.uk/id/local-authority/38,Oxfordshire County Council,SCS Pooled Budgets,Direct Payments North Team,Other Agency and Contracted Services,57401,Direct Payments,04/12/2013,3301737350,7448.88,REDACTED PERSONAL DATA
http://statistics.data.gov.uk/id/local-authority/38,Oxfordshire County Council,SCS Pooled Budgets,Community Support Budget - Banbury,Other Agency and Contracted Services,57401,Direct Payments,04/12/2013,3301737352,1159.8,REDACTED PERSONAL DATA
http://statistics.data.gov.uk/id/local-authority/38,Oxfordshire County Council,SCS Pooled Budgets,Direct Payments South Team,Other Agency and Contracted Services,57401,Direct Payments,04/12/2013,3301737354,1494.44,REDACTED PERSONAL DATA
http://statistics.data.gov.uk/id/local-authority/38,Oxfordshire County Council,SCS Pooled Budgets,PD Comm Supp Purchasg Budget - Witney,Other Agency and Contracted Services,57401,Direct Payments,04/12/2013,3301737355,1240.84,REDACTED PERSONAL DATA
http://statistics.data.gov.uk/id/local-authority/38,Oxfordshire County Council,SCS Pooled Budgets,Community Support Budget - Chipping Nort,Other Agency and Contracted Services,57401,Direct Payments,04/12/2013,3301737356,964,REDACTED PERSONAL DATA
http://statistics.data.gov.uk/id/local-authority/38,Oxfordshire County Council,SCS Pooled Budgets,PD Comm Supp Budgt - Bicester/Kidlington,Other Agency and Contracted Services,57401,Direct Payments,04/12/2013,3301737357,1505.48,REDACTED PERSONAL DATA
http://statistics.data.gov.uk/id/local-authority/38,Oxfordshire County Council,SCS Pooled Budgets,Community Support Budget - Banbury,Other Agency and Contracted Services,57401,Direct Payments,04/12/2013,3301737358,1614.32,Citibank NA London
http://statistics.data.gov.uk/id/local-authority/38,Oxfordshire County Council,SCS Pooled Budgets,OP Pool Continuing Care Delegated Health,Other Agency and Contracted Services,57401,Direct Payments,04/12/2013,3301737358,1380,Citibank NA London
http://statistics.data.gov.uk/id/local-authority/38,Oxfordshire County Council,SCS Pooled Budgets,Community Support Budget - Henley,Other Agency and Contracted Services,57401,Direct Payments,04/12/2013,3301737359,1924,Citibank NA London
http://statistics.data.gov.uk/id/local-authority/38,Oxfordshire County Council,SCS Pooled Budgets,Community Support Budget - Chipping Nort,Other Agency and Contracted Services,57401,Direct Payments,04/12/2013,3301737361,540,Citibank NA London
http://statistics.data.gov.uk/id/local-authority/38,Oxfordshire County Council,SCS Pooled Budgets,PD Comm Supp Purchasg Budget - Witney,Other Agency and Contracted Services,57401,Direct Payments,04/12/2013,3301737362,784,Citibank NA London
http://statistics.data.gov.uk/id/local-authority/38,Oxfordshire County Council,SCS Pooled Budgets,Community Support Budget - Didcot,Other Agency and Contracted Services,57401,Direct Payments,04/12/2013,3301737363,2268.6,Citibank NA London
http://statistics.data.gov.uk/id/local-authority/38,Oxfordshire County Council,SCS Pooled Budgets,PD Comm Supp Budget - Banbury,Other Agency and Contracted Services,57401,Direct Payments,04/12/2013,3301737365,1016,Citibank NA London
http://statistics.data.gov.uk/id/local-authority/38,Oxfordshire County Council,SCS Pooled Budgets,Direct Payments South Team,Other Agency and Contracted Services,57401,Direct Payments,04/12/2013,3301737366,2634.16,Citibank NA London
http://statistics.data.gov.uk/id/local-authority/38,Oxfordshire County Council,SCS Pooled Budgets,PD Comm Supp Purchasg Budget - Abingdon,Other Agency and Contracted Services,57401,Direct Payments,04/12/2013,3301737369,789.4,Citibank NA London
http://statistics.data.gov.uk/id/local-authority/38,Oxfordshire County Council,SCS Pooled Budgets,PD Comm Supp Purchasg Budget - Abingdon,Other Agency and Contracted Services,57401,Direct Payments,04/12/2013,3301737370,714.6,Citibank NA London
http://statistics.data.gov.uk/id/local-authority/38,Oxfordshire County Council,SCS Pooled Budgets,Community Support Budget - Thame,Other Agency and Contracted Services,57401,Direct Payments,04/12/2013,3301737372,1120,WK2 Advance Housing & Support
http://statistics.data.gov.uk/id/local-authority/38,Oxfordshire County Council,SCS Pooled Budgets,Community Support Budget - Thame,Other Agency and Contracted Services,57401,Direct Payments,04/12/2013,3301737372,605.71,WK2 Advance Housing & Support
http://statistics.data.gov.uk/id/local-authority/38,Oxfordshire County Council,SCS Pooled Budgets,Community Support Budget - Kidlington,Other Agency and Contracted Services,57401,Direct Payments,04/12/2013,3301737373,958,WK2 Advance Housing & Support
http://statistics.data.gov.uk/id/local-authority/38,Oxfordshire County Council,SCS Pooled Budgets,Community Support Budget - Banbury,Other Agency and Contracted Services,57401,Direct Payments,04/12/2013,3301737376,718,WK2 Advance Housing & Support
http://statistics.data.gov.uk/id/local-authority/38,Oxfordshire County Council,SCS Pooled Budgets,Community Support Budget - Witney,Other Agency and Contracted Services,57401,Direct Payments,04/12/2013,3301737377,778.28,WK2 Advance Housing & Support
http://statistics.data.gov.uk/id/local-authority/38,Oxfordshire County Council,SCS Pooled Budgets,Direct Payments North Team,Other Agency and Contracted Services,57401,Direct Payments,04/12/2013,3301737378,610,WK2 Advance Housing & Support
http://statistics.data.gov.uk/id/local-authority/38,Oxfordshire County Council,SCS Pooled Budgets,Community Support Budget - Banbury,Other Agency and Contracted Services,57401,Direct Payments,04/12/2013,3301737381,528,WK2 Advance Housing & Support
http://statistics.data.gov.uk/id/local-authority/38,Oxfordshire County Council,SCS Pooled Budgets,PD Comm Supp Budget - Banbury,Other Agency and Contracted Services,57401,Direct Payments,04/12/2013,3301737392,631.6,WK2 Advance Housing & Support
http://statistics.data.gov.uk/id/local-authority/38,Oxfordshire County Council,SCS Pooled Budgets,Community Support Budget - Banbury,Other Agency and Contracted Services,57401,Direct Payments,04/12/2013,3301737396,598,WK2 Advance Housing & Support
http://statistics.data.gov.uk/id/local-authority/38,Oxfordshire County Council,SCS Pooled Budgets,Community Support Budget - City,Other Agency and Contracted Services,57401,Direct Payments,04/12/2013,3301737397,2100.12,WK2 Advance Housing & Support
http://statistics.data.gov.uk/id/local-authority/38,Oxfordshire County Council,SCS Pooled Budgets,Community Support Budget - City,Other Agency and Contracted Services,57401,Direct Payments,04/12/2013,3301737397,1050.06,WK2 Advance Housing & Support
http://statistics.data.gov.uk/id/local-authority/38,Oxfordshire County Council,SCS Pooled Budgets,Community Support Budget - City,Other Agency and Contracted Services,57401,Direct Payments,04/12/2013,3301737397,1050.06,WK2 Advance Housing & Support
http://statistics.data.gov.uk/id/local-authority/38,Oxfordshire County Council,SCS Pooled Budgets,PD Comm Supp Budget - Banbury,Other Agency and Contracted Services,57401,Direct Payments,04/12/2013,3301737399,651.96,WK2 Advance Housing & Support
http://statistics.data.gov.uk/id/local-authority/38,Oxfordshire County Council,SCS Pooled Budgets,Community Support Budget - Banbury,Other Agency and Contracted Services,57401,Direct Payments,04/12/2013,3301737400,1196,WK2 Advance Housing & Support
http://statistics.data.gov.uk/id/local-authority/38,Oxfordshire County Council,SCS Pooled Budgets,Community Support Budget - Banbury,Other Agency and Contracted Services,57401,Direct Payments,04/12/2013,3301737400,598,WK2 Advance Housing & Support
http://statistics.data.gov.uk/id/local-authority/38,Oxfordshire County Council,SCS Pooled Budgets,Community Support Budget - Banbury,Other Agency and Contracted Services,57401,Direct Payments,04/12/2013,3301737400,598,WK2 Advance Housing & Support
http://statistics.data.gov.uk/id/local-authority/38,Oxfordshire County Council,SCS Pooled Budgets,PD Comm Supp Purchasg Budget - City,Other Agency and Contracted Services,57401,Direct Payments,04/12/2013,3301737402,534.29,WK2 Advance Housing & Support
http://statistics.data.gov.uk/id/local-authority/38,Oxfordshire County Council,SCS Pooled Budgets,PD Comm Supp Purchasg Budget - City,Other Agency and Contracted Services,57401,Direct Payments,04/12/2013,3301737406,556,WK2 Advance Housing & Support
http://statistics.data.gov.uk/id/local-authority/38,Oxfordshire County Council,SCS Pooled Budgets,Community Support Budget - Didcot,Other Agency and Contracted Services,57401,Direct Payments,04/12/2013,3301737407,1182.9,WK2 Advance Housing & Support
http://statistics.data.gov.uk/id/local-authority/38,Oxfordshire County Council,SCS Pooled Budgets,Community Support Budget - Abingdon,Other Agency and Contracted Services,57401,Direct Payments,04/12/2013,3301737410,532.76,WK2 Advance Housing & Support
http://statistics.data.gov.uk/id/local-authority/38,Oxfordshire County Council,SCS Pooled Budgets,Community Support Budget - Banbury,Other Agency and Contracted Services,57401,Direct Payments,04/12/2013,3301737414,1008.86,WK2 Advance Housing & Support
http://statistics.data.gov.uk/id/local-authority/38,Oxfordshire County Council,SCS Pooled Budgets,Community Support Budget - Banbury,Other Agency and Contracted Services,57401,Direct Payments,04/12/2013,3301737414,-919.29,WK2 Advance Housing & Support
http://statistics.data.gov.uk/id/local-authority/38,Oxfordshire County Council,SCS Pooled Budgets,PD Comm Supp Purchasg Budget - City,Other Agency and Contracted Services,57401,Direct Payments,04/12/2013,3301737416,635.4,WK2 Advance Housing & Support
http://statistics.data.gov.uk/id/local-authority/38,Oxfordshire County Council,SCS Pooled Budgets,PD Comm Supp Purchasg Budget - Didcot,Other Agency and Contracted Services,57401,Direct Payments,04/12/2013,3301737426,724,WK2 Advance Housing & Support
http://statistics.data.gov.uk/id/local-authority/38,Oxfordshire County Council,SCS Pooled Budgets,PD Comm Supp Budget - Banbury,Other Agency and Contracted Services,57401,Direct Payments,04/12/2013,3301737427,520,WK2 Advance Housing & Support
http://statistics.data.gov.uk/id/local-authority/38,Oxfordshire County Council,SCS Pooled Budgets,PD Comm Supp Budget - Banbury,Other Agency and Contracted Services,57401,Direct Payments,04/12/2013,3301737427,520,WK2 Advance Housing & Support
http://statistics.data.gov.uk/id/local-authority/38,Oxfordshire County Council,SCS Pooled Budgets,PD Comm Supp Budget - Banbury,Other Agency and Contracted Services,57401,Direct Payments,04/12/2013,3301737427,1040,WK2 Advance Housing & Support
http://statistics.data.gov.uk/id/local-authority/38,Oxfordshire County Council,SCS Pooled Budgets,Community Support Budget - City,Other Agency and Contracted Services,57401,Direct Payments,04/12/2013,3301737429,630,WK2 Advance Housing & Support
http://statistics.data.gov.uk/id/local-authority/38,Oxfordshire County Council,SCS Pooled Budgets,Community Support Budget - City,Other Agency and Contracted Services,57401,Direct Payments,04/12/2013,3301737429,1260,WK2 Advance Housing & Support
http://statistics.data.gov.uk/id/local-authority/38,Oxfordshire County Council,SCS Pooled Budgets,Community Support Budget - City,Other Agency and Contracted Services,57401,Direct Payments,04/12/2013,3301737429,630,WK2 Advance Housing & Support
http://statistics.data.gov.uk/id/local-authority/38,Oxfordshire County Council,SCS Pooled Budgets,Community Support Budget - Banbury,Other Agency and Contracted Services,57401,Direct Payments,04/12/2013,3301737430,1122,WK2 Advance Housing & Support
http://statistics.data.gov.uk/id/local-authority/38,Oxfordshire County Council,SCS Pooled Budgets,Community Support Budget - Banbury,Other Agency and Contracted Services,57401,Direct Payments,04/12/2013,3301737430,561,WK2 Advance Housing & Support
http://statistics.data.gov.uk/id/local-authority/38,Oxfordshire County Council,SCS Pooled Budgets,Community Support Budget - Banbury,Other Agency and Contracted Services,57401,Direct Payments,04/12/2013,3301737430,561,WK2 Advance Housing & Support
http://statistics.data.gov.uk/id/local-authority/38,Oxfordshire County Council,SCS Pooled Budgets,Community Support Budget - Banbury,Other Agency and Contracted Services,57401,Direct Payments,04/12/2013,3301737433,1494,WK2 Advance Housing & Support
http://statistics.data.gov.uk/id/local-authority/38,Oxfordshire County Council,SCS Pooled Budgets,Community Support Budget - Banbury,Other Agency and Contracted Services,57401,Direct Payments,04/12/2013,3301737433,747,WK2 Advance Housing & Support
http://statistics.data.gov.uk/id/local-authority/38,Oxfordshire County Council,SCS Pooled Budgets,Community Support Budget - Banbury,Other Agency and Contracted Services,57401,Direct Payments,04/12/2013,3301737433,747,WK2 Advance Housing & Support
http://statistics.data.gov.uk/id/local-authority/38,Oxfordshire County Council,SCS Pooled Budgets,Community Support Budget - Witney,Other Agency and Contracted Services,57401,Direct Payments,04/12/2013,3301737434,1410.76,WK2 Advance Housing & Support
http://statistics.data.gov.uk/id/local-authority/38,Oxfordshire County Council,SCS Pooled Budgets,Community Support Budget - Witney,Other Agency and Contracted Services,57401,Direct Payments,04/12/2013,3301737434,705.38,WK2 Advance Housing & Support
http://statistics.data.gov.uk/id/local-authority/38,Oxfordshire County Council,SCS Pooled Budgets,Community Support Budget - Witney,Other Agency and Contracted Services,57401,Direct Payments,04/12/2013,3301737434,705.38,WK2 Advance Housing & Support
http://statistics.data.gov.uk/id/local-authority/38,Oxfordshire County Council,SCS Pooled Budgets,Community Support Budget - Chipping Nort,Other Agency and Contracted Services,57401,Direct Payments,04/12/2013,3301737436,1728,WK2 Advance Housing & Support
http://statistics.data.gov.uk/id/local-authority/38,Oxfordshire County Council,SCS Pooled Budgets,Community Support Budget - Chipping Nort,Other Agency and Contracted Services,57401,Direct Payments,04/12/2013,3301737436,864,WK2 Advance Housing & Support
http://statistics.data.gov.uk/id/local-authority/38,Oxfordshire County Council,SCS Pooled Budgets,Community Support Budget - Chipping Nort,Other Agency and Contracted Services,57401,Direct Payments,04/12/2013,3301737436,864,WK2 Advance Housing & Support
http://statistics.data.gov.uk/id/local-authority/38,Oxfordshire County Council,SCS Pooled Budgets,PD Comm Supp Purchasg Budget - City,Other Agency and Contracted Services,57401,Direct Payments,04/12/2013,3301737437,1012,WK2 Advance Housing & Support
http://statistics.data.gov.uk/id/local-authority/38,Oxfordshire County Council,SCS Pooled Budgets,PD Comm Supp Purchasg Budget - City,Other Agency and Contracted Services,57401,Direct Payments,04/12/2013,3301737437,506,WK2 Advance Housing & Support
http://statistics.data.gov.uk/id/local-authority/38,Oxfordshire County Council,SCS Pooled Budgets,PD Comm Supp Budgt - Bicester/Kidlington,Other Agency and Contracted Services,57401,Direct Payments,04/12/2013,3301737437,570.05,WK2 Advance Housing & Support
http://statistics.data.gov.uk/id/local-authority/38,Oxfordshire County Council,SCS Pooled Budgets,Community Support Budget - Banbury,Other Agency and Contracted Services,57401,Direct Payments,04/12/2013,3301737439,654,WK2 Advance Housing & Support
http://statistics.data.gov.uk/id/local-authority/38,Oxfordshire County Council,SCS Pooled Budgets,Community Support Budget - Bicester,Other Agency and Contracted Services,57401,Direct Payments,04/12/2013,3301737440,560,WK2 Advance Housing & Support
http://statistics.data.gov.uk/id/local-authority/38,Oxfordshire County Council,SCS Pooled Budgets,Community Support Budget - City,Other Agency and Contracted Services,57401,Direct Payments,04/12/2013,3301737443,1500,WK2 Advance Housing & Support
http://statistics.data.gov.uk/id/local-authority/38,Oxfordshire County Council,SCS Pooled Budgets,Community Support Budget - City,Other Agency and Contracted Services,57401,Direct Payments,04/12/2013,3301737443,750,WK2 Advance Housing & Support
http://statistics.data.gov.uk/id/local-authority/38,Oxfordshire County Council,SCS Pooled Budgets,Community Support Budget - City,Other Agency and Contracted Services,57401,Direct Payments,04/12/2013,3301737443,750,WK2 Advance Housing & Support
http://statistics.data.gov.uk/id/local-authority/38,Oxfordshire County Council,SCS Pooled Budgets,PD CS Purch Budget - Health S28a JC,Other Agency and Contracted Services,57401,Direct Payments,04/12/2013,3301737446,567.88,WK2 Advance Housing & Support
http://statistics.data.gov.uk/id/local-authority/38,Oxfordshire County Council,SCS Pooled Budgets,PD Comm Supp Purchasg Budget - City,Other Agency and Contracted Services,57401,Direct Payments,04/12/2013,3301737446,982.12,WK2 Advance Housing & Support
http://statistics.data.gov.uk/id/local-authority/38,Oxfordshire County Council,SCS Pooled Budgets,PD Community Support Budget - Kidlington,Other Agency and Contracted Services,57401,Direct Payments,04/12/2013,3301737450,600,WK2 Advance Housing & Support
http://statistics.data.gov.uk/id/local-authority/38,Oxfordshire County Council,SCS Pooled Budgets,PD Community Support Budget - Kidlington,Other Agency and Contracted Services,57401,Direct Payments,04/12/2013,3301737450,1200,WK2 Advance Housing & Support
http://statistics.data.gov.uk/id/local-authority/38,Oxfordshire County Council,SCS Pooled Budgets,PD Community Support Budget - Kidlington,Other Agency and Contracted Services,57401,Direct Payments,04/12/2013,3301737450,600,WK2 Advance Housing & Support
http://statistics.data.gov.uk/id/local-authority/38,Oxfordshire County Council,SCS Pooled Budgets,Community Support Budget - Faringdon,Other Agency and Contracted Services,57401,Direct Payments,04/12/2013,3301737453,895.2,WK2 Advance Housing & Support
http://statistics.data.gov.uk/id/local-authority/38,Oxfordshire County Council,SCS Pooled Budgets,Community Support Budget - Faringdon,Other Agency and Contracted Services,57401,Direct Payments,04/12/2013,3301737453,5307.26,WK2 Advance Housing & Support
http://statistics.data.gov.uk/id/local-authority/38,Oxfordshire County Council,SCS Pooled Budgets,Community Support Budget - Faringdon,Other Agency and Contracted Services,57401,Direct Payments,04/12/2013,3301737453,-5022.69,WK2 Advance Housing & Support
http://statistics.data.gov.uk/id/local-authority/38,Oxfordshire County Council,SCS Pooled Budgets,Community Support Budget - Banbury,Other Agency and Contracted Services,57401,Direct Payments,04/12/2013,3301737455,1074,WK2 Advance Housing & Support
http://statistics.data.gov.uk/id/local-authority/38,Oxfordshire County Council,SCS Pooled Budgets,Community Support Budget - Banbury,Other Agency and Contracted Services,57401,Direct Payments,04/12/2013,3301737455,537,WK2 Advance Housing & Support
http://statistics.data.gov.uk/id/local-authority/38,Oxfordshire County Council,SCS Pooled Budgets,Community Support Budget - Banbury,Other Agency and Contracted Services,57401,Direct Payments,04/12/2013,3301737455,537,WK2 Advance Housing & Support
http://statistics.data.gov.uk/id/local-authority/38,Oxfordshire County Council,SCS Pooled Budgets,Community Support Budget - Kidlington,Other Agency and Contracted Services,57401,Direct Payments,04/12/2013,3301737456,2032.6,WK2 Advance Housing & Support
http://statistics.data.gov.uk/id/local-authority/38,Oxfordshire County Council,SCS Pooled Budgets,Community Support Budget - Kidlington,Other Agency and Contracted Services,57401,Direct Payments,04/12/2013,3301737456,1016.3,WK2 Advance Housing & Support
http://statistics.data.gov.uk/id/local-authority/38,Oxfordshire County Council,SCS Pooled Budgets,Community Support Budget - Kidlington,Other Agency and Contracted Services,57401,Direct Payments,04/12/2013,3301737456,1016.3,WK2 Advance Housing & Support
http://statistics.data.gov.uk/id/local-authority/38,Oxfordshire County Council,SCS Pooled Budgets,Community Support Budget - Banbury,Other Agency and Contracted Services,57401,Direct Payments,04/12/2013,3301737459,567,WK2 Advance Housing & Support
http://statistics.data.gov.uk/id/local-authority/38,Oxfordshire County Council,SCS Pooled Budgets,Community Support Budget - Banbury,Other Agency and Contracted Services,57401,Direct Payments,04/12/2013,3301737459,1134,WK2 Advance Housing & Support
http://statistics.data.gov.uk/id/local-authority/38,Oxfordshire County Council,SCS Pooled Budgets,Community Support Budget - Banbury,Other Agency and Contracted Services,57401,Direct Payments,04/12/2013,3301737459,567,WK2 Advance Housing & Support
http://statistics.data.gov.uk/id/local-authority/38,Oxfordshire County Council,SCS Pooled Budgets,Community Support Budget - Didcot,Other Agency and Contracted Services,57401,Direct Payments,04/12/2013,3301737460,628,WK2 Advance Housing & Support
http://statistics.data.gov.uk/id/local-authority/38,Oxfordshire County Council,SCS Pooled Budgets,Personal Health Budgets PD (PCT),Other Agency and Contracted Services,57401,Direct Payments,04/12/2013,3301737461,3284.88,WK2 Advance Housing & Support
http://statistics.data.gov.uk/id/local-authority/38,Oxfordshire County Council,SCS Pooled Budgets,Personal Health Budgets PD (PCT),Other Agency and Contracted Services,57401,Direct Payments,04/12/2013,3301737461,1642.44,WK2 Advance Housing & Support
http://statistics.data.gov.uk/id/local-authority/38,Oxfordshire County Council,SCS Pooled Budgets,Personal Health Budgets PD (PCT),Other Agency and Contracted Services,57401,Direct Payments,04/12/2013,3301737461,1642.44,WK2 Advance Housing & Support
http://statistics.data.gov.uk/id/local-authority/38,Oxfordshire County Council,SCS Pooled Budgets,PD Comm Supp Purchasg Budget - City,Other Agency and Contracted Services,57401,Direct Payments,04/12/2013,3301737462,620,WK2 Advance Housing & Support
http://statistics.data.gov.uk/id/local-authority/38,Oxfordshire County Council,SCS Pooled Budgets,Community Support Budget - City,Other Agency and Contracted Services,57401,Direct Payments,04/12/2013,3301737463,1061.54,WK2 Advance Housing & Support
http://statistics.data.gov.uk/id/local-authority/38,Oxfordshire County Council,SCS Pooled Budgets,Community Support Budget - City,Other Agency and Contracted Services,57401,Direct Payments,04/12/2013,3301737463,530.77,WK2 Advance Housing & Support
http://statistics.data.gov.uk/id/local-authority/38,Oxfordshire County Council,SCS Pooled Budgets,Community Support Budget - City,Other Agency and Contracted Services,57401,Direct Payments,04/12/2013,3301737463,530.77,WK2 Advance Housing & Support
http://statistics.data.gov.uk/id/local-authority/38,Oxfordshire County Council,SCS Pooled Budgets,Community Support Budget - Abingdon,Other Agency and Contracted Services,57401,Direct Payments,04/12/2013,3301737466,1040,WK2 Advance Housing & Support
http://statistics.data.gov.uk/id/local-authority/38,Oxfordshire County Council,SCS Pooled Budgets,Community Support Budget - Abingdon,Other Agency and Contracted Services,57401,Direct Payments,04/12/2013,3301737466,520,WK2 Advance Housing & Support
http://statistics.data.gov.uk/id/local-authority/38,Oxfordshire County Council,SCS Pooled Budgets,Community Support Budget - Abingdon,Other Agency and Contracted Services,57401,Direct Payments,04/12/2013,3301737466,520,WK2 Advance Housing & Support
http://statistics.data.gov.uk/id/local-authority/38,Oxfordshire County Council,SCS Pooled Budgets,Community Support Budget - Witney,Other Agency and Contracted Services,57401,Direct Payments,04/12/2013,3301737467,1414.54,WK2 Advance Housing & Support
http://statistics.data.gov.uk/id/local-authority/38,Oxfordshire County Council,SCS Pooled Budgets,Community Support Budget - Witney,Other Agency and Contracted Services,57401,Direct Payments,04/12/2013,3301737467,707.27,WK2 Advance Housing & Support
http://statistics.data.gov.uk/id/local-authority/38,Oxfordshire County Council,SCS Pooled Budgets,Community Support Budget - Witney,Other Agency and Contracted Services,57401,Direct Payments,04/12/2013,3301737467,707.27,WK2 Advance Housing & Support
http://statistics.data.gov.uk/id/local-authority/38,Oxfordshire County Council,SCS Pooled Budgets,Community Support Budget - Banbury,Other Agency and Contracted Services,57401,Direct Payments,04/12/2013,3301737475,982,WK2 Advance Housing & Support
http://statistics.data.gov.uk/id/local-authority/38,Oxfordshire County Council,SCS Pooled Budgets,Community Support Budget - Banbury,Other Agency and Contracted Services,57401,Direct Payments,04/12/2013,3301737476,567,WK2 Advance Housing & Support
http://statistics.data.gov.uk/id/local-authority/38,Oxfordshire County Council,SCS Pooled Budgets,Community Support Budget - Bicester,Other Agency and Contracted Services,57401,Direct Payments,04/12/2013,3301737478,1170,WK2 Advance Housing & Support
http://statistics.data.gov.uk/id/local-authority/38,Oxfordshire County Council,SCS Pooled Budgets,Community Support Budget - Bicester,Other Agency and Contracted Services,57401,Direct Payments,04/12/2013,3301737478,1170,WK2 Advance Housing & Support
http://statistics.data.gov.uk/id/local-authority/38,Oxfordshire County Council,SCS Pooled Budgets,Community Support Budget - Bicester,Other Agency and Contracted Services,57401,Direct Payments,04/12/2013,3301737478,2340,WK2 Advance Housing & Support
http://statistics.data.gov.uk/id/local-authority/38,Oxfordshire County Council,SCS Pooled Budgets,Community Support Budget - Thame,Other Agency and Contracted Services,57401,Direct Payments,04/12/2013,3301737481,1608,WK2 Advance Housing & Support
http://statistics.data.gov.uk/id/local-authority/38,Oxfordshire County Council,SCS Pooled Budgets,Community Support Budget - Thame,Other Agency and Contracted Services,57401,Direct Payments,04/12/2013,3301737481,804,WK2 Advance Housing & Support
http://statistics.data.gov.uk/id/local-authority/38,Oxfordshire County Council,SCS Pooled Budgets,Community Support Budget - Thame,Other Agency and Contracted Services,57401,Direct Payments,04/12/2013,3301737481,804,WK2 Advance Housing & Support
http://statistics.data.gov.uk/id/local-authority/38,Oxfordshire County Council,SCS Pooled Budgets,Community Support Budget - Bicester,Other Agency and Contracted Services,57401,Direct Payments,04/12/2013,3301737483,1741.43,WK2 Advance Housing & Support
http://statistics.data.gov.uk/id/local-authority/38,Oxfordshire County Council,SCS Pooled Budgets,Community Support Budget - City,Other Agency and Contracted Services,57401,Direct Payments,04/12/2013,3301737485,828,WK2 Advance Housing & Support
http://statistics.data.gov.uk/id/local-authority/38,Oxfordshire County Council,SCS Pooled Budgets,Community Support Budget - City,Other Agency and Contracted Services,57401,Direct Payments,04/12/2013,3301737486,1000,WK2 Advance Housing & Support
http://statistics.data.gov.uk/id/local-authority/38,Oxfordshire County Council,SCS Pooled Budgets,Community Support Budget - City,Other Agency and Contracted Services,57401,Direct Payments,04/12/2013,3301737486,6500,WK2 Advance Housing & Support
http://statistics.data.gov.uk/id/local-authority/38,Oxfordshire County Council,SCS Pooled Budgets,Community Support Budget - City,Other Agency and Contracted Services,57401,Direct Payments,04/12/2013,3301737486,-5850,WK2 Advance Housing & Support
http://statistics.data.gov.uk/id/local-authority/38,Oxfordshire County Council,SCS Pooled Budgets,Community Support Budget - City,Other Agency and Contracted Services,57401,Direct Payments,04/12/2013,3301737486,500,WK2 Advance Housing & Support
http://statistics.data.gov.uk/id/local-authority/38,Oxfordshire County Council,SCS Pooled Budgets,Community Support Budget - Witney,Other Agency and Contracted Services,57401,Direct Payments,04/12/2013,3301737487,542,WK2 Advance Housing & Support
http://statistics.data.gov.uk/id/local-authority/38,Oxfordshire County Council,SCS Pooled Budgets,Direct Payments City Team,Other Agency and Contracted Services,57401,Direct Payments,04/12/2013,3301737490,972,WK2 Advance Housing & Support
http://statistics.data.gov.uk/id/local-authority/38,Oxfordshire County Council,SCS Pooled Budgets,Direct Payments City Team,Other Agency and Contracted Services,57401,Direct Payments,04/12/2013,3301737491,750,WK2 Advance Housing & Support
http://statistics.data.gov.uk/id/local-authority/38,Oxfordshire County Council,SCS Pooled Budgets,Direct Payments North Team,Other Agency and Contracted Services,57401,Direct Payments,04/12/2013,3301737492,5121.2,WK2 Advance Housing & Support
http://statistics.data.gov.uk/id/local-authority/38,Oxfordshire County Council,SCS Pooled Budgets,Direct Payments North Team,Other Agency and Contracted Services,57401,Direct Payments,04/12/2013,3301737492,2560.6,WK2 Advance Housing & Support
http://statistics.data.gov.uk/id/local-authority/38,Oxfordshire County Council,SCS Pooled Budgets,Direct Payments North Team,Other Agency and Contracted Services,57401,Direct Payments,04/12/2013,3301737492,2560.6,WK2 Advance Housing & Support
http://statistics.data.gov.uk/id/local-authority/38,Oxfordshire County Council,SCS Pooled Budgets,Direct Payments North Team,Other Agency and Contracted Services,57401,Direct Payments,04/12/2013,3301737494,1092.12,WK2 Advance Housing & Support
http://statistics.data.gov.uk/id/local-authority/38,Oxfordshire County Council,SCS Pooled Budgets,Direct Payments North Team,Other Agency and Contracted Services,57401,Direct Payments,04/12/2013,3301737494,546.06,WK2 Advance Housing & Support
http://statistics.data.gov.uk/id/local-authority/38,Oxfordshire County Council,SCS Pooled Budgets,Direct Payments North Team,Other Agency and Contracted Services,57401,Direct Payments,04/12/2013,3301737494,546.06,WK2 Advance Housing & Support
http://statistics.data.gov.uk/id/local-authority/38,Oxfordshire County Council,SCS Pooled Budgets,PD Comm Supp Budgt - Bicester/Kidlington,Other Agency and Contracted Services,57401,Direct Payments,04/12/2013,3301737495,1092,WK2 Advance Housing & Support
http://statistics.data.gov.uk/id/local-authority/38,Oxfordshire County Council,SCS Pooled Budgets,PD Comm Supp Budgt - Bicester/Kidlington,Other Agency and Contracted Services,57401,Direct Payments,04/12/2013,3301737495,546,WK2 Advance Housing & Support
http://statistics.data.gov.uk/id/local-authority/38,Oxfordshire County Council,SCS Pooled Budgets,PD Comm Supp Budgt - Bicester/Kidlington,Other Agency and Contracted Services,57401,Direct Payments,04/12/2013,3301737495,546,WK2 Advance Housing & Support
http://statistics.data.gov.uk/id/local-authority/38,Oxfordshire County Council,SCS Pooled Budgets,Community Support Budget - Kidlington,Other Agency and Contracted Services,57401,Direct Payments,04/12/2013,3301737496,718,WK2 Advance Housing & Support
http://statistics.data.gov.uk/id/local-authority/38,Oxfordshire County Council,SCS Pooled Budgets,Community Support Budget - Witney,Other Agency and Contracted Services,57401,Direct Payments,04/12/2013,3301737498,1757.14,WK2 Advance Housing & Support
http://statistics.data.gov.uk/id/local-authority/38,Oxfordshire County Council,SCS Pooled Budgets,Community Support Budget - Witney,Other Agency and Contracted Services,57401,Direct Payments,04/12/2013,3301737498,984,WK2 Advance Housing & Support
http://statistics.data.gov.uk/id/local-authority/38,Oxfordshire County Council,SCS Pooled Budgets,Community Support Budget - Wantage,Other Agency and Contracted Services,57401,Direct Payments,04/12/2013,3301737502,778,WK2 Advance Housing & Support
http://statistics.data.gov.uk/id/local-authority/38,Oxfordshire County Council,SCS Pooled Budgets,Direct Payments North Team,Other Agency and Contracted Services,57401,Direct Payments,04/12/2013,3301737503,1082.24,WK2 Advance Housing & Support
http://statistics.data.gov.uk/id/local-authority/38,Oxfordshire County Council,SCS Pooled Budgets,Direct Payments North Team,Other Agency and Contracted Services,57401,Direct Payments,04/12/2013,3301737503,541.12,WK2 Advance Housing & Support
http://statistics.data.gov.uk/id/local-authority/38,Oxfordshire County Council,SCS Pooled Budgets,Direct Payments North Team,Other Agency and Contracted Services,57401,Direct Payments,04/12/2013,3301737503,541.12,WK2 Advance Housing & Support
http://statistics.data.gov.uk/id/local-authority/38,Oxfordshire County Council,SCS Pooled Budgets,Community Support Budget - Witney,Other Agency and Contracted Services,57401,Direct Payments,04/12/2013,3301737506,790,WK2 Advance Housing & Support
http://statistics.data.gov.uk/id/local-authority/38,Oxfordshire County Council,SCS Pooled Budgets,PD Comm Supp Purchasg Budget - City,Other Agency and Contracted Services,57401,Direct Payments,04/12/2013,3301737511,520.2,WK2 Advance Housing & Support
http://statistics.data.gov.uk/id/local-authority/38,Oxfordshire County Council,SCS Pooled Budgets,PD Comm Supp Purchasg Budget - City,Other Agency and Contracted Services,57401,Direct Payments,04/12/2013,3301737514,626,WK2 Advance Housing & Support
http://statistics.data.gov.uk/id/local-authority/38,Oxfordshire County Council,SCS Pooled Budgets,Direct Payments City Team,Other Agency and Contracted Services,57401,Direct Payments,04/12/2013,3301737516,803,WK2 Advance Housing & Support
http://statistics.data.gov.uk/id/local-authority/38,Oxfordshire County Council,SCS Pooled Budgets,Community Support Budget - Chipping Nort,Other Agency and Contracted Services,57401,Direct Payments,04/12/2013,3301737517,966,WK2 Advance Housing & Support
http://statistics.data.gov.uk/id/local-authority/38,Oxfordshire County Council,SCS Pooled Budgets,Community Support Budget - Abingdon,Other Agency and Contracted Services,57401,Direct Payments,04/12/2013,3301737519,2017.4,WK2 Advance Housing & Support
http://statistics.data.gov.uk/id/local-authority/38,Oxfordshire County Council,SCS Pooled Budgets,Community Support Budget - Abingdon,Other Agency and Contracted Services,57401,Direct Payments,04/12/2013,3301737519,576.4,WK2 Advance Housing & Support
http://statistics.data.gov.uk/id/local-authority/38,Oxfordshire County Council,SCS Pooled Budgets,Community Support Budget - Wantage,Other Agency and Contracted Services,57401,Direct Payments,04/12/2013,3301737521,1540,WK2 Advance Housing & Support
http://statistics.data.gov.uk/id/local-authority/38,Oxfordshire County Council,SCS Pooled Budgets,Community Support Budget - Wantage,Other Agency and Contracted Services,57401,Direct Payments,04/12/2013,3301737521,770,WK2 Advance Housing & Support
http://statistics.data.gov.uk/id/local-authority/38,Oxfordshire County Council,SCS Pooled Budgets,Community Support Budget - Wantage,Other Agency and Contracted Services,57401,Direct Payments,04/12/2013,3301737521,770,WK2 Advance Housing & Support
http://statistics.data.gov.uk/id/local-authority/38,Oxfordshire County Council,SCS Pooled Budgets,PD Comm Supp Purchasg Budget - Witney,Other Agency and Contracted Services,57401,Direct Payments,04/12/2013,3301737522,1190,WK2 Advance Housing & Support
http://statistics.data.gov.uk/id/local-authority/38,Oxfordshire County Council,SCS Pooled Budgets,PD Comm Supp Purchasg Budget - Witney,Other Agency and Contracted Services,57401,Direct Payments,04/12/2013,3301737522,1190,WK2 Advance Housing & Support
http://statistics.data.gov.uk/id/local-authority/38,Oxfordshire County Council,SCS Pooled Budgets,PD Comm Supp Purchasg Budget - Witney,Other Agency and Contracted Services,57401,Direct Payments,04/12/2013,3301737522,2380,WK2 Advance Housing & Support
http://statistics.data.gov.uk/id/local-authority/38,Oxfordshire County Council,SCS Pooled Budgets,Community Support Budget - Witney,Other Agency and Contracted Services,57401,Direct Payments,04/12/2013,3301737523,544,WK2 Advance Housing & Support
http://statistics.data.gov.uk/id/local-authority/38,Oxfordshire County Council,SCS Pooled Budgets,Continuing Health Care,Other Agency and Contracted Services,57401,Direct Payments,04/12/2013,3301737532,1282,WK2 Advance Housing & Support
http://statistics.data.gov.uk/id/local-authority/38,Oxfordshire County Council,SCS Pooled Budgets,Continuing Health Care,Other Agency and Contracted Services,57401,Direct Payments,04/12/2013,3301737532,641,WK2 Advance Housing & Support
http://statistics.data.gov.uk/id/local-authority/38,Oxfordshire County Council,SCS Pooled Budgets,Continuing Health Care,Other Agency and Contracted Services,57401,Direct Payments,04/12/2013,3301737532,641,WK2 Advance Housing & Support
http://statistics.data.gov.uk/id/local-authority/38,Oxfordshire County Council,SCS Pooled Budgets,Community Support Budget - Witney,Other Agency and Contracted Services,57401,Direct Payments,04/12/2013,3301737535,6843,WK2 Advance Housing & Support
http://statistics.data.gov.uk/id/local-authority/38,Oxfordshire County Council,SCS Pooled Budgets,Community Support Budget - Witney,Other Agency and Contracted Services,57401,Direct Payments,04/12/2013,3301737535,1368.6,WK2 Advance Housing & Support
http://statistics.data.gov.uk/id/local-authority/38,Oxfordshire County Council,Social & Community Services,Community Support Budget - City East,Other Agency and Contracted Services,57401,Direct Payments,04/12/2013,3301737536,7505.14,WK2 Advance Housing & Support
http://statistics.data.gov.uk/id/local-authority/38,Oxfordshire County Council,Social & Community Services,Community Support Budget - City East,Other Agency and Contracted Services,57401,Direct Payments,04/12/2013,3301737536,528,WK2 Advance Housing & Support
http://statistics.data.gov.uk/id/local-authority/38,Oxfordshire County Council,SCS Pooled Budgets,Direct Payments North Team,Other Agency and Contracted Services,57401,Direct Payments,04/12/2013,3301737538,570.2,WK2 Advance Housing & Support
http://statistics.data.gov.uk/id/local-authority/38,Oxfordshire County Council,SCS Pooled Budgets,Community Support Budget - Abingdon,Other Agency and Contracted Services,57401,Direct Payments,04/12/2013,3301737542,1188,WK2 Advance Housing & Support
http://statistics.data.gov.uk/id/local-authority/38,Oxfordshire County Council,SCS Pooled Budgets,Community Support Budget - Abingdon,Other Agency and Contracted Services,57401,Direct Payments,04/12/2013,3301737542,594,WK2 Advance Housing & Support
http://statistics.data.gov.uk/id/local-authority/38,Oxfordshire County Council,SCS Pooled Budgets,Community Support Budget - Abingdon,Other Agency and Contracted Services,57401,Direct Payments,04/12/2013,3301737542,594,WK2 Advance Housing & Support
http://statistics.data.gov.uk/id/local-authority/38,Oxfordshire County Council,SCS Pooled Budgets,Community Support Budget - City,Other Agency and Contracted Services,57401,Direct Payments,04/12/2013,3301737544,1026,WK2 Advance Housing & Support
http://statistics.data.gov.uk/id/local-authority/38,Oxfordshire County Council,SCS Pooled Budgets,Community Support Budget - City,Other Agency and Contracted Services,57401,Direct Payments,04/12/2013,3301737544,513,WK2 Advance Housing & Support
http://statistics.data.gov.uk/id/local-authority/38,Oxfordshire County Council,SCS Pooled Budgets,Community Support Budget - City,Other Agency and Contracted Services,57401,Direct Payments,04/12/2013,3301737544,513,WK2 Advance Housing & Support
http://statistics.data.gov.uk/id/local-authority/38,Oxfordshire County Council,SCS Pooled Budgets,Community Support Budget - Didcot,Other Agency and Contracted Services,57401,Direct Payments,04/12/2013,3301737545,693.62,WK2 Advance Housing & Support
http://statistics.data.gov.uk/id/local-authority/38,Oxfordshire County Council,SCS Pooled Budgets,Direct Payments North Team,Other Agency and Contracted Services,57401,Direct Payments,04/12/2013,3301737550,1097.76,WK2 Advance Housing & Support
http://statistics.data.gov.uk/id/local-authority/38,Oxfordshire County Council,SCS Pooled Budgets,Direct Payments North Team,Other Agency and Contracted Services,57401,Direct Payments,04/12/2013,3301737550,548.88,WK2 Advance Housing & Support
http://statistics.data.gov.uk/id/local-authority/38,Oxfordshire County Council,SCS Pooled Budgets,Direct Payments North Team,Other Agency and Contracted Services,57401,Direct Payments,04/12/2013,3301737550,548.88,WK2 Advance Housing & Support
http://statistics.data.gov.uk/id/local-authority/38,Oxfordshire County Council,SCS Pooled Budgets,Community Support Budget - Bicester,Other Agency and Contracted Services,57401,Direct Payments,04/12/2013,3301737552,954.36,WK2 Advance Housing & Support
http://statistics.data.gov.uk/id/local-authority/38,Oxfordshire County Council,Social & Community Services,Community Support Budget - City East,Other Agency and Contracted Services,57401,Direct Payments,04/12/2013,3301737555,576,WK2 Advance Housing & Support
http://statistics.data.gov.uk/id/local-authority/38,Oxfordshire County Council,SCS Pooled Budgets,PD Comm Supp Purchasg Budget - Witney,Other Agency and Contracted Services,57401,Direct Payments,04/12/2013,3301737556,1595.94,WK2 Advance Housing & Support
http://statistics.data.gov.uk/id/local-authority/38,Oxfordshire County Council,SCS Pooled Budgets,PD Comm Supp Purchasg Budget - Witney,Other Agency and Contracted Services,57401,Direct Payments,04/12/2013,3301737556,797.97,WK2 Advance Housing & Support
http://statistics.data.gov.uk/id/local-authority/38,Oxfordshire County Council,SCS Pooled Budgets,PD Comm Supp Purchasg Budget - Witney,Other Agency and Contracted Services,57401,Direct Payments,04/12/2013,3301737556,797.97,WK2 Advance Housing & Support
http://statistics.data.gov.uk/id/local-authority/38,Oxfordshire County Council,SCS Pooled Budgets,Community Support Budget - Wantage,Other Agency and Contracted Services,57401,Direct Payments,04/12/2013,3301737559,519.6,WK2 Advance Housing & Support
http://statistics.data.gov.uk/id/local-authority/38,Oxfordshire County Council,SCS Pooled Budgets,Community Support Budget - Abingdon,Other Agency and Contracted Services,57401,Direct Payments,04/12/2013,3301737561,712,WK2 Advance Housing & Support
http://statistics.data.gov.uk/id/local-authority/38,Oxfordshire County Council,SCS Pooled Budgets,Direct Payments South Team,Other Agency and Contracted Services,57401,Direct Payments,04/12/2013,3301737562,913.16,WK2 Advance Housing & Support
http://statistics.data.gov.uk/id/local-authority/38,Oxfordshire County Council,SCS Pooled Budgets,Community Support Budget - Abingdon,Other Agency and Contracted Services,57401,Direct Payments,04/12/2013,3301737563,1540.5,WK2 Advance Housing & Support
http://statistics.data.gov.uk/id/local-authority/38,Oxfordshire County Council,SCS Pooled Budgets,Community Support Budget - Abingdon,Other Agency and Contracted Services,57401,Direct Payments,04/12/2013,3301737563,770.25,WK2 Advance Housing & Support
http://statistics.data.gov.uk/id/local-authority/38,Oxfordshire County Council,SCS Pooled Budgets,Community Support Budget - Abingdon,Other Agency and Contracted Services,57401,Direct Payments,04/12/2013,3301737563,770.25,WK2 Advance Housing & Support
http://statistics.data.gov.uk/id/local-authority/38,Oxfordshire County Council,SCS Pooled Budgets,PD Comm Supp Purchasg Budget - City,Other Agency and Contracted Services,57401,Direct Payments,04/12/2013,3301737565,1476.57,WK2 Advance Housing & Support
http://statistics.data.gov.uk/id/local-authority/38,Oxfordshire County Council,SCS Pooled Budgets,PD Comm Supp Purchasg Budget - City,Other Agency and Contracted Services,57401,Direct Payments,04/12/2013,3301737565,-1064,WK2 Advance Housing & Support
http://statistics.data.gov.uk/id/local-authority/38,Oxfordshire County Council,SCS Pooled Budgets,PD Comm Supp Purchasg Budget - City,Other Agency and Contracted Services,57401,Direct Payments,04/12/2013,3301737568,514.66,WK2 Advance Housing & Support
http://statistics.data.gov.uk/id/local-authority/38,Oxfordshire County Council,SCS Pooled Budgets,PD Comm Supp Purchasg Budget - Abingdon,Other Agency and Contracted Services,57401,Direct Payments,04/12/2013,3301737569,630,WK2 Advance Housing & Support
http://statistics.data.gov.uk/id/local-authority/38,Oxfordshire County Council,SCS Pooled Budgets,Personal Health Budgets PD (PCT),Other Agency and Contracted Services,57401,Direct Payments,04/12/2013,3301737570,4798.12,WK2 Advance Housing & Support
http://statistics.data.gov.uk/id/local-authority/38,Oxfordshire County Council,SCS Pooled Budgets,Personal Health Budgets PD (PCT),Other Agency and Contracted Services,57401,Direct Payments,04/12/2013,3301737570,2399.06,WK2 Advance Housing & Support
http://statistics.data.gov.uk/id/local-authority/38,Oxfordshire County Council,SCS Pooled Budgets,Personal Health Budgets PD (PCT),Other Agency and Contracted Services,57401,Direct Payments,04/12/2013,3301737570,2399.06,WK2 Advance Housing & Support
http://statistics.data.gov.uk/id/local-authority/38,Oxfordshire County Council,SCS Pooled Budgets,PD Comm Supp Purchasg Budget - City,Other Agency and Contracted Services,57401,Direct Payments,04/12/2013,3301737577,520,WK2 Advance Housing & Support
http://statistics.data.gov.uk/id/local-authority/38,Oxfordshire County Council,SCS Pooled Budgets,PD Comm Supp Purchasg Budget - Witney,Other Agency and Contracted Services,57401,Direct Payments,04/12/2013,3301737578,680,WK2 Advance Housing & Support
http://statistics.data.gov.uk/id/local-authority/38,Oxfordshire County Council,SCS Pooled Budgets,Continuing Health Care,Other Agency and Contracted Services,57401,Direct Payments,04/12/2013,3301737579,7172.48,WK2 Advance Housing & Support
http://statistics.data.gov.uk/id/local-authority/38,Oxfordshire County Council,SCS Pooled Budgets,Continuing Health Care,Other Agency and Contracted Services,57401,Direct Payments,04/12/2013,3301737579,3586.24,WK2 Advance Housing & Support
http://statistics.data.gov.uk/id/local-authority/38,Oxfordshire County Council,SCS Pooled Budgets,Continuing Health Care,Other Agency and Contracted Services,57401,Direct Payments,04/12/2013,3301737579,3586.24,WK2 Advance Housing & Support
http://statistics.data.gov.uk/id/local-authority/38,Oxfordshire County Council,SCS Pooled Budgets,Direct Payments South Team,Other Agency and Contracted Services,57401,Direct Payments,04/12/2013,3301737582,2512.16,WK2 Advance Housing & Support
http://statistics.data.gov.uk/id/local-authority/38,Oxfordshire County Council,SCS Pooled Budgets,Direct Payments South Team,Other Agency and Contracted Services,57401,Direct Payments,04/12/2013,3301737582,1256.08,WK2 Advance Housing & Support
http://statistics.data.gov.uk/id/local-authority/38,Oxfordshire County Council,SCS Pooled Budgets,Direct Payments South Team,Other Agency and Contracted Services,57401,Direct Payments,04/12/2013,3301737582,1256.08,WK2 Advance Housing & Support
http://statistics.data.gov.uk/id/local-authority/38,Oxfordshire County Council,SCS Pooled Budgets,Community Support Budget - City,Other Agency and Contracted Services,57401,Direct Payments,04/12/2013,3301737585,771.44,WK2 Advance Housing & Support
http://statistics.data.gov.uk/id/local-authority/38,Oxfordshire County Council,SCS Pooled Budgets,PD CS Purch Budget - Health S28a JC,Other Agency and Contracted Services,57401,Direct Payments,04/12/2013,3301737589,620.54,WK2 Advance Housing & Support
http://statistics.data.gov.uk/id/local-authority/38,Oxfordshire County Council,SCS Pooled Budgets,PD Comm Supp Purchasg Budget - Witney,Other Agency and Contracted Services,57401,Direct Payments,04/12/2013,3301737589,1000.58,WK2 Advance Housing & Support
http://statistics.data.gov.uk/id/local-authority/38,Oxfordshire County Council,SCS Pooled Budgets,PD Comm Supp Purchasg Budget - Witney,Other Agency and Contracted Services,57401,Direct Payments,04/12/2013,3301737589,500.29,WK2 Advance Housing & Support
http://statistics.data.gov.uk/id/local-authority/38,Oxfordshire County Council,SCS Pooled Budgets,PD Comm Supp Purchasg Budget - Witney,Other Agency and Contracted Services,57401,Direct Payments,04/12/2013,3301737589,500.29,WK2 Advance Housing & Support
http://statistics.data.gov.uk/id/local-authority/38,Oxfordshire County Council,SCS Pooled Budgets,Community Support Budget - Banbury,Other Agency and Contracted Services,57401,Direct Payments,04/12/2013,3301737590,538,WK2 Advance Housing & Support
http://statistics.data.gov.uk/id/local-authority/38,Oxfordshire County Council,SCS Pooled Budgets,Community Support Budget - Banbury,Other Agency and Contracted Services,57401,Direct Payments,04/12/2013,3301737595,630,WK2 Advance Housing & Support
http://statistics.data.gov.uk/id/local-authority/38,Oxfordshire County Council,SCS Pooled Budgets,Community Support Budget - Banbury,Other Agency and Contracted Services,57401,Direct Payments,04/12/2013,3301737597,506,WK2 Advance Housing & Support
http://statistics.data.gov.uk/id/local-authority/38,Oxfordshire County Council,SCS Pooled Budgets,PD Comm Supp Purchasg Budget - Chip. N.,Other Agency and Contracted Services,57401,Direct Payments,04/12/2013,3301737602,1197.06,WK2 Advance Housing & Support
http://statistics.data.gov.uk/id/local-authority/38,Oxfordshire County Council,SCS Pooled Budgets,PD Comm Supp Purchasg Budget - Chip. N.,Other Agency and Contracted Services,57401,Direct Payments,04/12/2013,3301737602,598.53,WK2 Advance Housing & Support
http://statistics.data.gov.uk/id/local-authority/38,Oxfordshire County Council,SCS Pooled Budgets,PD Comm Supp Purchasg Budget - Chip. N.,Other Agency and Contracted Services,57401,Direct Payments,04/12/2013,3301737602,598.53,WK2 Advance Housing & Support
http://statistics.data.gov.uk/id/local-authority/38,Oxfordshire County Council,SCS Pooled Budgets,Community Support Budget - Banbury,Other Agency and Contracted Services,57401,Direct Payments,04/12/2013,3301737605,1520,WK2 Advance Housing & Support
http://statistics.data.gov.uk/id/local-authority/38,Oxfordshire County Council,SCS Pooled Budgets,Community Support Budget - Bicester,Other Agency and Contracted Services,57401,Direct Payments,04/12/2013,3301737610,598,WK2 Advance Housing & Support
http://statistics.data.gov.uk/id/local-authority/38,Oxfordshire County Council,STD Insurance,Motor Fleet,Motor Insurance Fund Rev AC,Z5151,Motor IF Own Damage,04/12/2013,3301737704,1280.25,AWP Body Repairs
http://statistics.data.gov.uk/id/local-authority/38,Oxfordshire County Council,Chief Executive & Business Support,Big Society Fund,Grants and Subscriptions,47100,Grants to Voluntary,04/12/2013,3301737724,4350.58,Wolvercote Young People's Club Ltd
http://statistics.data.gov.uk/id/local-authority/38,Oxfordshire County Council,STD Insurance,Other,Insurance Admin Holding A/c,Z5971,Insurance Admin Holding Account External Payments,09/12/2013,3301737744,25875,Zurich Management Services
http://statistics.data.gov.uk/id/local-authority/38,Oxfordshire County Council,Commercial,Traffic Signals Maintenance,Private Contractors,56202,Maint Costs 2nd Sche,04/12/2013,3301737757,24862.34,SIEMENS PLC
http://statistics.data.gov.uk/id/local-authority/38,Oxfordshire County Council,Social & Community Services,Residential Purchasing Carers Grant,Other Agency and Contracted Services,57401,Direct Payments,04/12/2013,3301737781,550,REDACTED PERSONAL DATA
http://statistics.data.gov.uk/id/local-authority/38,Oxfordshire County Council,Social & Community Services,Community Support Budget - City East,Other Agency and Contracted Services,57401,Direct Payments,04/12/2013,3301737784,3250,REDACTED PERSONAL DATA
http://statistics.data.gov.uk/id/local-authority/38,Oxfordshire County Council,SCS Pooled Budgets,Life Of Your Own Grant South,Other Agency and Contracted Services,57401,Direct Payments,04/12/2013,3301737785,600,REDACTED PERSONAL DATA
http://statistics.data.gov.uk/id/local-authority/38,Oxfordshire County Council,Social & Community Services,Residential Purchasing Carers Grant,Other Agency and Contracted Services,57401,Direct Payments,04/12/2013,3301737787,600,REDACTED PERSONAL DATA
http://statistics.data.gov.uk/id/local-authority/38,Oxfordshire County Council,SCS Pooled Budgets,PD Comm Supp Purchasg Budget - Witney,Other Agency and Contracted Services,57401,Direct Payments,04/12/2013,3301737788,5990.58,REDACTED PERSONAL DATA
http://statistics.data.gov.uk/id/local-authority/38,Oxfordshire County Council,SCS Pooled Budgets,PD Comm Supp Purchasg Budget - Witney,Other Agency and Contracted Services,57401,Direct Payments,04/12/2013,3301737788,-4298.62,REDACTED PERSONAL DATA
http://statistics.data.gov.uk/id/local-authority/38,Oxfordshire County Council,Commercial,"Electrical NP Rds, Street Lighting",Private Contractors,56400,Major Contracts,04/12/2013,3301737800,860.75,Southern Electric Contracting Ltd.
http://statistics.data.gov.uk/id/local-authority/38,Oxfordshire County Council,Commercial,"Electrical NP Rds, Street Lighting",Private Contractors,56400,Major Contracts,04/12/2013,3301737801,834.3,Southern Electric Contracting Ltd.
http://statistics.data.gov.uk/id/local-authority/38,Oxfordshire County Council,Commercial,"Electrical NP Rds, illuminated Signs",Private Contractors,56400,Major Contracts,04/12/2013,3301737803,2341.67,Southern Electric Contracting Ltd.
http://statistics.data.gov.uk/id/local-authority/38,Oxfordshire County Council,Commercial,"Electrical NP Rds, Street Lighting",Private Contractors,56400,Major Contracts,04/12/2013,3301737804,643.8,Southern Electric Contracting Ltd.
http://statistics.data.gov.uk/id/local-authority/38,Oxfordshire County Council,Commercial,"Electrical NP Rds, Street Lighting",Private Contractors,56400,Major Contracts,04/12/2013,3301737805,784.03,Southern Electric Contracting Ltd.
http://statistics.data.gov.uk/id/local-authority/38,Oxfordshire County Council,Commercial,"Electrical Prin Rds, Street Lighting",Private Contractors,56400,Major Contracts,04/12/2013,3301737807,1014.95,Southern Electric Contracting Ltd.
http://statistics.data.gov.uk/id/local-authority/38,Oxfordshire County Council,Commercial,"Electrical NP Rds, Street Lighting",Private Contractors,56400,Major Contracts,04/12/2013,3301737808,922.59,Southern Electric Contracting Ltd.
http://statistics.data.gov.uk/id/local-authority/38,Oxfordshire County Council,Commercial,"Electrical NP Rds, Street Lighting",Private Contractors,56400,Major Contracts,04/12/2013,3301737809,895.99,Southern Electric Contracting Ltd.
http://statistics.data.gov.uk/id/local-authority/38,Oxfordshire County Council,Commercial,"Electrical NP Rds, Street Lighting",Private Contractors,56400,Major Contracts,04/12/2013,3301737811,643.8,Southern Electric Contracting Ltd.
http://statistics.data.gov.uk/id/local-authority/38,Oxfordshire County Council,Commercial,"Electrical NP Rds, Street Lighting",Private Contractors,56400,Major Contracts,04/12/2013,3301737812,840.98,Southern Electric Contracting Ltd.
http://statistics.data.gov.uk/id/local-authority/38,Oxfordshire County Council,Commercial,"Electrical NP Rds, Street Lighting",Private Contractors,56400,Major Contracts,04/12/2013,3301737813,908.64,Southern Electric Contracting Ltd.
http://statistics.data.gov.uk/id/local-authority/38,Oxfordshire County Council,Commercial,"Electrical NP Rds, illuminated Signs",Private Contractors,56400,Major Contracts,04/12/2013,3301737815,1624.67,Southern Electric Contracting Ltd.
http://statistics.data.gov.uk/id/local-authority/38,Oxfordshire County Council,Commercial,"Electrical NP Rds, Street Lighting",Private Contractors,56400,Major Contracts,04/12/2013,3301737818,909.65,Southern Electric Contracting Ltd.
http://statistics.data.gov.uk/id/local-authority/38,Oxfordshire County Council,Commercial,"Electrical NP Rds, Street Lighting",Private Contractors,56400,Major Contracts,04/12/2013,3301737819,818.11,Southern Electric Contracting Ltd.
http://statistics.data.gov.uk/id/local-authority/38,Oxfordshire County Council,Commercial,"Electrical NP Rds, Street Lighting",Private Contractors,56400,Major Contracts,04/12/2013,3301737821,871.25,Southern Electric Contracting Ltd.
http://statistics.data.gov.uk/id/local-authority/38,Oxfordshire County Council,Commercial,"Electrical NP Rds, illuminated Signs",Private Contractors,56400,Major Contracts,04/12/2013,3301737822,725.58,Southern Electric Contracting Ltd.
http://statistics.data.gov.uk/id/local-authority/38,Oxfordshire County Council,Commercial,"Electrical NP Rds, Street Lighting",Private Contractors,56400,Major Contracts,04/12/2013,3301737823,860.75,Southern Electric Contracting Ltd.
http://statistics.data.gov.uk/id/local-authority/38,Oxfordshire County Council,Commercial,"Electrical NP Rds, Street Lighting",Private Contractors,56400,Major Contracts,04/12/2013,3301737824,1360.76,Southern Electric Contracting Ltd.
http://statistics.data.gov.uk/id/local-authority/38,Oxfordshire County Council,Commercial,"Electrical NP Rds, Street Lighting",Private Contractors,56400,Major Contracts,04/12/2013,3301737828,1351.7,Southern Electric Contracting Ltd.
http://statistics.data.gov.uk/id/local-authority/38,Oxfordshire County Council,Commercial,"Electrical Prin Rds, Street Lighting",Private Contractors,56400,Major Contracts,04/12/2013,3301737829,1907.88,Southern Electric Contracting Ltd.
http://statistics.data.gov.uk/id/local-authority/38,Oxfordshire County Council,Commercial,"Electrical Prin Rds, illuminated Signs",Private Contractors,56400,Major Contracts,04/12/2013,3301737830,4624.25,Southern Electric Contracting Ltd.
http://statistics.data.gov.uk/id/local-authority/38,Oxfordshire County Council,Commercial,"Electrical NP Rds, Street Lighting",Private Contractors,56400,Major Contracts,04/12/2013,3301737832,450,WPD Midlands Networks Services Ltd
http://statistics.data.gov.uk/id/local-authority/38,Oxfordshire County Council,Commercial,"Electrical NP Rds, Street Lighting",Private Contractors,56400,Major Contracts,04/12/2013,3301737833,450,WPD Midlands Networks Services Ltd
http://statistics.data.gov.uk/id/local-authority/38,Oxfordshire County Council,Commercial,"Electrical NP Rds, Street Lighting",Private Contractors,56400,Major Contracts,04/12/2013,3301737834,450,WPD Midlands Networks Services Ltd
http://statistics.data.gov.uk/id/local-authority/38,Oxfordshire County Council,Commercial,"Electrical NP Rds, Street Lighting",Private Contractors,56400,Major Contracts,04/12/2013,3301737835,450,WPD Midlands Networks Services Ltd
http://statistics.data.gov.uk/id/local-authority/38,Oxfordshire County Council,Commercial,"Electrical NP Rds, Street Lighting",Private Contractors,56400,Major Contracts,04/12/2013,3301737836,450,WPD Midlands Networks Services Ltd
http://statistics.data.gov.uk/id/local-authority/38,Oxfordshire County Council,Commercial,"Electrical NP Rds, Street Lighting",Private Contractors,56400,Major Contracts,04/12/2013,3301737837,450,WPD Midlands Networks Services Ltd
http://statistics.data.gov.uk/id/local-authority/38,Oxfordshire County Council,Commercial,"Electrical NP Rds, Street Lighting",Private Contractors,56400,Major Contracts,04/12/2013,3301737838,450,WPD Midlands Networks Services Ltd
http://statistics.data.gov.uk/id/local-authority/38,Oxfordshire County Council,Commercial,"Electrical NP Rds, Street Lighting",Private Contractors,56400,Major Contracts,04/12/2013,3301737839,450,WPD Midlands Networks Services Ltd
http://statistics.data.gov.uk/id/local-authority/38,Oxfordshire County Council,Commercial,"Electrical NP Rds, Street Lighting",Private Contractors,56400,Major Contracts,04/12/2013,3301737840,450,WPD Midlands Networks Services Ltd
http://statistics.data.gov.uk/id/local-authority/38,Oxfordshire County Council,Commercial,"Electrical Prin Rds, Street Lighting",Private Contractors,56201,Maint Costs 1st Sche,04/12/2013,3301737850,2957.4,Southern Electric Contracting Ltd.
http://statistics.data.gov.uk/id/local-authority/38,Oxfordshire County Council,Commercial,"Electrical NP Rds, Street Lighting",Private Contractors,56201,Maint Costs 1st Sche,04/12/2013,3301737850,23915.8,Southern Electric Contracting Ltd.
http://statistics.data.gov.uk/id/local-authority/38,Oxfordshire County Council,Commercial,"Electrical Prin Rds, illuminated Signs",Private Contractors,56201,Maint Costs 1st Sche,04/12/2013,3301737850,1447.95,Southern Electric Contracting Ltd.
http://statistics.data.gov.uk/id/local-authority/38,Oxfordshire County Council,Commercial,"Electrical NP Rds, illuminated Signs",Private Contractors,56201,Maint Costs 1st Sche,04/12/2013,3301737850,2256.76,Southern Electric Contracting Ltd.
http://statistics.data.gov.uk/id/local-authority/38,Oxfordshire County Council,SCS Pooled Budgets,Community Support Budget - Kidlington,Other Agency and Contracted Services,57401,Direct Payments,04/12/2013,3301737895,1225.71,REDACTED PERSONAL DATA
http://statistics.data.gov.uk/id/local-authority/38,Oxfordshire County Council,Commercial,Localities,Private Contractors,56400,Major Contracts,05/12/2013,3301738088,3788.51,Southern Electric Contracting Ltd.
http://statistics.data.gov.uk/id/local-authority/38,Oxfordshire County Council,Chief Executive & Business Support,Big Society Fund,Grants and Subscriptions,47100,Grants to Voluntary,06/12/2013,3301738467,1000,Rose Hill & Donnington Advice Centr
http://statistics.data.gov.uk/id/local-authority/38,Oxfordshire County Council,Education & Early Intervention,Leading the EYFS (Q&I),Expenses,46403,Course / Tuition Fee,06/12/2013,3301738468,5000,STEPPING STONES NURSERY
http://statistics.data.gov.uk/id/local-authority/38,Oxfordshire County Council,SCS Pooled Budgets,Community Support Budget - Thame,Other Agency and Contracted Services,57401,Direct Payments,06/12/2013,3301738484,900,REDACTED PERSONAL DATA
http://statistics.data.gov.uk/id/local-authority/38,Oxfordshire County Council,Commercial,Traffic Signals Maintenance,Private Contractors,56202,Maint Costs 2nd Sche,06/12/2013,3301738582,24584.52,SIEMENS PLC
http://statistics.data.gov.uk/id/local-authority/38,Oxfordshire County Council,Education & Early Intervention,Sufficiency & Access - Intervention Grnt,Grants and Subscriptions,47100,Grants to Voluntary,06/12/2013,3301738588,4680.35,Early Days Nursery School Ltd
http://statistics.data.gov.uk/id/local-authority/38,Oxfordshire County Council,Education & Early Intervention,2 Year Old Funding,Voluntary Associations,55100,Fees to Non Maintain,06/12/2013,3301738593,525,Robin Playgroup
http://statistics.data.gov.uk/id/local-authority/38,Oxfordshire County Council,Education & Early Intervention,2 Year Old Funding,Voluntary Associations,55100,Fees to Non Maintain,06/12/2013,3301738594,630,Shepherds Hill Pre-School
http://statistics.data.gov.uk/id/local-authority/38,Oxfordshire County Council,SCS Pooled Budgets,Direct Payments South Team,Other Agency and Contracted Services,57401,Direct Payments,06/12/2013,3301738703,5040,WK3 Advance Housing & Support
http://statistics.data.gov.uk/id/local-authority/38,Oxfordshire County Council,SCS Pooled Budgets,Direct Payments South Team,Other Agency and Contracted Services,57401,Direct Payments,06/12/2013,3301738703,2520,WK3 Advance Housing & Support
http://statistics.data.gov.uk/id/local-authority/38,Oxfordshire County Council,Education & Early Intervention,Leading the EYFS (Q&I),Grants and Subscriptions,47100,Grants to Voluntary,09/12/2013,3301738831,900,Woodstock Under Fives Association
http://statistics.data.gov.uk/id/local-authority/38,Oxfordshire County Council,Commercial,"Electrical NP Rds, Street Lighting",Private Contractors,56400,Major Contracts,09/12/2013,3301738919,4819.16,Southern Electric Contracting Ltd.
http://statistics.data.gov.uk/id/local-authority/38,Oxfordshire County Council,SCS Pooled Budgets,PD Comm Supp Purchasg Budget - City,Other Agency and Contracted Services,57401,Direct Payments,10/12/2013,3301739278,5920,WK4 Advance Housing & Support
http://statistics.data.gov.uk/id/local-authority/38,Oxfordshire County Council,SCS Pooled Budgets,PD Comm Supp Purchasg Budget - City,Other Agency and Contracted Services,57401,Direct Payments,10/12/2013,3301739278,1110,WK4 Advance Housing & Support
http://statistics.data.gov.uk/id/local-authority/38,Oxfordshire County Council,STD Insurance,Motor Fleet,Motor Insurance Fund Rev AC,Z5151,Motor IF Own Damage,17/12/2013,3301739319,1734.96,AWP Body Repairs
http://statistics.data.gov.uk/id/local-authority/38,Oxfordshire County Council,Education & Early Intervention,Trajectory Funding - 2 yr olds,Grants and Subscriptions,47100,Grants to Voluntary,10/12/2013,3301739449,10786,Magpies Pre-School
http://statistics.data.gov.uk/id/local-authority/38,Oxfordshire County Council,Social & Community Services,IMHA Funding,Services,44500,Other Hired & Contract Services,10/12/2013,3301739457,1636063,Oxford Health NHS
http://statistics.data.gov.uk/id/local-authority/38,Oxfordshire County Council,Social & Community Services,IMHA Funding,Services,44500,Other Hired & Contract Services,10/12/2013,3301739459,-1636063,Oxford Health NHS
http://statistics.data.gov.uk/id/local-authority/38,Oxfordshire County Council,Social & Community Services,IMHA Funding,Services,44500,Other Hired & Contract Services,10/12/2013,3301739463,1636063,NHS Oxfordshire CCG
http://statistics.data.gov.uk/id/local-authority/38,Oxfordshire County Council,SCS Pooled Budgets,Direct Payments South Team,Other Agency and Contracted Services,57401,Direct Payments,10/12/2013,3301739543,50542.96,REDACTED PERSONAL DATA
http://statistics.data.gov.uk/id/local-authority/38,Oxfordshire County Council,SCS Pooled Budgets,Direct Payments South Team,Other Agency and Contracted Services,57401,Direct Payments,10/12/2013,3301739543,-43060.93,REDACTED PERSONAL DATA
http://statistics.data.gov.uk/id/local-authority/38,Oxfordshire County Council,Social & Community Services,Community Support Budget - City East,Other Agency and Contracted Services,57300,Home Support (Ext) OS&HCD,24/12/2013,3301739562,1922,Ashamber Homes Limited
http://statistics.data.gov.uk/id/local-authority/38,Oxfordshire County Council,Social & Community Services,PCT SDS Funding,Other Agency and Contracted Services,57300,Home Support (Ext) OS&HCD,13/12/2013,3301739563,1500,Brook House Residential
http://statistics.data.gov.uk/id/local-authority/38,Oxfordshire County Council,Social & Community Services,OBMH Older Adults,Voluntary Associations,55405,Contribution to External Health Pooled Budgets,11/12/2013,3301739582,133890,Oxford Health NHS
http://statistics.data.gov.uk/id/local-authority/38,Oxfordshire County Council,SCS Pooled Budgets,Direct Payments North Team,Other Agency and Contracted Services,57401,Direct Payments,11/12/2013,3301739583,581.48,REDACTED PERSONAL DATA
http://statistics.data.gov.uk/id/local-authority/38,Oxfordshire County Council,SCS Pooled Budgets,Community Support Budget - Banbury,Other Agency and Contracted Services,57401,Direct Payments,11/12/2013,3301739585,567.6,REDACTED PERSONAL DATA
http://statistics.data.gov.uk/id/local-authority/38,Oxfordshire County Council,SCS Pooled Budgets,Direct Payments City Team,Other Agency and Contracted Services,57401,Direct Payments,11/12/2013,3301739586,1716.6,REDACTED PERSONAL DATA
http://statistics.data.gov.uk/id/local-authority/38,Oxfordshire County Council,SCS Pooled Budgets,Community Support Budget - City,Other Agency and Contracted Services,57401,Direct Payments,11/12/2013,3301739588,2008,REDACTED PERSONAL DATA
http://statistics.data.gov.uk/id/local-authority/38,Oxfordshire County Council,SCS Pooled Budgets,PD Comm Supp Purchasg Budget - City,Other Agency and Contracted Services,57401,Direct Payments,11/12/2013,3301739589,993.56,REDACTED PERSONAL DATA
http://statistics.data.gov.uk/id/local-authority/38,Oxfordshire County Council,SCS Pooled Budgets,PHB OP Package,Other Agency and Contracted Services,57401,Direct Payments,11/12/2013,3301739591,5365.92,REDACTED PERSONAL DATA
http://statistics.data.gov.uk/id/local-authority/38,Oxfordshire County Council,SCS Pooled Budgets,PHB OP Package,Other Agency and Contracted Services,57401,Direct Payments,11/12/2013,3301739591,1021.63,REDACTED PERSONAL DATA
http://statistics.data.gov.uk/id/local-authority/38,Oxfordshire County Council,SCS Pooled Budgets,PD Comm Supp Purchasg Budget - City,Other Agency and Contracted Services,57401,Direct Payments,11/12/2013,3301739593,1118.12,REDACTED PERSONAL DATA
http://statistics.data.gov.uk/id/local-authority/38,Oxfordshire County Council,SCS Pooled Budgets,PD Comm Supp Budget - Banbury,Other Agency and Contracted Services,57401,Direct Payments,11/12/2013,3301739594,2292,REDACTED PERSONAL DATA
http://statistics.data.gov.uk/id/local-authority/38,Oxfordshire County Council,SCS Pooled Budgets,Direct Payments South Team,Other Agency and Contracted Services,57401,Direct Payments,11/12/2013,3301739595,3600,REDACTED PERSONAL DATA
http://statistics.data.gov.uk/id/local-authority/38,Oxfordshire County Council,SCS Pooled Budgets,Community Support Budget - Banbury,Other Agency and Contracted Services,57401,Direct Payments,11/12/2013,3301739596,2680.28,REDACTED PERSONAL DATA
http://statistics.data.gov.uk/id/local-authority/38,Oxfordshire County Council,SCS Pooled Budgets,Community Support Budget - Banbury,Other Agency and Contracted Services,57401,Direct Payments,11/12/2013,3301739597,652,REDACTED PERSONAL DATA
http://statistics.data.gov.uk/id/local-authority/38,Oxfordshire County Council,SCS Pooled Budgets,Direct Payments North Team,Other Agency and Contracted Services,57401,Direct Payments,11/12/2013,3301739598,1013.6,REDACTED PERSONAL DATA
http://statistics.data.gov.uk/id/local-authority/38,Oxfordshire County Council,SCS Pooled Budgets,Community Support Budget - Abingdon,Other Agency and Contracted Services,57401,Direct Payments,11/12/2013,3301739600,2520,REDACTED PERSONAL DATA
http://statistics.data.gov.uk/id/local-authority/38,Oxfordshire County Council,SCS Pooled Budgets,Personal Health Budgets PD (PCT),Other Agency and Contracted Services,57401,Direct Payments,11/12/2013,3301739601,6773.88,REDACTED PERSONAL DATA
http://statistics.data.gov.uk/id/local-authority/38,Oxfordshire County Council,SCS Pooled Budgets,PD Comm Supp Purchasg Budget - Thame,Other Agency and Contracted Services,57401,Direct Payments,11/12/2013,3301739602,964,REDACTED PERSONAL DATA
http://statistics.data.gov.uk/id/local-authority/38,Oxfordshire County Council,SCS Pooled Budgets,Community Support Budget - City,Other Agency and Contracted Services,57401,Direct Payments,11/12/2013,3301739604,2391.52,REDACTED PERSONAL DATA
http://statistics.data.gov.uk/id/local-authority/38,Oxfordshire County Council,SCS Pooled Budgets,Community Support Budget - Chipping Nort,Other Agency and Contracted Services,57401,Direct Payments,11/12/2013,3301739605,1428,REDACTED PERSONAL DATA
http://statistics.data.gov.uk/id/local-authority/38,Oxfordshire County Council,SCS Pooled Budgets,Community Support Budget - City,Other Agency and Contracted Services,57401,Direct Payments,11/12/2013,3301739606,1079.36,REDACTED PERSONAL DATA
http://statistics.data.gov.uk/id/local-authority/38,Oxfordshire County Council,SCS Pooled Budgets,Community Support Budget - Thame,Other Agency and Contracted Services,57401,Direct Payments,11/12/2013,3301739607,1902.76,REDACTED PERSONAL DATA
http://statistics.data.gov.uk/id/local-authority/38,Oxfordshire County Council,Social & Community Services,Community Support Budget - City East,Other Agency and Contracted Services,57401,Direct Payments,11/12/2013,3301739611,640,REDACTED PERSONAL DATA
http://statistics.data.gov.uk/id/local-authority/38,Oxfordshire County Council,SCS Pooled Budgets,Community Support Budget - Thame,Other Agency and Contracted Services,57401,Direct Payments,11/12/2013,3301739612,1896,REDACTED PERSONAL DATA
http://statistics.data.gov.uk/id/local-authority/38,Oxfordshire County Council,SCS Pooled Budgets,Community Support Budget - Didcot,Other Agency and Contracted Services,57401,Direct Payments,11/12/2013,3301739613,2532,REDACTED PERSONAL DATA
http://statistics.data.gov.uk/id/local-authority/38,Oxfordshire County Council,SCS Pooled Budgets,PD Comm Supp Budget - Banbury,Other Agency and Contracted Services,57401,Direct Payments,11/12/2013,3301739615,628,REDACTED PERSONAL DATA
http://statistics.data.gov.uk/id/local-authority/38,Oxfordshire County Council,SCS Pooled Budgets,Direct Payments South Team,Other Agency and Contracted Services,57401,Direct Payments,11/12/2013,3301739618,954.68,REDACTED PERSONAL DATA
http://statistics.data.gov.uk/id/local-authority/38,Oxfordshire County Council,SCS Pooled Budgets,Direct Payments South Team,Other Agency and Contracted Services,57401,Direct Payments,11/12/2013,3301739619,954.68,REDACTED PERSONAL DATA
http://statistics.data.gov.uk/id/local-authority/38,Oxfordshire County Council,SCS Pooled Budgets,Community Support Budget - Didcot,Other Agency and Contracted Services,57401,Direct Payments,11/12/2013,3301739621,1560,REDACTED PERSONAL DATA
http://statistics.data.gov.uk/id/local-authority/38,Oxfordshire County Council,SCS Pooled Budgets,Community Support Budget - City,Other Agency and Contracted Services,57401,Direct Payments,11/12/2013,3301739622,632,REDACTED PERSONAL DATA
http://statistics.data.gov.uk/id/local-authority/38,Oxfordshire County Council,SCS Pooled Budgets,Community Support Budget - Thame,Other Agency and Contracted Services,57401,Direct Payments,11/12/2013,3301739623,515.48,REDACTED PERSONAL DATA
http://statistics.data.gov.uk/id/local-authority/38,Oxfordshire County Council,SCS Pooled Budgets,Community Support Budget - Abingdon,Other Agency and Contracted Services,57401,Direct Payments,11/12/2013,3301739624,2708,REDACTED PERSONAL DATA
http://statistics.data.gov.uk/id/local-authority/38,Oxfordshire County Council,SCS Pooled Budgets,Direct Payments City Team,Other Agency and Contracted Services,57401,Direct Payments,11/12/2013,3301739627,1157.4,REDACTED PERSONAL DATA
http://statistics.data.gov.uk/id/local-authority/38,Oxfordshire County Council,SCS Pooled Budgets,Direct Payments South Team,Other Agency and Contracted Services,57401,Direct Payments,11/12/2013,3301739628,2307.68,REDACTED PERSONAL DATA
http://statistics.data.gov.uk/id/local-authority/38,Oxfordshire County Council,SCS Pooled Budgets,Direct Payments North Team,Other Agency and Contracted Services,57401,Direct Payments,11/12/2013,3301739629,11165.08,REDACTED PERSONAL DATA
http://statistics.data.gov.uk/id/local-authority/38,Oxfordshire County Council,SCS Pooled Budgets,Direct Payments South Team,Other Agency and Contracted Services,57401,Direct Payments,11/12/2013,3301739630,1537.6,REDACTED PERSONAL DATA
http://statistics.data.gov.uk/id/local-authority/38,Oxfordshire County Council,SCS Pooled Budgets,Personal Health Budgets PD (PCT),Other Agency and Contracted Services,57401,Direct Payments,11/12/2013,3301739631,4700.8,REDACTED PERSONAL DATA
http://statistics.data.gov.uk/id/local-authority/38,Oxfordshire County Council,SCS Pooled Budgets,Personal Health Budgets PD (PCT),Other Agency and Contracted Services,57401,Direct Payments,11/12/2013,3301739631,3525.6,REDACTED PERSONAL DATA
http://statistics.data.gov.uk/id/local-authority/38,Oxfordshire County Council,SCS Pooled Budgets,Personal Health Budgets PD (PCT),Other Agency and Contracted Services,57401,Direct Payments,11/12/2013,3301739631,2321,REDACTED PERSONAL DATA
http://statistics.data.gov.uk/id/local-authority/38,Oxfordshire County Council,SCS Pooled Budgets,Personal Health Budgets PD (PCT),Other Agency and Contracted Services,57401,Direct Payments,11/12/2013,3301739631,-2242.5,REDACTED PERSONAL DATA
http://statistics.data.gov.uk/id/local-authority/38,Oxfordshire County Council,SCS Pooled Budgets,PD Comm Supp Purchasg Budget - Henley,Other Agency and Contracted Services,57401,Direct Payments,11/12/2013,3301739632,1280,REDACTED PERSONAL DATA
http://statistics.data.gov.uk/id/local-authority/38,Oxfordshire County Council,SCS Pooled Budgets,PD Comm Supp Purchasg Budget - Thame,Other Agency and Contracted Services,57401,Direct Payments,11/12/2013,3301739634,860.14,REDACTED PERSONAL DATA
http://statistics.data.gov.uk/id/local-authority/38,Oxfordshire County Council,SCS Pooled Budgets,PD Comm Supp Purchasg Budget - Abingdon,Other Agency and Contracted Services,57401,Direct Payments,11/12/2013,3301739635,879.78,REDACTED PERSONAL DATA
http://statistics.data.gov.uk/id/local-authority/38,Oxfordshire County Council,SCS Pooled Budgets,PD Comm Supp Purchasg Budget - Witney,Other Agency and Contracted Services,57401,Direct Payments,11/12/2013,3301739637,4394.4,REDACTED PERSONAL DATA
http://statistics.data.gov.uk/id/local-authority/38,Oxfordshire County Council,SCS Pooled Budgets,Direct Payments City Team,Other Agency and Contracted Services,57401,Direct Payments,11/12/2013,3301739638,560,REDACTED PERSONAL DATA
http://statistics.data.gov.uk/id/local-authority/38,Oxfordshire County Council,SCS Pooled Budgets,Direct Payments South Team,Other Agency and Contracted Services,57401,Direct Payments,11/12/2013,3301739639,1184.48,REDACTED PERSONAL DATA
http://statistics.data.gov.uk/id/local-authority/38,Oxfordshire County Council,SCS Pooled Budgets,Community Support Budget - Witney,Other Agency and Contracted Services,57401,Direct Payments,11/12/2013,3301739640,1084,REDACTED PERSONAL DATA
http://statistics.data.gov.uk/id/local-authority/38,Oxfordshire County Council,SCS Pooled Budgets,PD Comm Supp Purchasg Budget - Wantage,Other Agency and Contracted Services,57401,Direct Payments,11/12/2013,3301739641,516,REDACTED PERSONAL DATA
http://statistics.data.gov.uk/id/local-authority/38,Oxfordshire County Council,SCS Pooled Budgets,PD Comm Supp Purchasg Budget - Witney,Other Agency and Contracted Services,57401,Direct Payments,11/12/2013,3301739642,1200,REDACTED PERSONAL DATA
http://statistics.data.gov.uk/id/local-authority/38,Oxfordshire County Council,SCS Pooled Budgets,Community Support Budget - City,Other Agency and Contracted Services,57401,Direct Payments,11/12/2013,3301739643,688,REDACTED PERSONAL DATA
http://statistics.data.gov.uk/id/local-authority/38,Oxfordshire County Council,SCS Pooled Budgets,Community Support Budget - Faringdon,Other Agency and Contracted Services,57401,Direct Payments,11/12/2013,3301739645,672,REDACTED PERSONAL DATA
http://statistics.data.gov.uk/id/local-authority/38,Oxfordshire County Council,SCS Pooled Budgets,Community Support Budget - Chipping Nort,Other Agency and Contracted Services,57401,Direct Payments,11/12/2013,3301739646,724,REDACTED PERSONAL DATA
http://statistics.data.gov.uk/id/local-authority/38,Oxfordshire County Council,SCS Pooled Budgets,Community Support Budget - Henley,Other Agency and Contracted Services,57401,Direct Payments,11/12/2013,3301739647,1680,REDACTED PERSONAL DATA
http://statistics.data.gov.uk/id/local-authority/38,Oxfordshire County Council,SCS Pooled Budgets,Community Support Budget - Thame,Other Agency and Contracted Services,57401,Direct Payments,11/12/2013,3301739649,500,REDACTED PERSONAL DATA
http://statistics.data.gov.uk/id/local-authority/38,Oxfordshire County Council,SCS Pooled Budgets,Direct Payments City Team,Other Agency and Contracted Services,57401,Direct Payments,11/12/2013,3301739650,960,REDACTED PERSONAL DATA
http://statistics.data.gov.uk/id/local-authority/38,Oxfordshire County Council,SCS Pooled Budgets,PD Comm Supp Purchasg Budget - City,Other Agency and Contracted Services,57401,Direct Payments,11/12/2013,3301739651,1316,REDACTED PERSONAL DATA
http://statistics.data.gov.uk/id/local-authority/38,Oxfordshire County Council,SCS Pooled Budgets,Direct Payments South Team,Other Agency and Contracted Services,57401,Direct Payments,11/12/2013,3301739653,954.92,REDACTED PERSONAL DATA
http://statistics.data.gov.uk/id/local-authority/38,Oxfordshire County Council,SCS Pooled Budgets,Community Support Budget - City,Other Agency and Contracted Services,57401,Direct Payments,11/12/2013,3301739654,1770,REDACTED PERSONAL DATA
http://statistics.data.gov.uk/id/local-authority/38,Oxfordshire County Council,SCS Pooled Budgets,Direct Payments North Team,Other Agency and Contracted Services,57401,Direct Payments,11/12/2013,3301739655,863.08,REDACTED PERSONAL DATA
http://statistics.data.gov.uk/id/local-authority/38,Oxfordshire County Council,SCS Pooled Budgets,PD CS Purch Budget - Health S28a JC,Other Agency and Contracted Services,57401,Direct Payments,11/12/2013,3301739656,504.84,REDACTED PERSONAL DATA
http://statistics.data.gov.uk/id/local-authority/38,Oxfordshire County Council,SCS Pooled Budgets,Direct Payments City Team,Other Agency and Contracted Services,57401,Direct Payments,11/12/2013,3301739657,1648,REDACTED PERSONAL DATA
http://statistics.data.gov.uk/id/local-authority/38,Oxfordshire County Council,SCS Pooled Budgets,Community Support Budget - Bicester,Other Agency and Contracted Services,57401,Direct Payments,11/12/2013,3301739659,2200,REDACTED PERSONAL DATA
http://statistics.data.gov.uk/id/local-authority/38,Oxfordshire County Council,SCS Pooled Budgets,Direct Payments City Team,Other Agency and Contracted Services,57401,Direct Payments,11/12/2013,3301739660,562.16,REDACTED PERSONAL DATA
http://statistics.data.gov.uk/id/local-authority/38,Oxfordshire County Council,SCS Pooled Budgets,Direct Payments South Team,Other Agency and Contracted Services,57401,Direct Payments,11/12/2013,3301739663,1287.68,REDACTED PERSONAL DATA
http://statistics.data.gov.uk/id/local-authority/38,Oxfordshire County Council,SCS Pooled Budgets,Community Support Budget - Witney,Other Agency and Contracted Services,57401,Direct Payments,11/12/2013,3301739665,1868,REDACTED PERSONAL DATA
http://statistics.data.gov.uk/id/local-authority/38,Oxfordshire County Council,SCS Pooled Budgets,Community Support Budget - City,Other Agency and Contracted Services,57401,Direct Payments,11/12/2013,3301739666,740,REDACTED PERSONAL DATA
http://statistics.data.gov.uk/id/local-authority/38,Oxfordshire County Council,SCS Pooled Budgets,Community Support Budget - Chipping Nort,Other Agency and Contracted Services,57401,Direct Payments,11/12/2013,3301739667,624,REDACTED PERSONAL DATA
http://statistics.data.gov.uk/id/local-authority/38,Oxfordshire County Council,SCS Pooled Budgets,PD Comm Supp Budgt - Bicester/Kidlington,Other Agency and Contracted Services,57401,Direct Payments,11/12/2013,3301739668,632,REDACTED PERSONAL DATA
http://statistics.data.gov.uk/id/local-authority/38,Oxfordshire County Council,SCS Pooled Budgets,Direct Payments North Team,Other Agency and Contracted Services,57401,Direct Payments,11/12/2013,3301739670,6820.84,REDACTED PERSONAL DATA
http://statistics.data.gov.uk/id/local-authority/38,Oxfordshire County Council,SCS Pooled Budgets,PD Comm Supp Purchasg Budget - Witney,Other Agency and Contracted Services,57401,Direct Payments,11/12/2013,3301739671,1846.44,REDACTED PERSONAL DATA
http://statistics.data.gov.uk/id/local-authority/38,Oxfordshire County Council,SCS Pooled Budgets,Direct Payments South Team,Other Agency and Contracted Services,57401,Direct Payments,11/12/2013,3301739672,15370.2,REDACTED PERSONAL DATA
http://statistics.data.gov.uk/id/local-authority/38,Oxfordshire County Council,SCS Pooled Budgets,Community Support Budget - Wantage,Other Agency and Contracted Services,57401,Direct Payments,11/12/2013,3301739673,1948,REDACTED PERSONAL DATA
http://statistics.data.gov.uk/id/local-authority/38,Oxfordshire County Council,SCS Pooled Budgets,Community Support Budget - Thame,Other Agency and Contracted Services,57401,Direct Payments,11/12/2013,3301739674,960.4,REDACTED PERSONAL DATA
http://statistics.data.gov.uk/id/local-authority/38,Oxfordshire County Council,SCS Pooled Budgets,OP Pool Continuing Care Delegated Health,Other Agency and Contracted Services,57401,Direct Payments,11/12/2013,3301739674,551.6,REDACTED PERSONAL DATA
http://statistics.data.gov.uk/id/local-authority/38,Oxfordshire County Council,SCS Pooled Budgets,PD Comm Supp Purchasg Budget - Abingdon,Other Agency and Contracted Services,57401,Direct Payments,11/12/2013,3301739676,1481.64,REDACTED PERSONAL DATA
http://statistics.data.gov.uk/id/local-authority/38,Oxfordshire County Council,SCS Pooled Budgets,Community Support Budget - Abingdon,Other Agency and Contracted Services,57401,Direct Payments,11/12/2013,3301739678,1817.8,REDACTED PERSONAL DATA
http://statistics.data.gov.uk/id/local-authority/38,Oxfordshire County Council,SCS Pooled Budgets,PD Comm Supp Purchasg Budget - Abingdon,Other Agency and Contracted Services,57401,Direct Payments,11/12/2013,3301739679,1077.6,REDACTED PERSONAL DATA
http://statistics.data.gov.uk/id/local-authority/38,Oxfordshire County Council,SCS Pooled Budgets,PD Comm Supp Purchasg Budget - City,Other Agency and Contracted Services,57401,Direct Payments,11/12/2013,3301739681,1520.52,REDACTED PERSONAL DATA
http://statistics.data.gov.uk/id/local-authority/38,Oxfordshire County Council,SCS Pooled Budgets,PD Comm Supp Purchasg Budget - Chip. N.,Other Agency and Contracted Services,57401,Direct Payments,11/12/2013,3301739683,1372,REDACTED PERSONAL DATA
http://statistics.data.gov.uk/id/local-authority/38,Oxfordshire County Council,SCS Pooled Budgets,Community Support Budget - Didcot,Other Agency and Contracted Services,57401,Direct Payments,11/12/2013,3301739684,3175.48,REDACTED PERSONAL DATA
http://statistics.data.gov.uk/id/local-authority/38,Oxfordshire County Council,SCS Pooled Budgets,OP Pool Continuing Care Delegated Health,Other Agency and Contracted Services,57401,Direct Payments,11/12/2013,3301739684,886.52,REDACTED PERSONAL DATA
http://statistics.data.gov.uk/id/local-authority/38,Oxfordshire County Council,SCS Pooled Budgets,Direct Payments North Team,Other Agency and Contracted Services,57401,Direct Payments,11/12/2013,3301739685,656,REDACTED PERSONAL DATA
http://statistics.data.gov.uk/id/local-authority/38,Oxfordshire County Council,SCS Pooled Budgets,Direct Payments South Team,Other Agency and Contracted Services,57401,Direct Payments,11/12/2013,3301739686,5684.16,REDACTED PERSONAL DATA
http://statistics.data.gov.uk/id/local-authority/38,Oxfordshire County Council,SCS Pooled Budgets,Direct Payments South Team,Other Agency and Contracted Services,57401,Direct Payments,11/12/2013,3301739687,3842.2,REDACTED PERSONAL DATA
http://statistics.data.gov.uk/id/local-authority/38,Oxfordshire County Council,SCS Pooled Budgets,Direct Payments South Team,Other Agency and Contracted Services,57401,Direct Payments,11/12/2013,3301739688,6036,REDACTED PERSONAL DATA
http://statistics.data.gov.uk/id/local-authority/38,Oxfordshire County Council,SCS Pooled Budgets,PD CS Purch Budget - Health S28a JC,Other Agency and Contracted Services,57401,Direct Payments,11/12/2013,3301739689,532,REDACTED PERSONAL DATA
http://statistics.data.gov.uk/id/local-authority/38,Oxfordshire County Council,SCS Pooled Budgets,PD Comm Supp Budget - Banbury,Other Agency and Contracted Services,57401,Direct Payments,11/12/2013,3301739689,2323.12,REDACTED PERSONAL DATA
http://statistics.data.gov.uk/id/local-authority/38,Oxfordshire County Council,SCS Pooled Budgets,PD Comm Supp Budget - Banbury,Other Agency and Contracted Services,57401,Direct Payments,11/12/2013,3301739691,1859.08,REDACTED PERSONAL DATA
http://statistics.data.gov.uk/id/local-authority/38,Oxfordshire County Council,SCS Pooled Budgets,Direct Payments City Team,Other Agency and Contracted Services,57401,Direct Payments,11/12/2013,3301739692,1360,REDACTED PERSONAL DATA
http://statistics.data.gov.uk/id/local-authority/38,Oxfordshire County Council,SCS Pooled Budgets,PD Comm Supp Budget - Banbury,Other Agency and Contracted Services,57401,Direct Payments,11/12/2013,3301739693,1644,REDACTED PERSONAL DATA
http://statistics.data.gov.uk/id/local-authority/38,Oxfordshire County Council,SCS Pooled Budgets,PD Comm Supp Budget - Banbury,Other Agency and Contracted Services,57401,Direct Payments,11/12/2013,3301739694,788,REDACTED PERSONAL DATA
http://statistics.data.gov.uk/id/local-authority/38,Oxfordshire County Council,SCS Pooled Budgets,OP Pool Continuing Care Delegated Health,Other Agency and Contracted Services,57401,Direct Payments,11/12/2013,3301739695,919.32,REDACTED PERSONAL DATA
http://statistics.data.gov.uk/id/local-authority/38,Oxfordshire County Council,SCS Pooled Budgets,Community Support Budget - Banbury,Other Agency and Contracted Services,57401,Direct Payments,11/12/2013,3301739695,1748.68,REDACTED PERSONAL DATA
http://statistics.data.gov.uk/id/local-authority/38,Oxfordshire County Council,SCS Pooled Budgets,Direct Payments North Team,Other Agency and Contracted Services,57401,Direct Payments,11/12/2013,3301739696,585,REDACTED PERSONAL DATA
http://statistics.data.gov.uk/id/local-authority/38,Oxfordshire County Council,SCS Pooled Budgets,Direct Payments South Team,Other Agency and Contracted Services,57401,Direct Payments,11/12/2013,3301739697,917.24,REDACTED PERSONAL DATA
http://statistics.data.gov.uk/id/local-authority/38,Oxfordshire County Council,SCS Pooled Budgets,Community Support Budget - Kidlington,Other Agency and Contracted Services,57401,Direct Payments,11/12/2013,3301739699,2240,Citibank NA London
http://statistics.data.gov.uk/id/local-authority/38,Oxfordshire County Council,SCS Pooled Budgets,Community Support Budget - Didcot,Other Agency and Contracted Services,57401,Direct Payments,11/12/2013,3301739700,920,Citibank NA London
http://statistics.data.gov.uk/id/local-authority/38,Oxfordshire County Council,SCS Pooled Budgets,PD Comm Supp Purchasg Budget - Didcot,Other Agency and Contracted Services,57401,Direct Payments,11/12/2013,3301739702,964,Citibank NA London
http://statistics.data.gov.uk/id/local-authority/38,Oxfordshire County Council,SCS Pooled Budgets,Community Support Budget - Henley,Other Agency and Contracted Services,57401,Direct Payments,11/12/2013,3301739703,1229.6,Citibank NA London
http://statistics.data.gov.uk/id/local-authority/38,Oxfordshire County Council,SCS Pooled Budgets,Community Support Budget - Henley,Other Agency and Contracted Services,57401,Direct Payments,11/12/2013,3301739703,922.2,Citibank NA London
http://statistics.data.gov.uk/id/local-authority/38,Oxfordshire County Council,SCS Pooled Budgets,Direct Payments South Team,Other Agency and Contracted Services,57401,Direct Payments,11/12/2013,3301739705,1020.76,Citibank NA London
http://statistics.data.gov.uk/id/local-authority/38,Oxfordshire County Council,SCS Pooled Budgets,PD Comm Supp Purchasg Budget - Didcot,Other Agency and Contracted Services,57401,Direct Payments,11/12/2013,3301739707,2224.44,Citibank NA London
http://statistics.data.gov.uk/id/local-authority/38,Oxfordshire County Council,SCS Pooled Budgets,Community Support Budget - Chipping Nort,Other Agency and Contracted Services,57401,Direct Payments,11/12/2013,3301739709,1520,Citibank NA London
http://statistics.data.gov.uk/id/local-authority/38,Oxfordshire County Council,SCS Pooled Budgets,PD Community Support Budget - Kidlington,Other Agency and Contracted Services,57401,Direct Payments,11/12/2013,3301739712,2695.2,WK3 Advance Housing & Support
http://statistics.data.gov.uk/id/local-authority/38,Oxfordshire County Council,SCS Pooled Budgets,Community Support Budget - Didcot,Other Agency and Contracted Services,57401,Direct Payments,11/12/2013,3301739715,784,WK3 Advance Housing & Support
http://statistics.data.gov.uk/id/local-authority/38,Oxfordshire County Council,SCS Pooled Budgets,Community Support Budget - City,Other Agency and Contracted Services,57401,Direct Payments,11/12/2013,3301739717,1272,WK3 Advance Housing & Support
http://statistics.data.gov.uk/id/local-authority/38,Oxfordshire County Council,SCS Pooled Budgets,PD Comm Supp Purchasg Budget - Witney,Other Agency and Contracted Services,57401,Direct Payments,11/12/2013,3301739719,1148,WK3 Advance Housing & Support
http://statistics.data.gov.uk/id/local-authority/38,Oxfordshire County Council,SCS Pooled Budgets,Community Support Budget - Kidlington,Other Agency and Contracted Services,57401,Direct Payments,11/12/2013,3301739720,606.24,WK3 Advance Housing & Support
http://statistics.data.gov.uk/id/local-authority/38,Oxfordshire County Council,SCS Pooled Budgets,Direct Payments City Team,Other Agency and Contracted Services,57401,Direct Payments,11/12/2013,3301739721,1682.23,WK3 Advance Housing & Support
http://statistics.data.gov.uk/id/local-authority/38,Oxfordshire County Council,SCS Pooled Budgets,Direct Payments City Team,Other Agency and Contracted Services,57401,Direct Payments,11/12/2013,3301739721,1107.48,WK3 Advance Housing & Support
http://statistics.data.gov.uk/id/local-authority/38,Oxfordshire County Council,SCS Pooled Budgets,PD Comm Supp Budget - Banbury,Other Agency and Contracted Services,57401,Direct Payments,11/12/2013,3301739722,563.48,WK3 Advance Housing & Support
http://statistics.data.gov.uk/id/local-authority/38,Oxfordshire County Council,SCS Pooled Budgets,PD Comm Supp Purchasg Budget - City,Other Agency and Contracted Services,57401,Direct Payments,11/12/2013,3301739723,1484.44,WK3 Advance Housing & Support
http://statistics.data.gov.uk/id/local-authority/38,Oxfordshire County Council,SCS Pooled Budgets,Community Support Budget - Henley,Other Agency and Contracted Services,57401,Direct Payments,11/12/2013,3301739727,519.28,WK3 Advance Housing & Support
http://statistics.data.gov.uk/id/local-authority/38,Oxfordshire County Council,SCS Pooled Budgets,Community Support Budget - Chipping Nort,Other Agency and Contracted Services,57401,Direct Payments,11/12/2013,3301739729,739.44,WK3 Advance Housing & Support
http://statistics.data.gov.uk/id/local-authority/38,Oxfordshire County Council,SCS Pooled Budgets,Community Support Budget - Banbury,Other Agency and Contracted Services,57401,Direct Payments,11/12/2013,3301739731,540,WK3 Advance Housing & Support
http://statistics.data.gov.uk/id/local-authority/38,Oxfordshire County Council,SCS Pooled Budgets,Community Support Budget - Banbury,Other Agency and Contracted Services,57401,Direct Payments,11/12/2013,3301739731,1137.86,WK3 Advance Housing & Support
http://statistics.data.gov.uk/id/local-authority/38,Oxfordshire County Council,SCS Pooled Budgets,Community Support Budget - Banbury,Other Agency and Contracted Services,57401,Direct Payments,11/12/2013,3301739731,-1062,WK3 Advance Housing & Support
http://statistics.data.gov.uk/id/local-authority/38,Oxfordshire County Council,SCS Pooled Budgets,PD Comm Supp Budgt - Bicester/Kidlington,Other Agency and Contracted Services,57401,Direct Payments,11/12/2013,3301739732,501.5,WK3 Advance Housing & Support
http://statistics.data.gov.uk/id/local-authority/38,Oxfordshire County Council,SCS Pooled Budgets,Community Support Budget - Banbury,Other Agency and Contracted Services,57401,Direct Payments,11/12/2013,3301739734,2080,WK3 Advance Housing & Support
http://statistics.data.gov.uk/id/local-authority/38,Oxfordshire County Council,SCS Pooled Budgets,Direct Payments South Team,Other Agency and Contracted Services,57401,Direct Payments,11/12/2013,3301739738,907.2,WK3 Advance Housing & Support
http://statistics.data.gov.uk/id/local-authority/38,Oxfordshire County Council,SCS Pooled Budgets,PD Comm Supp Budgt - Bicester/Kidlington,Other Agency and Contracted Services,57401,Direct Payments,11/12/2013,3301739741,1824,WK3 Advance Housing & Support
http://statistics.data.gov.uk/id/local-authority/38,Oxfordshire County Council,SCS Pooled Budgets,Community Support Budget - Witney,Other Agency and Contracted Services,57401,Direct Payments,11/12/2013,3301739743,969.6,WK3 Advance Housing & Support
http://statistics.data.gov.uk/id/local-authority/38,Oxfordshire County Council,SCS Pooled Budgets,Personal Health Budgets PD (PCT),Other Agency and Contracted Services,57401,Direct Payments,11/12/2013,3301739744,7334.52,WK3 Advance Housing & Support
http://statistics.data.gov.uk/id/local-authority/38,Oxfordshire County Council,SCS Pooled Budgets,Community Support Budget - Faringdon,Other Agency and Contracted Services,57401,Direct Payments,11/12/2013,3301739747,732,WK3 Advance Housing & Support
http://statistics.data.gov.uk/id/local-authority/38,Oxfordshire County Council,SCS Pooled Budgets,Direct Payments South Team,Other Agency and Contracted Services,57401,Direct Payments,11/12/2013,3301739750,907.2,WK3 Advance Housing & Support
http://statistics.data.gov.uk/id/local-authority/38,Oxfordshire County Council,SCS Pooled Budgets,Community Support Budget - Abingdon,Other Agency and Contracted Services,57401,Direct Payments,11/12/2013,3301739751,1226.68,WK3 Advance Housing & Support
http://statistics.data.gov.uk/id/local-authority/38,Oxfordshire County Council,SCS Pooled Budgets,OP Pool Continuing Care Delegated Health,Other Agency and Contracted Services,57401,Direct Payments,11/12/2013,3301739751,917.32,WK3 Advance Housing & Support
http://statistics.data.gov.uk/id/local-authority/38,Oxfordshire County Council,SCS Pooled Budgets,Community Support Budget - Banbury,Other Agency and Contracted Services,57401,Direct Payments,11/12/2013,3301739752,1068,WK3 Advance Housing & Support
http://statistics.data.gov.uk/id/local-authority/38,Oxfordshire County Council,SCS Pooled Budgets,PD Comm Supp Purchasg Budget - Witney,Other Agency and Contracted Services,57401,Direct Payments,11/12/2013,3301739753,1212,WK3 Advance Housing & Support
http://statistics.data.gov.uk/id/local-authority/38,Oxfordshire County Council,SCS Pooled Budgets,Community Support Budget - Abingdon,Other Agency and Contracted Services,57401,Direct Payments,11/12/2013,3301739754,512,WK3 Advance Housing & Support
http://statistics.data.gov.uk/id/local-authority/38,Oxfordshire County Council,SCS Pooled Budgets,Community Support Budget - City,Other Agency and Contracted Services,57401,Direct Payments,11/12/2013,3301739756,688,WK3 Advance Housing & Support
http://statistics.data.gov.uk/id/local-authority/38,Oxfordshire County Council,SCS Pooled Budgets,Community Support Budget - City,Other Agency and Contracted Services,57401,Direct Payments,11/12/2013,3301739756,2334.29,WK3 Advance Housing & Support
http://statistics.data.gov.uk/id/local-authority/38,Oxfordshire County Council,SCS Pooled Budgets,Community Support Budget - City,Other Agency and Contracted Services,57401,Direct Payments,11/12/2013,3301739756,-1079.2,WK3 Advance Housing & Support
http://statistics.data.gov.uk/id/local-authority/38,Oxfordshire County Council,SCS Pooled Budgets,Community Support Budget - Banbury,Other Agency and Contracted Services,57401,Direct Payments,11/12/2013,3301739758,1780,WK3 Advance Housing & Support
http://statistics.data.gov.uk/id/local-authority/38,Oxfordshire County Council,SCS Pooled Budgets,Community Support Budget - Banbury,Other Agency and Contracted Services,57401,Direct Payments,11/12/2013,3301739759,900,WK3 Advance Housing & Support
http://statistics.data.gov.uk/id/local-authority/38,Oxfordshire County Council,SCS Pooled Budgets,Community Support Budget - Banbury,Other Agency and Contracted Services,57401,Direct Payments,11/12/2013,3301739760,520,WK3 Advance Housing & Support
http://statistics.data.gov.uk/id/local-authority/38,Oxfordshire County Council,SCS Pooled Budgets,Community Support Budget - Banbury,Other Agency and Contracted Services,57401,Direct Payments,11/12/2013,3301739761,834.8,WK3 Advance Housing & Support
http://statistics.data.gov.uk/id/local-authority/38,Oxfordshire County Council,SCS Pooled Budgets,Community Support Budget - Banbury,Other Agency and Contracted Services,57401,Direct Payments,11/12/2013,3301739761,894.43,WK3 Advance Housing & Support
http://statistics.data.gov.uk/id/local-authority/38,Oxfordshire County Council,SCS Pooled Budgets,Community Support Budget - Banbury,Other Agency and Contracted Services,57401,Direct Payments,11/12/2013,3301739761,-731.57,WK3 Advance Housing & Support
http://statistics.data.gov.uk/id/local-authority/38,Oxfordshire County Council,SCS Pooled Budgets,Direct Payments South Team,Other Agency and Contracted Services,57401,Direct Payments,11/12/2013,3301739763,536,WK3 Advance Housing & Support
http://statistics.data.gov.uk/id/local-authority/38,Oxfordshire County Council,SCS Pooled Budgets,Community Support Budget - Didcot,Other Agency and Contracted Services,57401,Direct Payments,11/12/2013,3301739765,1620.86,WK3 Advance Housing & Support
http://statistics.data.gov.uk/id/local-authority/38,Oxfordshire County Council,SCS Pooled Budgets,PD Comm Supp Purchasg Budget - City,Other Agency and Contracted Services,57401,Direct Payments,11/12/2013,3301739766,784,WK3 Advance Housing & Support
http://statistics.data.gov.uk/id/local-authority/38,Oxfordshire County Council,SCS Pooled Budgets,PD Comm Supp Purchasg Budget - Abingdon,Other Agency and Contracted Services,57401,Direct Payments,11/12/2013,3301739767,926.4,WK3 Advance Housing & Support
http://statistics.data.gov.uk/id/local-authority/38,Oxfordshire County Council,SCS Pooled Budgets,OP Pool Continuing Care Delegated Health,Other Agency and Contracted Services,57401,Direct Payments,11/12/2013,3301739769,965.28,WK3 Advance Housing & Support
http://statistics.data.gov.uk/id/local-authority/38,Oxfordshire County Council,SCS Pooled Budgets,Community Support Budget - Abingdon,Other Agency and Contracted Services,57401,Direct Payments,11/12/2013,3301739769,1352.24,WK3 Advance Housing & Support
http://statistics.data.gov.uk/id/local-authority/38,Oxfordshire County Council,SCS Pooled Budgets,PD Community Support Budget - Kidlington,Other Agency and Contracted Services,57401,Direct Payments,11/12/2013,3301739771,2628,WK3 Advance Housing & Support
http://statistics.data.gov.uk/id/local-authority/38,Oxfordshire County Council,Social & Community Services,Community Support Budget - City East,Other Agency and Contracted Services,57401,Direct Payments,11/12/2013,3301739772,880,WK3 Advance Housing & Support
http://statistics.data.gov.uk/id/local-authority/38,Oxfordshire County Council,SCS Pooled Budgets,PD Comm Supp Purchasg Budget - City,Other Agency and Contracted Services,57401,Direct Payments,11/12/2013,3301739773,520,WK3 Advance Housing & Support
http://statistics.data.gov.uk/id/local-authority/38,Oxfordshire County Council,SCS Pooled Budgets,Community Support Budget - City,Other Agency and Contracted Services,57401,Direct Payments,11/12/2013,3301739774,760,WK3 Advance Housing & Support
http://statistics.data.gov.uk/id/local-authority/38,Oxfordshire County Council,SCS Pooled Budgets,PD Comm Supp Purchasg Budget - Thame,Other Agency and Contracted Services,57401,Direct Payments,11/12/2013,3301739776,1228.24,WK3 Advance Housing & Support
http://statistics.data.gov.uk/id/local-authority/38,Oxfordshire County Council,SCS Pooled Budgets,Community Support Budget - Chipping Nort,Other Agency and Contracted Services,57401,Direct Payments,11/12/2013,3301739777,1056,WK3 Advance Housing & Support
http://statistics.data.gov.uk/id/local-authority/38,Oxfordshire County Council,SCS Pooled Budgets,Community Support Budget - Chipping Nort,Other Agency and Contracted Services,57401,Direct Payments,11/12/2013,3301739777,792,WK3 Advance Housing & Support
http://statistics.data.gov.uk/id/local-authority/38,Oxfordshire County Council,SCS Pooled Budgets,Community Support Budget - Chipping Nort,Other Agency and Contracted Services,57401,Direct Payments,11/12/2013,3301739777,-759,WK3 Advance Housing & Support
http://statistics.data.gov.uk/id/local-authority/38,Oxfordshire County Council,SCS Pooled Budgets,Direct Payments South Team,Other Agency and Contracted Services,57401,Direct Payments,11/12/2013,3301739778,1068,WK3 Advance Housing & Support
http://statistics.data.gov.uk/id/local-authority/38,Oxfordshire County Council,SCS Pooled Budgets,PD Comm Supp Purchasg Budget - City,Other Agency and Contracted Services,57401,Direct Payments,11/12/2013,3301739779,560,WK3 Advance Housing & Support
http://statistics.data.gov.uk/id/local-authority/38,Oxfordshire County Council,SCS Pooled Budgets,Community Support Budget - Thame,Other Agency and Contracted Services,57401,Direct Payments,11/12/2013,3301739780,780,WK3 Advance Housing & Support
http://statistics.data.gov.uk/id/local-authority/38,Oxfordshire County Council,SCS Pooled Budgets,Community Support Budget - Witney,Other Agency and Contracted Services,57401,Direct Payments,11/12/2013,3301739781,1072,WK3 Advance Housing & Support
http://statistics.data.gov.uk/id/local-authority/38,Oxfordshire County Council,SCS Pooled Budgets,Community Support Budget - Banbury,Other Agency and Contracted Services,57401,Direct Payments,11/12/2013,3301739783,800,WK3 Advance Housing & Support
http://statistics.data.gov.uk/id/local-authority/38,Oxfordshire County Council,Social & Community Services,Community Support Budget - City East,Other Agency and Contracted Services,57401,Direct Payments,11/12/2013,3301739784,864.4,WK3 Advance Housing & Support
http://statistics.data.gov.uk/id/local-authority/38,Oxfordshire County Council,SCS Pooled Budgets,Community Support Budget - Abingdon,Other Agency and Contracted Services,57401,Direct Payments,11/12/2013,3301739786,1100,WK3 Advance Housing & Support
http://statistics.data.gov.uk/id/local-authority/38,Oxfordshire County Council,SCS Pooled Budgets,Direct Payments South Team,Other Agency and Contracted Services,57401,Direct Payments,11/12/2013,3301739787,907.2,WK3 Advance Housing & Support
http://statistics.data.gov.uk/id/local-authority/38,Oxfordshire County Council,SCS Pooled Budgets,PD Comm Supp Purchasg Budget - Witney,Other Agency and Contracted Services,57401,Direct Payments,11/12/2013,3301739789,1796,WK3 Advance Housing & Support
http://statistics.data.gov.uk/id/local-authority/38,Oxfordshire County Council,SCS Pooled Budgets,Community Support Budget - Banbury,Other Agency and Contracted Services,57401,Direct Payments,11/12/2013,3301739790,868,WK3 Advance Housing & Support
http://statistics.data.gov.uk/id/local-authority/38,Oxfordshire County Council,SCS Pooled Budgets,Community Support Budget - Banbury,Other Agency and Contracted Services,57401,Direct Payments,11/12/2013,3301739792,1304,WK3 Advance Housing & Support
http://statistics.data.gov.uk/id/local-authority/38,Oxfordshire County Council,SCS Pooled Budgets,Community Support Budget - Banbury,Other Agency and Contracted Services,57401,Direct Payments,11/12/2013,3301739793,616,WK3 Advance Housing & Support
http://statistics.data.gov.uk/id/local-authority/38,Oxfordshire County Council,SCS Pooled Budgets,Community Support Budget - Banbury,Other Agency and Contracted Services,57401,Direct Payments,11/12/2013,3301739794,940,WK3 Advance Housing & Support
http://statistics.data.gov.uk/id/local-authority/38,Oxfordshire County Council,SCS Pooled Budgets,Community Support Budget - Bicester,Other Agency and Contracted Services,57401,Direct Payments,11/12/2013,3301739795,912,WK3 Advance Housing & Support
http://statistics.data.gov.uk/id/local-authority/38,Oxfordshire County Council,SCS Pooled Budgets,Community Support Budget - Witney,Other Agency and Contracted Services,57401,Direct Payments,11/12/2013,3301739796,1684,WK3 Advance Housing & Support
http://statistics.data.gov.uk/id/local-authority/38,Oxfordshire County Council,SCS Pooled Budgets,Community Support Budget - Chipping Nort,Other Agency and Contracted Services,57401,Direct Payments,11/12/2013,3301739797,4572,WK3 Advance Housing & Support
http://statistics.data.gov.uk/id/local-authority/38,Oxfordshire County Council,SCS Pooled Budgets,PHB OP Package,Other Agency and Contracted Services,57401,Direct Payments,11/12/2013,3301739798,7844.01,WK3 Advance Housing & Support
http://statistics.data.gov.uk/id/local-authority/38,Oxfordshire County Council,SCS Pooled Budgets,PHB OP Package,Other Agency and Contracted Services,57401,Direct Payments,11/12/2013,3301739798,-920.34,WK3 Advance Housing & Support
http://statistics.data.gov.uk/id/local-authority/38,Oxfordshire County Council,SCS Pooled Budgets,Community Support Budget - Banbury,Other Agency and Contracted Services,57401,Direct Payments,11/12/2013,3301739800,504,WK3 Advance Housing & Support
http://statistics.data.gov.uk/id/local-authority/38,Oxfordshire County Council,SCS Pooled Budgets,Community Support Budget - City,Other Agency and Contracted Services,57401,Direct Payments,11/12/2013,3301739801,640,WK3 Advance Housing & Support
http://statistics.data.gov.uk/id/local-authority/38,Oxfordshire County Council,SCS Pooled Budgets,Community Support Budget - Faringdon,Other Agency and Contracted Services,57401,Direct Payments,11/12/2013,3301739804,780.32,WK3 Advance Housing & Support
http://statistics.data.gov.uk/id/local-authority/38,Oxfordshire County Council,SCS Pooled Budgets,Direct Payments City Team,Other Agency and Contracted Services,57401,Direct Payments,11/12/2013,3301739806,511.6,WK3 Advance Housing & Support
http://statistics.data.gov.uk/id/local-authority/38,Oxfordshire County Council,SCS Pooled Budgets,Community Support Budget - Banbury,Other Agency and Contracted Services,57401,Direct Payments,11/12/2013,3301739807,1346.4,WK3 Advance Housing & Support
http://statistics.data.gov.uk/id/local-authority/38,Oxfordshire County Council,SCS Pooled Budgets,Community Support Budget - Abingdon,Other Agency and Contracted Services,57401,Direct Payments,11/12/2013,3301739809,2612,WK3 Advance Housing & Support
http://statistics.data.gov.uk/id/local-authority/38,Oxfordshire County Council,SCS Pooled Budgets,Community Support Budget - Banbury,Other Agency and Contracted Services,57401,Direct Payments,11/12/2013,3301739811,2812,WK3 Advance Housing & Support
http://statistics.data.gov.uk/id/local-authority/38,Oxfordshire County Council,SCS Pooled Budgets,Community Support Budget - Witney,Other Agency and Contracted Services,57401,Direct Payments,11/12/2013,3301739812,1468,WK3 Advance Housing & Support
http://statistics.data.gov.uk/id/local-authority/38,Oxfordshire County Council,SCS Pooled Budgets,Community Support Budget - Witney,Other Agency and Contracted Services,57401,Direct Payments,11/12/2013,3301739813,556,WK3 Advance Housing & Support
http://statistics.data.gov.uk/id/local-authority/38,Oxfordshire County Council,SCS Pooled Budgets,Community Support Budget - Bicester,Other Agency and Contracted Services,57401,Direct Payments,11/12/2013,3301739815,2924,WK3 Advance Housing & Support
http://statistics.data.gov.uk/id/local-authority/38,Oxfordshire County Council,SCS Pooled Budgets,Community Support Budget - Bicester,Other Agency and Contracted Services,57401,Direct Payments,11/12/2013,3301739815,4594.86,WK3 Advance Housing & Support
http://statistics.data.gov.uk/id/local-authority/38,Oxfordshire County Council,SCS Pooled Budgets,Community Support Budget - Bicester,Other Agency and Contracted Services,57401,Direct Payments,11/12/2013,3301739815,-4450.29,WK3 Advance Housing & Support
http://statistics.data.gov.uk/id/local-authority/38,Oxfordshire County Council,SCS Pooled Budgets,Direct Payments South Team,Other Agency and Contracted Services,57401,Direct Payments,11/12/2013,3301739816,735.2,WK3 Advance Housing & Support
http://statistics.data.gov.uk/id/local-authority/38,Oxfordshire County Council,SCS Pooled Budgets,Direct Payments North Team,Other Agency and Contracted Services,57401,Direct Payments,11/12/2013,3301739818,1076,WK3 Advance Housing & Support
http://statistics.data.gov.uk/id/local-authority/38,Oxfordshire County Council,SCS Pooled Budgets,PD Comm Supp Purchasg Budget - Didcot,Other Agency and Contracted Services,57401,Direct Payments,11/12/2013,3301739820,1519,WK3 Advance Housing & Support
http://statistics.data.gov.uk/id/local-authority/38,Oxfordshire County Council,SCS Pooled Budgets,Community Support Budget - Banbury,Other Agency and Contracted Services,57401,Direct Payments,11/12/2013,3301739823,600,WK3 Advance Housing & Support
http://statistics.data.gov.uk/id/local-authority/38,Oxfordshire County Council,SCS Pooled Budgets,Community Support Budget - Banbury,Other Agency and Contracted Services,57401,Direct Payments,11/12/2013,3301739826,680.4,WK3 Advance Housing & Support
http://statistics.data.gov.uk/id/local-authority/38,Oxfordshire County Council,SCS Pooled Budgets,Community Support Budget - Banbury,Other Agency and Contracted Services,57401,Direct Payments,11/12/2013,3301739827,1056,WK3 Advance Housing & Support
http://statistics.data.gov.uk/id/local-authority/38,Oxfordshire County Council,SCS Pooled Budgets,Community Support Budget - Witney,Other Agency and Contracted Services,57401,Direct Payments,11/12/2013,3301739828,872,WK3 Advance Housing & Support
http://statistics.data.gov.uk/id/local-authority/38,Oxfordshire County Council,SCS Pooled Budgets,PD Comm Supp Purchasg Budget - Thame,Other Agency and Contracted Services,57401,Direct Payments,11/12/2013,3301739830,708,WK3 Advance Housing & Support
http://statistics.data.gov.uk/id/local-authority/38,Oxfordshire County Council,SCS Pooled Budgets,PD Comm Supp Purchasg Budget - Witney,Other Agency and Contracted Services,57401,Direct Payments,11/12/2013,3301739832,616,WK3 Advance Housing & Support
http://statistics.data.gov.uk/id/local-authority/38,Oxfordshire County Council,SCS Pooled Budgets,Community Support Budget - Thame,Other Agency and Contracted Services,57401,Direct Payments,11/12/2013,3301739833,1476.32,WK3 Advance Housing & Support
http://statistics.data.gov.uk/id/local-authority/38,Oxfordshire County Council,SCS Pooled Budgets,Direct Payments North Team,Other Agency and Contracted Services,57401,Direct Payments,11/12/2013,3301739834,1681,WK3 Advance Housing & Support
http://statistics.data.gov.uk/id/local-authority/38,Oxfordshire County Council,SCS Pooled Budgets,Direct Payments North Team,Other Agency and Contracted Services,57401,Direct Payments,11/12/2013,3301739835,1323.6,WK3 Advance Housing & Support
http://statistics.data.gov.uk/id/local-authority/38,Oxfordshire County Council,SCS Pooled Budgets,PD Comm Supp Purchasg Budget - Didcot,Other Agency and Contracted Services,57401,Direct Payments,11/12/2013,3301739839,776,WK3 Advance Housing & Support
http://statistics.data.gov.uk/id/local-authority/38,Oxfordshire County Council,SCS Pooled Budgets,Direct Payments North Team,Other Agency and Contracted Services,57401,Direct Payments,11/12/2013,3301739840,4333.84,WK3 Advance Housing & Support
http://statistics.data.gov.uk/id/local-authority/38,Oxfordshire County Council,SCS Pooled Budgets,Community Support Budget - Henley,Other Agency and Contracted Services,57401,Direct Payments,11/12/2013,3301739842,1400,WK3 Advance Housing & Support
http://statistics.data.gov.uk/id/local-authority/38,Oxfordshire County Council,SCS Pooled Budgets,Direct Payments South Team,Other Agency and Contracted Services,57401,Direct Payments,11/12/2013,3301739843,774,WK3 Advance Housing & Support
http://statistics.data.gov.uk/id/local-authority/38,Oxfordshire County Council,SCS Pooled Budgets,Community Support Budget - Didcot,Other Agency and Contracted Services,57401,Direct Payments,11/12/2013,3301739844,500.29,WK3 Advance Housing & Support
http://statistics.data.gov.uk/id/local-authority/38,Oxfordshire County Council,SCS Pooled Budgets,Direct Payments North Team,Other Agency and Contracted Services,57401,Direct Payments,11/12/2013,3301739845,660,WK3 Advance Housing & Support
http://statistics.data.gov.uk/id/local-authority/38,Oxfordshire County Council,SCS Pooled Budgets,Community Support Budget - Banbury,Other Agency and Contracted Services,57401,Direct Payments,11/12/2013,3301739846,1758.72,WK3 Advance Housing & Support
http://statistics.data.gov.uk/id/local-authority/38,Oxfordshire County Council,SCS Pooled Budgets,Community Support Budget - Witney,Other Agency and Contracted Services,57401,Direct Payments,11/12/2013,3301739847,836,WK3 Advance Housing & Support
http://statistics.data.gov.uk/id/local-authority/38,Oxfordshire County Council,SCS Pooled Budgets,Community Support Budget - Witney,Other Agency and Contracted Services,57401,Direct Payments,11/12/2013,3301739847,1045,WK3 Advance Housing & Support
http://statistics.data.gov.uk/id/local-authority/38,Oxfordshire County Council,SCS Pooled Budgets,Community Support Budget - Witney,Other Agency and Contracted Services,57401,Direct Payments,11/12/2013,3301739847,-920,WK3 Advance Housing & Support
http://statistics.data.gov.uk/id/local-authority/38,Oxfordshire County Council,SCS Pooled Budgets,Direct Payments City Team,Other Agency and Contracted Services,57401,Direct Payments,11/12/2013,3301739848,1280,WK3 Advance Housing & Support
http://statistics.data.gov.uk/id/local-authority/38,Oxfordshire County Council,SCS Pooled Budgets,Community Support Budget - Thame,Other Agency and Contracted Services,57401,Direct Payments,11/12/2013,3301739849,608,WK3 Advance Housing & Support
http://statistics.data.gov.uk/id/local-authority/38,Oxfordshire County Council,SCS Pooled Budgets,Direct Payments City Team,Other Agency and Contracted Services,57401,Direct Payments,11/12/2013,3301739851,2800,WK3 Advance Housing & Support
http://statistics.data.gov.uk/id/local-authority/38,Oxfordshire County Council,SCS Pooled Budgets,Community Support Budget - Wantage,Other Agency and Contracted Services,57401,Direct Payments,11/12/2013,3301739853,2468,WK3 Advance Housing & Support
http://statistics.data.gov.uk/id/local-authority/38,Oxfordshire County Council,SCS Pooled Budgets,PD Comm Supp Purchasg Budget - Abingdon,Other Agency and Contracted Services,57401,Direct Payments,11/12/2013,3301739854,1772,WK3 Advance Housing & Support
http://statistics.data.gov.uk/id/local-authority/38,Oxfordshire County Council,SCS Pooled Budgets,Community Support Budget - Henley,Other Agency and Contracted Services,57401,Direct Payments,11/12/2013,3301739855,2580,WK3 Advance Housing & Support
http://statistics.data.gov.uk/id/local-authority/38,Oxfordshire County Council,SCS Pooled Budgets,PD Comm Supp Purchasg Budget - Abingdon,Other Agency and Contracted Services,57401,Direct Payments,11/12/2013,3301739856,1040,WK3 Advance Housing & Support
http://statistics.data.gov.uk/id/local-authority/38,Oxfordshire County Council,SCS Pooled Budgets,Community Support Budget - City,Other Agency and Contracted Services,57401,Direct Payments,11/12/2013,3301739857,1948,WK3 Advance Housing & Support
http://statistics.data.gov.uk/id/local-authority/38,Oxfordshire County Council,SCS Pooled Budgets,Community Support Budget - Henley,Other Agency and Contracted Services,57401,Direct Payments,11/12/2013,3301739859,520,WK3 Advance Housing & Support
http://statistics.data.gov.uk/id/local-authority/38,Oxfordshire County Council,SCS Pooled Budgets,PD Comm Supp Purchasg Budget - Wantage,Other Agency and Contracted Services,57401,Direct Payments,11/12/2013,3301739860,856,WK3 Advance Housing & Support
http://statistics.data.gov.uk/id/local-authority/38,Oxfordshire County Council,SCS Pooled Budgets,Community Support Budget - City,Other Agency and Contracted Services,57401,Direct Payments,11/12/2013,3301739861,600,WK3 Advance Housing & Support
http://statistics.data.gov.uk/id/local-authority/38,Oxfordshire County Council,SCS Pooled Budgets,Community Support Budget - Faringdon,Other Agency and Contracted Services,57401,Direct Payments,11/12/2013,3301739862,1224.48,WK3 Advance Housing & Support
http://statistics.data.gov.uk/id/local-authority/38,Oxfordshire County Council,SCS Pooled Budgets,Community Support Budget - Banbury,Other Agency and Contracted Services,57401,Direct Payments,11/12/2013,3301739863,1296,WK3 Advance Housing & Support
http://statistics.data.gov.uk/id/local-authority/38,Oxfordshire County Council,SCS Pooled Budgets,PD Comm Supp Budgt - Bicester/Kidlington,Other Agency and Contracted Services,57401,Direct Payments,11/12/2013,3301739864,716,WK3 Advance Housing & Support
http://statistics.data.gov.uk/id/local-authority/38,Oxfordshire County Council,SCS Pooled Budgets,Direct Payments North Team,Other Agency and Contracted Services,57401,Direct Payments,11/12/2013,3301739865,837.52,WK3 Advance Housing & Support
http://statistics.data.gov.uk/id/local-authority/38,Oxfordshire County Council,SCS Pooled Budgets,PD Comm Supp Budget - Banbury,Other Agency and Contracted Services,57401,Direct Payments,11/12/2013,3301739867,1773.76,WK3 Advance Housing & Support
http://statistics.data.gov.uk/id/local-authority/38,Oxfordshire County Council,SCS Pooled Budgets,PD Comm Supp Budgt - Bicester/Kidlington,Other Agency and Contracted Services,57401,Direct Payments,11/12/2013,3301739868,661.6,WK3 Advance Housing & Support
http://statistics.data.gov.uk/id/local-authority/38,Oxfordshire County Council,SCS Pooled Budgets,PD Comm Supp Purchasg Budget - Thame,Other Agency and Contracted Services,57401,Direct Payments,11/12/2013,3301739869,2123,WK3 Advance Housing & Support
http://statistics.data.gov.uk/id/local-authority/38,Oxfordshire County Council,SCS Pooled Budgets,Community Support Budget - Abingdon,Other Agency and Contracted Services,57401,Direct Payments,11/12/2013,3301739871,504,WK3 Advance Housing & Support
http://statistics.data.gov.uk/id/local-authority/38,Oxfordshire County Council,SCS Pooled Budgets,Direct Payments North Team,Other Agency and Contracted Services,57401,Direct Payments,11/12/2013,3301739872,1071.4,WK3 Advance Housing & Support
http://statistics.data.gov.uk/id/local-authority/38,Oxfordshire County Council,SCS Pooled Budgets,PD Comm Supp Budget - Banbury,Other Agency and Contracted Services,57401,Direct Payments,11/12/2013,3301739875,584,WK3 Advance Housing & Support
http://statistics.data.gov.uk/id/local-authority/38,Oxfordshire County Council,SCS Pooled Budgets,PD Comm Supp Purchasg Budget - Abingdon,Other Agency and Contracted Services,57401,Direct Payments,11/12/2013,3301739876,772,WK3 Advance Housing & Support
http://statistics.data.gov.uk/id/local-authority/38,Oxfordshire County Council,SCS Pooled Budgets,Direct Payments South Team,Other Agency and Contracted Services,57401,Direct Payments,11/12/2013,3301739877,1939.26,WK3 Advance Housing & Support
http://statistics.data.gov.uk/id/local-authority/38,Oxfordshire County Council,SCS Pooled Budgets,Direct Payments South Team,Other Agency and Contracted Services,57401,Direct Payments,11/12/2013,3301739878,590,WK3 Advance Housing & Support
http://statistics.data.gov.uk/id/local-authority/38,Oxfordshire County Council,SCS Pooled Budgets,Community Support Budget - Witney,Other Agency and Contracted Services,57401,Direct Payments,11/12/2013,3301739879,2491,WK3 Advance Housing & Support
http://statistics.data.gov.uk/id/local-authority/38,Oxfordshire County Council,SCS Pooled Budgets,Community Support Budget - Banbury,Other Agency and Contracted Services,57401,Direct Payments,11/12/2013,3301739880,2793.84,WK3 Advance Housing & Support
http://statistics.data.gov.uk/id/local-authority/38,Oxfordshire County Council,SCS Pooled Budgets,OP Pool Continuing Care Delegated Health,Other Agency and Contracted Services,57401,Direct Payments,11/12/2013,3301739880,1172.16,WK3 Advance Housing & Support
http://statistics.data.gov.uk/id/local-authority/38,Oxfordshire County Council,SCS Pooled Budgets,OP Pool Continuing Care Delegated Health,Other Agency and Contracted Services,57401,Direct Payments,11/12/2013,3301739880,781.44,WK3 Advance Housing & Support
http://statistics.data.gov.uk/id/local-authority/38,Oxfordshire County Council,SCS Pooled Budgets,Community Support Budget - Banbury,Other Agency and Contracted Services,57401,Direct Payments,11/12/2013,3301739880,1862.56,WK3 Advance Housing & Support
http://statistics.data.gov.uk/id/local-authority/38,Oxfordshire County Council,SCS Pooled Budgets,Community Support Budget - Banbury,Other Agency and Contracted Services,57401,Direct Payments,11/12/2013,3301739880,-3871.57,WK3 Advance Housing & Support
http://statistics.data.gov.uk/id/local-authority/38,Oxfordshire County Council,SCS Pooled Budgets,Direct Payments North Team,Other Agency and Contracted Services,57401,Direct Payments,11/12/2013,3301739881,6087.43,WK3 Advance Housing & Support
http://statistics.data.gov.uk/id/local-authority/38,Oxfordshire County Council,SCS Pooled Budgets,PHB OP Package,Other Agency and Contracted Services,57401,Direct Payments,11/12/2013,3301739884,6251.92,WK3 Advance Housing & Support
http://statistics.data.gov.uk/id/local-authority/38,Oxfordshire County Council,SCS Pooled Budgets,Direct Payments North Team,Other Agency and Contracted Services,57401,Direct Payments,11/12/2013,3301739885,4483.52,WK3 Advance Housing & Support
http://statistics.data.gov.uk/id/local-authority/38,Oxfordshire County Council,SCS Pooled Budgets,Direct Payments South Team,Other Agency and Contracted Services,57401,Direct Payments,11/12/2013,3301739886,907.2,WK3 Advance Housing & Support
http://statistics.data.gov.uk/id/local-authority/38,Oxfordshire County Council,SCS Pooled Budgets,Direct Payments South Team,Other Agency and Contracted Services,57401,Direct Payments,11/12/2013,3301739889,1166.4,WK3 Advance Housing & Support
http://statistics.data.gov.uk/id/local-authority/38,Oxfordshire County Council,SCS Pooled Budgets,Direct Payments South Team,Other Agency and Contracted Services,57401,Direct Payments,11/12/2013,3301739890,1060,WK3 Advance Housing & Support
http://statistics.data.gov.uk/id/local-authority/38,Oxfordshire County Council,SCS Pooled Budgets,Direct Payments South Team,Other Agency and Contracted Services,57401,Direct Payments,11/12/2013,3301739892,907.2,WK3 Advance Housing & Support
http://statistics.data.gov.uk/id/local-authority/38,Oxfordshire County Council,SCS Pooled Budgets,Direct Payments South Team,Other Agency and Contracted Services,57401,Direct Payments,11/12/2013,3301739893,907.2,WK3 Advance Housing & Support
http://statistics.data.gov.uk/id/local-authority/38,Oxfordshire County Council,SCS Pooled Budgets,Direct Payments South Team,Other Agency and Contracted Services,57401,Direct Payments,11/12/2013,3301739894,3400,WK3 Advance Housing & Support
http://statistics.data.gov.uk/id/local-authority/38,Oxfordshire County Council,SCS Pooled Budgets,Direct Payments South Team,Other Agency and Contracted Services,57401,Direct Payments,11/12/2013,3301739895,907.2,WK3 Advance Housing & Support
http://statistics.data.gov.uk/id/local-authority/38,Oxfordshire County Council,SCS Pooled Budgets,Direct Payments South Team,Other Agency and Contracted Services,57401,Direct Payments,11/12/2013,3301739898,907.2,WK3 Advance Housing & Support
http://statistics.data.gov.uk/id/local-authority/38,Oxfordshire County Council,SCS Pooled Budgets,Direct Payments South Team,Other Agency and Contracted Services,57401,Direct Payments,11/12/2013,3301739899,777.6,WK3 Advance Housing & Support
http://statistics.data.gov.uk/id/local-authority/38,Oxfordshire County Council,SCS Pooled Budgets,PD Community Support Budget - Kidlington,Other Agency and Contracted Services,57401,Direct Payments,11/12/2013,3301739900,560,WK3 Advance Housing & Support
http://statistics.data.gov.uk/id/local-authority/38,Oxfordshire County Council,SCS Pooled Budgets,PD Comm Supp Purchasg Budget - City,Other Agency and Contracted Services,57401,Direct Payments,11/12/2013,3301739902,1116,WK3 Advance Housing & Support
http://statistics.data.gov.uk/id/local-authority/38,Oxfordshire County Council,SCS Pooled Budgets,OP Pool Continuing Care Delegated Health,Other Agency and Contracted Services,57401,Direct Payments,11/12/2013,3301739903,1764,WK3 Advance Housing & Support
http://statistics.data.gov.uk/id/local-authority/38,Oxfordshire County Council,SCS Pooled Budgets,Community Support Budget - City,Other Agency and Contracted Services,57401,Direct Payments,11/12/2013,3301739903,3108,WK3 Advance Housing & Support
http://statistics.data.gov.uk/id/local-authority/38,Oxfordshire County Council,SCS Pooled Budgets,PD Community Support Budget - Kidlington,Other Agency and Contracted Services,57401,Direct Payments,11/12/2013,3301739904,2872,WK3 Advance Housing & Support
http://statistics.data.gov.uk/id/local-authority/38,Oxfordshire County Council,SCS Pooled Budgets,Direct Payments City Team,Other Agency and Contracted Services,57401,Direct Payments,11/12/2013,3301739906,2754.32,WK3 Advance Housing & Support
http://statistics.data.gov.uk/id/local-authority/38,Oxfordshire County Council,SCS Pooled Budgets,Direct Payments City Team,Other Agency and Contracted Services,57401,Direct Payments,11/12/2013,3301739907,840,WK3 Advance Housing & Support
http://statistics.data.gov.uk/id/local-authority/38,Oxfordshire County Council,SCS Pooled Budgets,Direct Payments City Team,Other Agency and Contracted Services,57401,Direct Payments,11/12/2013,3301739908,648,WK3 Advance Housing & Support
http://statistics.data.gov.uk/id/local-authority/38,Oxfordshire County Council,SCS Pooled Budgets,Direct Payments City Team,Other Agency and Contracted Services,57401,Direct Payments,11/12/2013,3301739909,1016.4,WK3 Advance Housing & Support
http://statistics.data.gov.uk/id/local-authority/38,Oxfordshire County Council,SCS Pooled Budgets,PD CS Purch Budget - Health S28a JC,Other Agency and Contracted Services,57401,Direct Payments,11/12/2013,3301739910,582.28,WK3 Advance Housing & Support
http://statistics.data.gov.uk/id/local-authority/38,Oxfordshire County Council,SCS Pooled Budgets,PD Comm Supp Purchasg Budget - City,Other Agency and Contracted Services,57401,Direct Payments,11/12/2013,3301739910,1673.04,WK3 Advance Housing & Support
http://statistics.data.gov.uk/id/local-authority/38,Oxfordshire County Council,SCS Pooled Budgets,Community Support Budget - City,Other Agency and Contracted Services,57401,Direct Payments,11/12/2013,3301739911,3047.2,WK3 Advance Housing & Support
http://statistics.data.gov.uk/id/local-authority/38,Oxfordshire County Council,SCS Pooled Budgets,Direct Payments South Team,Other Agency and Contracted Services,57401,Direct Payments,11/12/2013,3301739913,648,WK3 Advance Housing & Support
http://statistics.data.gov.uk/id/local-authority/38,Oxfordshire County Council,SCS Pooled Budgets,Direct Payments South Team,Other Agency and Contracted Services,57401,Direct Payments,11/12/2013,3301739914,1101.6,WK3 Advance Housing & Support
http://statistics.data.gov.uk/id/local-authority/38,Oxfordshire County Council,SCS Pooled Budgets,Direct Payments South Team,Other Agency and Contracted Services,57401,Direct Payments,11/12/2013,3301739917,907.2,WK3 Advance Housing & Support
http://statistics.data.gov.uk/id/local-authority/38,Oxfordshire County Council,SCS Pooled Budgets,Direct Payments South Team,Other Agency and Contracted Services,57401,Direct Payments,11/12/2013,3301739918,705.6,WK3 Advance Housing & Support
http://statistics.data.gov.uk/id/local-authority/38,Oxfordshire County Council,SCS Pooled Budgets,Direct Payments North Team,Other Agency and Contracted Services,57401,Direct Payments,11/12/2013,3301739920,705.68,WK3 Advance Housing & Support
http://statistics.data.gov.uk/id/local-authority/38,Oxfordshire County Council,SCS Pooled Budgets,Direct Payments South Team,Other Agency and Contracted Services,57401,Direct Payments,11/12/2013,3301739921,777.6,WK3 Advance Housing & Support
http://statistics.data.gov.uk/id/local-authority/38,Oxfordshire County Council,SCS Pooled Budgets,PD Comm Supp Purchasg Budget - Thame,Other Agency and Contracted Services,57401,Direct Payments,11/12/2013,3301739922,1176.04,WK3 Advance Housing & Support
http://statistics.data.gov.uk/id/local-authority/38,Oxfordshire County Council,SCS Pooled Budgets,PD Comm Supp Purchasg Budget - Thame,Other Agency and Contracted Services,57401,Direct Payments,11/12/2013,3301739923,1000,WK3 Advance Housing & Support
http://statistics.data.gov.uk/id/local-authority/38,Oxfordshire County Council,SCS Pooled Budgets,PD Comm Supp Budgt - Bicester/Kidlington,Other Agency and Contracted Services,57401,Direct Payments,11/12/2013,3301739924,1015.2,WK3 Advance Housing & Support
http://statistics.data.gov.uk/id/local-authority/38,Oxfordshire County Council,SCS Pooled Budgets,PD Comm Supp Budget - Banbury,Other Agency and Contracted Services,57401,Direct Payments,11/12/2013,3301739925,888,WK3 Advance Housing & Support
http://statistics.data.gov.uk/id/local-authority/38,Oxfordshire County Council,SCS Pooled Budgets,Direct Payments North Team,Other Agency and Contracted Services,57401,Direct Payments,11/12/2013,3301739926,5189.58,WK3 Advance Housing & Support
http://statistics.data.gov.uk/id/local-authority/38,Oxfordshire County Council,SCS Pooled Budgets,Direct Payments North Team,Other Agency and Contracted Services,57401,Direct Payments,11/12/2013,3301739926,3417,WK3 Advance Housing & Support
http://statistics.data.gov.uk/id/local-authority/38,Oxfordshire County Council,SCS Pooled Budgets,Community Support Budget - Banbury,Other Agency and Contracted Services,57401,Direct Payments,11/12/2013,3301739927,612,WK3 Advance Housing & Support
http://statistics.data.gov.uk/id/local-authority/38,Oxfordshire County Council,SCS Pooled Budgets,Community Support Budget - Banbury,Other Agency and Contracted Services,57401,Direct Payments,11/12/2013,3301739928,1080,WK3 Advance Housing & Support
http://statistics.data.gov.uk/id/local-authority/38,Oxfordshire County Council,SCS Pooled Budgets,Community Support Budget - Banbury,Other Agency and Contracted Services,57401,Direct Payments,11/12/2013,3301739929,1700,WK3 Advance Housing & Support
http://statistics.data.gov.uk/id/local-authority/38,Oxfordshire County Council,SCS Pooled Budgets,Community Support Budget - Banbury,Other Agency and Contracted Services,57401,Direct Payments,11/12/2013,3301739931,528,WK3 Advance Housing & Support
http://statistics.data.gov.uk/id/local-authority/38,Oxfordshire County Council,SCS Pooled Budgets,PD Comm Supp Budget - Banbury,Other Agency and Contracted Services,57401,Direct Payments,11/12/2013,3301739932,680.12,WK3 Advance Housing & Support
http://statistics.data.gov.uk/id/local-authority/38,Oxfordshire County Council,SCS Pooled Budgets,PD Comm Supp Budget - Banbury,Other Agency and Contracted Services,57401,Direct Payments,11/12/2013,3301739933,548,WK3 Advance Housing & Support
http://statistics.data.gov.uk/id/local-authority/38,Oxfordshire County Council,SCS Pooled Budgets,PD CS Purch Budget - Health S28a JC,Other Agency and Contracted Services,57401,Direct Payments,11/12/2013,3301739934,1428,WK3 Advance Housing & Support
http://statistics.data.gov.uk/id/local-authority/38,Oxfordshire County Council,SCS Pooled Budgets,PD Comm Supp Budget - Banbury,Other Agency and Contracted Services,57401,Direct Payments,11/12/2013,3301739934,4772,WK3 Advance Housing & Support
http://statistics.data.gov.uk/id/local-authority/38,Oxfordshire County Council,SCS Pooled Budgets,PD Comm Supp Purchasg Budget - City,Other Agency and Contracted Services,57401,Direct Payments,11/12/2013,3301739937,662.96,WK3 Advance Housing & Support
http://statistics.data.gov.uk/id/local-authority/38,Oxfordshire County Council,SCS Pooled Budgets,Direct Payments North Team,Other Agency and Contracted Services,57401,Direct Payments,11/12/2013,3301739941,600,WK3 Advance Housing & Support
http://statistics.data.gov.uk/id/local-authority/38,Oxfordshire County Council,SCS Pooled Budgets,Community Support Budget - Didcot,Other Agency and Contracted Services,57401,Direct Payments,11/12/2013,3301739943,1016,WK3 Advance Housing & Support
http://statistics.data.gov.uk/id/local-authority/38,Oxfordshire County Council,SCS Pooled Budgets,Community Support Budget - Banbury,Other Agency and Contracted Services,57401,Direct Payments,11/12/2013,3301739944,1011.2,WK3 Advance Housing & Support
http://statistics.data.gov.uk/id/local-authority/38,Oxfordshire County Council,SCS Pooled Budgets,Community Support Budget - Witney,Other Agency and Contracted Services,57401,Direct Payments,11/12/2013,3301739946,898.8,WK3 Advance Housing & Support
http://statistics.data.gov.uk/id/local-authority/38,Oxfordshire County Council,SCS Pooled Budgets,Direct Payments North Team,Other Agency and Contracted Services,57401,Direct Payments,11/12/2013,3301739950,1162.96,REDACTED PERSONAL DATA
http://statistics.data.gov.uk/id/local-authority/38,Oxfordshire County Council,SCS Pooled Budgets,Carers Break / Respite Project,Other Agency and Contracted Services,57401,Direct Payments,11/12/2013,3301740157,750,REDACTED PERSONAL DATA
http://statistics.data.gov.uk/id/local-authority/38,Oxfordshire County Council,Chief Executive & Business Support,Big Society Fund,Grants and Subscriptions,47100,Grants to Voluntary,18/12/2013,3301740158,3500,Leys News Limited
http://statistics.data.gov.uk/id/local-authority/38,Oxfordshire County Council,Chief Executive & Business Support,Big Society Fund,Grants and Subscriptions,47100,Grants to Voluntary,11/12/2013,3301740161,2000,Finstock Parish Council
http://statistics.data.gov.uk/id/local-authority/38,Oxfordshire County Council,Chief Executive & Business Support,Big Society Fund,Grants and Subscriptions,47100,Grants to Voluntary,16/12/2013,3301740165,1000,Bodicote Parish Council
http://statistics.data.gov.uk/id/local-authority/38,Oxfordshire County Council,Children's Social Care,Agency Residential - Disabilities,Other Agency and Contracted Services,57800,Other Agency Payment,11/12/2013,3301740193,873,Chailey Heritage School
http://statistics.data.gov.uk/id/local-authority/38,Oxfordshire County Council,Children's Social Care,Agency Residential - Disabilities,Other Agency and Contracted Services,57800,Other Agency Payment,11/12/2013,3301740194,966,Chailey Heritage School
http://statistics.data.gov.uk/id/local-authority/38,Oxfordshire County Council,Children's Social Care,Agency Residential - Disabilities,Other Agency and Contracted Services,57800,Other Agency Payment,11/12/2013,3301740195,966,Chailey Heritage School
http://statistics.data.gov.uk/id/local-authority/38,Oxfordshire County Council,Children's Social Care,Agency Residential - Disabilities,Other Agency and Contracted Services,57801,Independent Fostering Agencies,27/12/2013,3301740197,3703.57,FOSTERPLUS LTD
http://statistics.data.gov.uk/id/local-authority/38,Oxfordshire County Council,Social & Community Services,Residential Purchasing Carers Grant,Other Agency and Contracted Services,57401,Direct Payments,11/12/2013,3301740249,600,REDACTED PERSONAL DATA
http://statistics.data.gov.uk/id/local-authority/38,Oxfordshire County Council,SCS Pooled Budgets,Life Of Your Own Grant South,Other Agency and Contracted Services,57401,Direct Payments,11/12/2013,3301740251,600,REDACTED PERSONAL DATA
http://statistics.data.gov.uk/id/local-authority/38,Oxfordshire County Council,SCS Pooled Budgets,"CSDP, Aids and Adaptions - Cherwell",Other Agency and Contracted Services,57401,Direct Payments,11/12/2013,3301740253,3300,REDACTED PERSONAL DATA
http://statistics.data.gov.uk/id/local-authority/38,Oxfordshire County Council,SCS Pooled Budgets,Life Of Your Own Grant Vale,Other Agency and Contracted Services,57401,Direct Payments,11/12/2013,3301740254,600,REDACTED PERSONAL DATA
http://statistics.data.gov.uk/id/local-authority/38,Oxfordshire County Council,Social & Community Services,Residential Purchasing Carers Grant,Other Agency and Contracted Services,57401,Direct Payments,11/12/2013,3301740256,600,REDACTED PERSONAL DATA
http://statistics.data.gov.uk/id/local-authority/38,Oxfordshire County Council,Social & Community Services,Residential Purchasing Carers Grant,Other Agency and Contracted Services,57401,Direct Payments,11/12/2013,3301740258,600,REDACTED PERSONAL DATA
http://statistics.data.gov.uk/id/local-authority/38,Oxfordshire County Council,SCS Pooled Budgets,Life Of Your Own Grant South,Other Agency and Contracted Services,57401,Direct Payments,11/12/2013,3301740259,600,REDACTED PERSONAL DATA
http://statistics.data.gov.uk/id/local-authority/38,Oxfordshire County Council,SCS Pooled Budgets,Carers Break / Respite Project,Other Agency and Contracted Services,57401,Direct Payments,11/12/2013,3301740260,750,REDACTED PERSONAL DATA
http://statistics.data.gov.uk/id/local-authority/38,Oxfordshire County Council,Social & Community Services,Residential Purchasing Carers Grant,Other Agency and Contracted Services,57401,Direct Payments,11/12/2013,3301740261,579,REDACTED PERSONAL DATA
http://statistics.data.gov.uk/id/local-authority/38,Oxfordshire County Council,SCS Pooled Budgets,Life Of Your Own Grant Vale,Other Agency and Contracted Services,57401,Direct Payments,11/12/2013,3301740263,600,REDACTED PERSONAL DATA
http://statistics.data.gov.uk/id/local-authority/38,Oxfordshire County Council,SCS Pooled Budgets,Community Support Budget - Abingdon,Other Agency and Contracted Services,57401,Direct Payments,11/12/2013,3301740264,1836,REDACTED PERSONAL DATA
http://statistics.data.gov.uk/id/local-authority/38,Oxfordshire County Council,Social & Community Services,Residential Purchasing Carers Grant,Other Agency and Contracted Services,57401,Direct Payments,11/12/2013,3301740265,600,REDACTED PERSONAL DATA
http://statistics.data.gov.uk/id/local-authority/38,Oxfordshire County Council,SCS Pooled Budgets,PD Comm Supp Budgt - Bicester/Kidlington,Other Agency and Contracted Services,57401,Direct Payments,11/12/2013,3301740266,1344,REDACTED PERSONAL DATA
http://statistics.data.gov.uk/id/local-authority/38,Oxfordshire County Council,SCS Pooled Budgets,Life Of Your Own Grant South,Other Agency and Contracted Services,57401,Direct Payments,11/12/2013,3301740267,600,REDACTED PERSONAL DATA
http://statistics.data.gov.uk/id/local-authority/38,Oxfordshire County Council,SCS Pooled Budgets,Life Of Your Own Grant South,Other Agency and Contracted Services,57401,Direct Payments,11/12/2013,3301740268,600,REDACTED PERSONAL DATA
http://statistics.data.gov.uk/id/local-authority/38,Oxfordshire County Council,SCS Pooled Budgets,Life Of Your Own Grant Cherwell,Other Agency and Contracted Services,57401,Direct Payments,11/12/2013,3301740269,600,REDACTED PERSONAL DATA
http://statistics.data.gov.uk/id/local-authority/38,Oxfordshire County Council,Social & Community Services,Residential Purchasing Carers Grant,Other Agency and Contracted Services,57401,Direct Payments,11/12/2013,3301740271,600,REDACTED PERSONAL DATA
http://statistics.data.gov.uk/id/local-authority/38,Oxfordshire County Council,Social & Community Services,Residential Purchasing Carers Grant,Other Agency and Contracted Services,57401,Direct Payments,11/12/2013,3301740274,600,REDACTED PERSONAL DATA
http://statistics.data.gov.uk/id/local-authority/38,Oxfordshire County Council,Oxfordshire Customer Services,HR Resourcing Team,Expenses,46512,Criminal Records Bureau Charges Invoiced,24/12/2013,3301740355,2615,Capita Education Resourcing
http://statistics.data.gov.uk/id/local-authority/38,Oxfordshire County Council,Education & Early Intervention,Accreditation & Opportunities,Grants and Subscriptions,47100,Grants to Voluntary,23/12/2013,3301740408,3149.87,Oxfordshire Ass. for Young People
http://statistics.data.gov.uk/id/local-authority/38,Oxfordshire County Council,Education & Early Intervention,Accreditation & Opportunities,Grants and Subscriptions,47100,Grants to Voluntary,23/12/2013,3301740408,2850.13,Oxfordshire Ass. for Young People
http://statistics.data.gov.uk/id/local-authority/38,Oxfordshire County Council,SCS Pooled Budgets,Direct Payments North Team,Other Agency and Contracted Services,57401,Direct Payments,12/12/2013,3301740440,645.81,1 Off Advance Housing & Support
http://statistics.data.gov.uk/id/local-authority/38,Oxfordshire County Council,Oxfordshire Customer Services,HR Resourcing Team,Expenses,46512,Criminal Records Bureau Charges Invoiced,13/12/2013,3301740441,20838,Disclosure & Barring Service
http://statistics.data.gov.uk/id/local-authority/38,Oxfordshire County Council,Chief Executive & Business Support,Big Society Fund,Grants and Subscriptions,47100,Grants to Voluntary,23/12/2013,3301740455,1000,Oxfordshire Play Association
http://statistics.data.gov.uk/id/local-authority/38,Oxfordshire County Council,Commercial,"Electrical NP Rds, Street Lighting",Private Contractors,56400,Major Contracts,12/12/2013,3301740644,15545.26,Southern Electric Contracting Ltd.
http://statistics.data.gov.uk/id/local-authority/38,Oxfordshire County Council,Commercial,"Electrical NP Rds, Street Lighting",Private Contractors,56400,Major Contracts,12/12/2013,3301740645,456.94,Southern Electric Contracting Ltd.
http://statistics.data.gov.uk/id/local-authority/38,Oxfordshire County Council,Commercial,"Electrical NP Rds, Street Lighting",Private Contractors,56400,Major Contracts,12/12/2013,3301740655,1110.36,Southern Electric Contracting Ltd.
http://statistics.data.gov.uk/id/local-authority/38,Oxfordshire County Council,Education & Early Intervention,Quality & Expansion 2 Year Olds,Grants and Subscriptions,47100,Grants to Voluntary,12/12/2013,3301740831,1305,St Peter's Under 5's Playgroup
http://statistics.data.gov.uk/id/local-authority/38,Oxfordshire County Council,Education & Early Intervention,Leading the EYFS (Q&I),Grants and Subscriptions,47100,Grants to Voluntary,13/12/2013,3301741000,772.2,The Farmhouse Nursery School
http://statistics.data.gov.uk/id/local-authority/38,Oxfordshire County Council,Education & Early Intervention,2 Year Old Funding,Voluntary Associations,55100,Fees to Non Maintain,13/12/2013,3301741002,525,Lucy Bourne
http://statistics.data.gov.uk/id/local-authority/38,Oxfordshire County Council,SCS Other Cost Centres,Personal Budgets OP WEST,Other Agency and Contracted Services,57401,Direct Payments,13/12/2013,3301741102,1006.43,1 Off Advance Housing & Support
http://statistics.data.gov.uk/id/local-authority/38,Oxfordshire County Council,SCS Pooled Budgets,Life Of Your Own Grant City,Other Agency and Contracted Services,57401,Direct Payments,13/12/2013,3301741139,650,REDACTED PERSONAL DATA
http://statistics.data.gov.uk/id/local-authority/38,Oxfordshire County Council,SCS Pooled Budgets,Carers Break / Respite Project,Other Agency and Contracted Services,57401,Direct Payments,13/12/2013,3301741141,750,REDACTED PERSONAL DATA
http://statistics.data.gov.uk/id/local-authority/38,Oxfordshire County Council,SCS Pooled Budgets,Carers Break / Respite Project,Other Agency and Contracted Services,57401,Direct Payments,13/12/2013,3301741149,750,REDACTED PERSONAL DATA
http://statistics.data.gov.uk/id/local-authority/38,Oxfordshire County Council,SCS Pooled Budgets,Life Of Your Own Grant Vale,Other Agency and Contracted Services,57401,Direct Payments,13/12/2013,3301741155,600,REDACTED PERSONAL DATA
http://statistics.data.gov.uk/id/local-authority/38,Oxfordshire County Council,SCS Pooled Budgets,Carers Break / Respite Project,Other Agency and Contracted Services,57401,Direct Payments,13/12/2013,3301741157,750,REDACTED PERSONAL DATA
http://statistics.data.gov.uk/id/local-authority/38,Oxfordshire County Council,SCS Other Cost Centres,Personal Budgets OP CHERWELL,Other Agency and Contracted Services,57401,Direct Payments,13/12/2013,3301741192,8900.26,REDACTED PERSONAL DATA
http://statistics.data.gov.uk/id/local-authority/38,Oxfordshire County Council,Education & Early Intervention,2 Year Old Funding,Voluntary Associations,55100,Fees to Non Maintain,16/12/2013,3301741261,1260,Sacred Heart Pre-School
http://statistics.data.gov.uk/id/local-authority/38,Oxfordshire County Council,Education & Early Intervention,Trajectory Funding - 2 yr olds,Grants and Subscriptions,47100,Grants to Voluntary,24/12/2013,3301741266,720,Shepherds Hill Pre-school
http://statistics.data.gov.uk/id/local-authority/38,Oxfordshire County Council,Education & Early Intervention,Trajectory Funding - 2 yr olds,Grants and Subscriptions,47100,Grants to Voluntary,16/12/2013,3301741267,513,Our Lady's Convent Junior School
http://statistics.data.gov.uk/id/local-authority/38,Oxfordshire County Council,Social & Community Services,Community Support Budget - City East,Other Agency and Contracted Services,57850,Rented Accomodation,16/12/2013,3301741334,825.44,Response Organisation
http://statistics.data.gov.uk/id/local-authority/38,Oxfordshire County Council,Social & Community Services,Community Support Budget - City East,Other Agency and Contracted Services,57850,Rented Accomodation,16/12/2013,3301741335,825.44,Response Organisation
http://statistics.data.gov.uk/id/local-authority/38,Oxfordshire County Council,Social & Community Services,Community Support Budget - City East,Other Agency and Contracted Services,57850,Rented Accomodation,16/12/2013,3301741336,1031.8,Response Organisation
http://statistics.data.gov.uk/id/local-authority/38,Oxfordshire County Council,Oxfordshire Customer Services,Central Buying Team Procurement,Grants and Subscriptions,47300,Subscriptions,16/12/2013,3301741337,1000,Kent County Council
http://statistics.data.gov.uk/id/local-authority/38,Oxfordshire County Council,Commercial,"Electrical NP Rds, illuminated Signs",Private Contractors,56400,Major Contracts,24/12/2013,3301741521,2100,Westcotec Ltd
http://statistics.data.gov.uk/id/local-authority/38,Oxfordshire County Council,Commercial,"Electrical NP Rds, illuminated Signs",Private Contractors,56400,Major Contracts,24/12/2013,3301741522,2100,Westcotec Ltd
http://statistics.data.gov.uk/id/local-authority/38,Oxfordshire County Council,Commercial,Electrical Energy,Private Contractors,56400,Major Contracts,27/12/2013,3301741534,8626.32,Npower Ltd
http://statistics.data.gov.uk/id/local-authority/38,Oxfordshire County Council,Oxfordshire Customer Services,MIS Payroll Workflow,Balance Sheet General,B7110,Personal Accident Scheme,17/12/2013,3301741808,865.56,Chartis Insurance UK Ltd
http://statistics.data.gov.uk/id/local-authority/38,Oxfordshire County Council,Oxfordshire Customer Services,MIS Payroll Workflow,Balance Sheet General,B7111,Court Orders,17/12/2013,3301741809,647.5,HMCTS
http://statistics.data.gov.uk/id/local-authority/38,Oxfordshire County Council,Oxfordshire Customer Services,MIS Payroll Workflow,Balance Sheet General,B7111,Court Orders,17/12/2013,3301741810,685.47,Cherwell DC
http://statistics.data.gov.uk/id/local-authority/38,Oxfordshire County Council,Oxfordshire Customer Services,MIS Payroll Workflow,Balance Sheet General,B7111,Court Orders,17/12/2013,3301741811,3103.13,Child Support Agency
http://statistics.data.gov.uk/id/local-authority/38,Oxfordshire County Council,Oxfordshire Customer Services,MIS Payroll Workflow,Balance Sheet General,B7115,Fire Brigade Union Subs,17/12/2013,3301741812,7398.07,Fire Brigades Union
http://statistics.data.gov.uk/id/local-authority/38,Oxfordshire County Council,Oxfordshire Customer Services,MIS Payroll Workflow,Balance Sheet General,B7114,Fire Service National Benevolent,17/12/2013,3301741813,821.76,The Fire Fighters Charity Regular G
http://statistics.data.gov.uk/id/local-authority/38,Oxfordshire County Council,Oxfordshire Customer Services,MIS Payroll Workflow,Balance Sheet General,B7113,GMBU Subscriptions,17/12/2013,3301741817,1206.63,G M B
http://statistics.data.gov.uk/id/local-authority/38,Oxfordshire County Council,Oxfordshire Customer Services,MIS Payroll Workflow,Balance Sheet General,B7123,Conservative Group Association,17/12/2013,3301741820,976.9,Oxfordshire Labour Councillors
http://statistics.data.gov.uk/id/local-authority/38,Oxfordshire County Council,Oxfordshire Customer Services,MIS Payroll Workflow,Balance Sheet General,B7105,Unison Subscription,17/12/2013,3301741825,19420.6,Unison
http://statistics.data.gov.uk/id/local-authority/38,Oxfordshire County Council,Oxfordshire Customer Services,MIS Payroll Workflow,Balance Sheet General,B7111,Court Orders,17/12/2013,3301741827,560.8,Vale of White Horse District Counci
http://statistics.data.gov.uk/id/local-authority/38,Oxfordshire County Council,Oxfordshire Customer Services,MIS Payroll Workflow,Balance Sheet General,B7100,Local Government Pension Scheme,17/12/2013,3301741829,3178337.94,Oxfordshire County Council
http://statistics.data.gov.uk/id/local-authority/38,Oxfordshire County Council,Oxfordshire Customer Services,MIS Payroll Workflow,Balance Sheet General,B7104,NHS Pension Scheme,17/12/2013,3301741830,17450.23,NHS Pension Scheme
http://statistics.data.gov.uk/id/local-authority/38,Oxfordshire County Council,Education & Early Intervention,Chillout Fund,Grants and Subscriptions,47100,Grants to Voluntary,24/12/2013,3301741861,4000,OYAP Trust
http://statistics.data.gov.uk/id/local-authority/38,Oxfordshire County Council,Commercial,Bridges Graffiti,Private Contractors,56400,Major Contracts,30/12/2013,3301741863,961.24,Custom Pump Services
http://statistics.data.gov.uk/id/local-authority/38,Oxfordshire County Council,Commercial,Bridges General,Private Contractors,56400,Major Contracts,30/12/2013,3301741863,720.92,Custom Pump Services
http://statistics.data.gov.uk/id/local-authority/38,Oxfordshire County Council,Education & Early Intervention,School Improvement Fund,Grants and Subscriptions,47300,Subscriptions,31/12/2013,3301741879,500,Fischer Education Project Ltd
http://statistics.data.gov.uk/id/local-authority/38,Oxfordshire County Council,Commercial,Electrical Energy,Private Contractors,56400,Major Contracts,27/12/2013,3301741953,39517.29,Npower Ltd
http://statistics.data.gov.uk/id/local-authority/38,Oxfordshire County Council,Chief Executive & Business Support,Big Society Fund,Grants and Subscriptions,47100,Grants to Voluntary,20/12/2013,3301741954,1286,Peachcroft Pre-School
http://statistics.data.gov.uk/id/local-authority/38,Oxfordshire County Council,Education & Early Intervention,2 Year Old Funding,Voluntary Associations,55100,Fees to Non Maintain,24/12/2013,3301742146,1260,Happy Days Preschool
http://statistics.data.gov.uk/id/local-authority/38,Oxfordshire County Council,Education & Early Intervention,2 Year Old Funding,Voluntary Associations,55100,Fees to Non Maintain,17/12/2013,3301742156,2640,Rush Common Pre-School
http://statistics.data.gov.uk/id/local-authority/38,Oxfordshire County Council,Education & Early Intervention,2 Year Old Funding,Voluntary Associations,55100,Fees to Non Maintain,17/12/2013,3301742157,600,Tiny Toes Day Nursery
http://statistics.data.gov.uk/id/local-authority/38,Oxfordshire County Council,Education & Early Intervention,2 Year Old Funding,Voluntary Associations,55100,Fees to Non Maintain,17/12/2013,3301742158,525,Peapods Nursery School
http://statistics.data.gov.uk/id/local-authority/38,Oxfordshire County Council,Education & Early Intervention,EIBI & Alternative Programmes,Services,44200,Consultants Fees,17/12/2013,3301742276,809.43,Oona Bannister
http://statistics.data.gov.uk/id/local-authority/38,Oxfordshire County Council,Education & Early Intervention,2 Year Old Funding,Voluntary Associations,55100,Fees to Non Maintain,18/12/2013,3301742351,3899,Rose Hill Pre-School
